Workbook

Sheet Typography
B2: Back | C2: Name of Course | D2: Typhography | AK2: 1 | AL2: 1
C3: Course Code | D3: CMM1213 | AJ3: √ | AK3: 2 | AL3: 2
B4: 2 | C4: Synopsis | D4: This course introduces to provide a concise yet comprehensive overview of the information, vocabulary, tools, and methods used in effective typographic-design practice. Student will be introduce to the history and anatomy of typography; principles of visual organization and legibility; a study of the intersection of form, meaning, and media; projects that explore a variety of contexts; and case studies devoted to traditional and nontraditional typographic design processes. | U4: =D4 -> This course introduces to provide a concise yet comprehensive overview of the information, vocabulary, tools, and methods used in effective typographic-design practice. Student will be introduce to the history and anatomy of typography; principles of visual organization and legibility; a study of the intersection of form, meaning, and media; projects that explore a variety of contexts; and case studies devoted to traditional and nontraditional typographic design processes. | AK4: 3 | AL4: 3
B5: 3 | C5: Name (s) of Academic Staff | D5: Nur Hazwani Hamdan | AK5: 4 | AL5: 4
B6: 4 | C6: Semester | D6: Semester | E6: 2 | F6: Year | G6: 1 | AK6: 5
B7: 5 | C7: Credit Value | D7: =IF(T58=40,1,(IF(T58=80,2,(IF(T58=120,3,(IF(T58=160,4,IF(T58=200,5,IF(T58=240,6,""))))))))) -> 3 | AK7: 6
B8: 6 | C8: Pre-requisite / Co-requisite (if any) | AK8: 7
B9: 7 | C9: Course Learning Outcomes (CLO): At the end of the course the students will be able to: | AK9: 8
C10: (example) - explain the basic principles of immunisation (C2, PLO1) | AK10: 9
C11: CLO1 | D11: Apply the concept of typography, typographic vocabulary and typeface classification as communicative and graphic element. (C3, PLO1) | U11: =D11 -> Apply the concept of typography, typographic vocabulary and typeface classification as communicative and graphic element. (C3, PLO1) | AK11: 10
C12: CLO2 | D12: Apply typography theory to solve problem in type setting using establish norm of typography. (C3, CTPS3, PLO2) | U12: Apply typography theory to solve problem in type setting using establish norm of typography. (C3, CTPS3, PLO2) | AK12: 11
C13: CLO3 | D13: Demonstrate the ability to create creative typeface using an appropriate multimedia tools. (P3, A2, PLO3)
C14: CLO4 | AK14: 12
B15: 8 | C15: Mapping of the Course Learning Outcomes to the Programme Learning Outcomes, Teaching Methods and Assessment:
C16: Course Learning Outcomes (CLO) | D16: Programme Learning Outcomes (PLO) | P16: Teaching Methods | S16: Assessment
D17: PLO1 | E17: PLO2 | F17: PLO3 | G17: PLO4 | H17: PLO5 | I17: PLO6 | J17: PLO7 | K17: PLO8 | L17: PLO9 | M17: PLO10 | N17: PLO11 | O17: PLO12
C18: CLO1 | D18: √ | P18: Lecture | Discussion | Independent Study | S18: Test, Assignment, Final Exam | U18: =S18 -> Test, Assignment, Final Exam
C19: CLO2 | E19: √ | P19: Lecture | Discussion | Independent Study | S19: Test, Assignment, Final Exam
C20: CLO3 | F20: √ | P20: Laboratory Work | Informal Co-operative Learning | Presentation | S20: Labskill, Final Project
C21: CLO4
B23: 9 | C23: Transferable skills (if applicable) | G23: 1 | H23: Knowledge and understanding
C24: (Skills learned in the course of study which can be useful and utilised in other settings) | G24: 2 | H24: Cognitive skills
G25: 3 | H25: Practical Skills
B26: 10 | C26: Distribution of Students Learning Time (SLT)
C27: Course Content Outline | G27: CLO | I27: Teaching and Learning Activities | T27: SLT
I28: Guided learning (F2F) | Q28: Guided Learning (NF2F) eg: e-learning | S28: Independent learning (NF2F)
I29: L | K29: T | M29: P | O29: O
C30: 1.0 The Evolution of Typography 1.1 From the origins of writing to Gutenberg’s invention of movable type 1.2 Typography from Gutenberg to the nineteenth century 1.3 The nineteenth century and the Industrial Revolution 1.4 Typography in the twentieth century 1.5 A new century and millennium begin | G30: CLO 1, CLO 2 | I30: 2 | K30: 2 | S30: 2 | T30: =SUM(I30:S30) -> 6
C31: 2.0 The Anatomy of Typography 2.1 Letterforms analyzed 2.2 The typographic font 2.3 Historical classification of typefaces 2.4 Typographic measurement 2.5 The type family | G31: CLO 1, CLO 2, CLO3 | I31: 2 | K31: 2 | S31: 2 | T31: 6 | U31: =C31 -> 2.0 The Anatomy of Typography 2.1 Letterforms analyzed 2.2 The typographic font 2.3 Historical classification of typefaces 2.4 Typographic measurement 2.5 The type family
C32: 3.0 Legibility 3.1 Basic principles of legibility 3.2 Legibility and digital typography 3.3 Typographic details | G32: CLO 1, CLO 2 | I32: 2 | K32: 2 | S32: 2 | T32: 6 | U32: 3.0 Legibility 3.1 Basic principles of legibility 3.2 Legibility and digital typography 3.3 Typographic details
C33: 4.0 The Typographic Grid 4.1 Background 4.2 Structure and space 4.3 Proportion 4.4 The square 4.5 Single column grids 4.6 Multicolumn grids 4.7 Modular grids 4.8 Improvisational structures | G33: CLO 1, CLO 2, CLO 3 | I33: 2 | M33: 2 | S33: 2 | T33: 6 | U33: 4.0 The Typographic Grid 4.1 Background 4.2 Structure and space 4.3 Proportion 4.4 The square 4.5 Single column grids 4.6 Multicolumn grids 4.7 Modular grids 4.8 Improvisational structures
C34: 5.0 Syntax and Communication 5.1 Typographic syntax 5.2 Typographic space 5.3 Visual hierarchy 5.4 ABA form | G34: CLO 1, CLO 2 | I34: 2 | M34: 2 | S34: 2 | T34: 6 | U34: 5.0 Syntax and Communication 5.1 Typographic syntax 5.2 Typographic space 5.3 Visual hierarchy 5.4 ABA form
C35: 6.0 The Typographic Message 6.1 A multidimensional language 6.2 Verbal/visual equations 6.3 Function and expression | G35: CLO 1, CLO 2, CLO 3 | I35: 2 | M35: 2 | S35: 2 | T35: 6 | U35: 6.0 The Typographic Message 6.1 A multidimensional language 6.2 Verbal/visual equations 6.3 Function and expression
C36: 7.0 The Evolution of Typographic Technology 7.1 Hand composition 7.2 Machine composition 7.3 Phototypesetting 7.4 Digital typesetting 7.5 Screen-based typography | G36: CLO 1, CLO 2 | I36: 2 | K36: 2 | S36: 2 | T36: 6 | U36: 7.0 The Evolution of Typographic Technology 7.1 Hand composition 7.2 Machine composition 7.3 Phototypesetting 7.4 Digital typesetting 7.5 Screen-based typography
C37: 8.0 Typography on Screen 8.1 Rendering type on screen 8.2 Reading on screen 8.3 Selecting typefaces 8.4 Legibility factors for on-screen typography 8.5 Web design technology 8.6 Structuring web pages 8.7 Case studies | G37: CLO 1, CLO 2, CLO 3 | I37: 2 | M37: 2 | S37: 2 | T37: 6 | U37: 8.0 Typography on Screen 8.1 Rendering type on screen 8.2 Reading on screen 8.3 Selecting typefaces 8.4 Legibility factors for on-screen typography 8.5 Web design technology 8.6 Structuring web pages 8.7 Case studies
C38: 9.0 Typographic Design Education 9.1 Letter/digit configurations 9.2 Urban letterform studies 9.3 Flowering typography 9.4 Inventing sign systems 9.5 Comparative relationships: type and image 9.6 Sequential typographic forms in space 9.7 Typography and image transformations 9.8 Unity of form and communication 9.9 Syntactic explorations using onomatopoeic terms 9.10 Visual structure motion studies 9.11 Type chronology booklet 9.12 Typographic hierarchy 9.13 Calendar deconstruction 9.14 Experimental compositions with found typography 9.15 Directional poster: from your house to the university 9.16 Visual organization and grid structures 9.17 Environmental grids 9.18 Banknote design 9.19 Observing systems in our surroundings 9.20 Typographic cubes 9.21 Blending Latin and non-Latin typographic forms 9.22 Type and image in the third dimension 9.23 Typeface design: mind/machine 9.24 Type as metaphor | G38: CLO 1, CLO 2, CLO 3 | I38: 4 | M38: 4 | S38: 4 | T38: 12 | U38: 9.0 Typographic Design Education 9.1 Letter/digit configurations 9.2 Urban letterform studies 9.3 Flowering typography 9.4 Inventing sign systems 9.5 Comparative relationships: type and image 9.6 Sequential typographic forms in space 9.7 Typography and image transformations 9.8 Unity of form and communication 9.9 Syntactic explorations using onomatopoeic terms 9.10 Visual structure motion studies 9.11 Type chronology booklet 9.12 Typographic hierarchy 9.13 Calendar deconstruction 9.14 Experimental compositions with found typography 9.15 Directional poster: from your house to the university 9.16 Visual organization and grid structures 9.17 Environmental grids 9.18 Banknote design 9.19 Observing systems in our surroundings 9.20 Typographic cubes 9.21 Blending Latin and non-Latin typographic forms 9.22 Type and image in the third dimension 9.23 Typeface design: mind/machine 9.24 Type as metaphor
C39: 10.0 Typographic Design Process 10.1 A traditional model 10.2 Exploring typographic permutations 10.3 Exploring typographic transformation 10.4 Ludd: a typographic expedition 10.5 Composites | G39: CLO 1, CLO 2, CLO 3 | I39: 2 | M39: 2 | S39: 2 | T39: 6 | U39: 10.0 Typographic Design Process 10.1 A traditional model 10.2 Exploring typographic permutations 10.3 Exploring typographic transformation 10.4 Ludd: a typographic expedition 10.5 Composites
T40: =SUM(T30:T39) -> 66
C42: Continuous Assessment | L42: Percentage (%) | N42: F2F | Q42: NF2F | T42: SLT
C43: 1 | D43: Test 1 | L43: 10 | N43: 1.5 | Q43: 5 | T43: =SUM(N43:S43) -> 6.5
C44: 2 | D44: Test 2 | L44: 10 | N44: 1.5 | Q44: 5 | T44: 6.5 | U44: =D44 -> Test 2
C45: 3 | D45: Assignment | L45: 10 | Q45: 5 | T45: 5 | U45: Assignment
C46: 4 | D46: Lab Skills | L46: 10 | N46: 6 | Q46: 4 | T46: 10 | U46: Lab Skills
C47: 5 | D47: Project | L47: 10 | N47: 3 | Q47: 12 | T47: 15 | U47: Project
T48: =SUM(T43:T47) -> 43
C50: Final Assessment | L50: Percentage (%) | N50: F2F | Q50: NF2F | T50: SLT
C51: 1 | D51: Final Examination | L51: 50 | N51: 2.5 | Q51: 8.5 | T51: =SUM(N51:S51) -> 11
T52: 0 | U52: =D52 -> 
T53: 0
T54: 0
T55: 0
T56: =SUM(T51:T55) -> 11 | U56: =D56 -> 
T58: =+T40+T48+T56 -> 120
B61: 11 | C61: Identify special requirement to deliver the course (e.g: software, nursery, computer lab, simulation room, etc) | H61: Adobe Creative Suite (InDesign, Illustrator and Photoshop)
U62: =H62 -> 
B63: 12 | C63: References: | H63: Typographic Design: Form and Communication, 7th Edition by Rob Carter, Ben Day, Philip Meggs. John Wiley & Sons, Inc, 2018
C64: (include required and further readings, and should be the most current) | H64: Lupton, E., Thinking With Type, Princeton Architectural Press, 2013 | U64: =H64 -> Lupton, E., Thinking With Type, Princeton Architectural Press, 2013
B65: 13 | C65: Other additional Information | H65: Last updated : 24 November 2019 | U65: Last updated : 24 November 2019

Sheet Color Concept
B2: Back | C2: Name of Course | D2: Color Concept | AK2: 1 | AL2: 1
C3: Course Code | D3: CMM2153 | AJ3: √ | AK3: 2 | AL3: 2
B4: 2 | C4: Synopsis | D4: An introduction and exploration of both theoretical and practical considerations of color as it pertains to fine arts applications and design. This includes studio practice, lectures, critique sessions, peer grading & exams. Projects will involve making a color wheel and various charts and exercises for theoretical understanding. Students will develop original, creative designs that utilize systematic color interactions and practical approaches to color design problems. Acrylic paint will be the main medium used for projects | U4: =D4 -> An introduction and exploration of both theoretical and practical considerations of color as it pertains to fine arts applications and design. This includes studio practice, lectures, critique sessions, peer grading & exams. Projects will involve making a color wheel and various charts and exercises for theoretical understanding. Students will develop original, creative designs that utilize systematic color interactions and practical approaches to color design problems. Acrylic paint will be the main medium used for projects | AK4: 3 | AL4: 3
B5: 3 | C5: Name (s) of Academic Staff | D5: Nur Hazwani Hamdan | AK5: 4 | AL5: 4
B6: 4 | C6: Semester | D6: Semester | E6: 3 | F6: Year | G6: 2 | AK6: 5
B7: 5 | C7: Credit Value | D7: =IF(T60=40,1,(IF(T60=80,2,(IF(T60=120,3,(IF(T60=160,4,IF(T60=200,5,IF(T60=240,6,""))))))))) -> 3 | AK7: 6
B8: 6 | C8: Pre-requisite / Co-requisite (if any) | AK8: 7
B9: 7 | C9: Course Learning Outcomes (CLO): At the end of the course the students will be able to: | AK9: 8
C10: (example) - explain the basic principles of immunisation (C2, PLO1) | AK10: 9
C11: CLO1 | D11: Describe the basic principles of color theory. (C2, PLO1) | U11: =D11 -> Describe the basic principles of color theory. (C2, PLO1) | AK11: 10
C12: CLO2 | D12: Apply the aesthetic, practical purposes, vocabulary involved and the use of color in design and fine art. (C3, CTPS3, PLO2) | U12: Apply the aesthetic, practical purposes, vocabulary involved and the use of color in design and fine art. (C3, CTPS3, PLO2) | AK12: 11
C13: CLO3 | D13: Demonstrate skills in mixing and paint application to design in color concept. (C3, P3, PLO3)
AK14: 12
B15: 8 | C15: Mapping of the Course Learning Outcomes to the Programme Learning Outcomes, Teaching Methods and Assessment:
C16: Course Learning Outcomes (CLO) | D16: Programme Learning Outcomes (PLO) | P16: Teaching Methods | S16: Assessment
D17: PLO1 | E17: PLO2 | F17: PLO3 | G17: PLO4 | H17: PLO5 | I17: PLO6 | J17: PLO7 | K17: PLO8 | L17: PLO9 | M17: PLO10 | N17: PLO11 | O17: PLO12
C18: CLO1 | D18: √ | P18: Lecture | Discussion | Independent Study | S18: Test, Assignment | U18: =S18 -> Test, Assignment
C19: CLO2 | E19: √ | P19: Lecture | Discussion | Independent Study | S19: Test, Assignment
C20: CLO3 | F20: √ | P20: Laboratory Work | Informal Co-operative Learning | Presentation | S20: Lab skill, Final Project
C21: CLO4
B23: 9 | C23: Transferable skills (if applicable) | G23: 1 | H23: Knowledge and understanding
C24: (Skills learned in the course of study which can be useful and utilised in other settings) | G24: 2 | H24: Cognitive skills
G25: 3 | H25: Practical Skills
B26: 10 | C26: Distribution of Students Learning Time (SLT)
C27: Course Content Outline | G27: CLO | I27: Teaching and Learning Activities | T27: SLT
I28: Guided learning (F2F) | Q28: Guided Learning (NF2F) eg: e-learning | S28: Independent learning (NF2F)
I29: L | K29: T | M29: P | O29: O
C30: Topic 1: Basic concepts and vocabulary Hue, Saturation, Value | G30: CLO 1, CLO 2 | I30: 2 | M30: 2 | S30: 2 | T30: =SUM(I30:S30) -> 6
C31: Topic 2: Color wheel: primary, secondary, tertiary | G31: CLO 1, CLO 2, CLO 3 | I31: 2 | M31: 2 | S31: 2 | T31: 6 | U31: =C31 -> Topic 2: Color wheel: primary, secondary, tertiary
C32: Topic 3: Tints, shades, tones, Creating neutral colors | G32: CLO 1, CLO 2, CLO 3 | I32: 2 | M32: 2 | S32: 2 | T32: 6 | U32: Topic 3: Tints, shades, tones, Creating neutral colors
C33: Topic 4: Pigments: Transparent/Opaque, Tint strength | G33: CLO 1, CLO 2, CLO 3 | I33: 2 | M33: 2 | S33: 2 | T33: 6 | U33: Topic 4: Pigments: Transparent/Opaque, Tint strength
C34: Topic 5: Additive and Subtractive color systems; | G34: CLO 1, CLO 2, CLO 3 | I34: 2 | M34: 2 | S34: 2 | T34: 6 | U34: Topic 5: Additive and Subtractive color systems;
C35: Topic 6: Color Interaction: simultaneous and successive contrast | G35: CLO 1, CLO 2, CLO 3 | I35: 2 | M35: 2 | S35: 2 | T35: 6 | U35: Topic 6: Color Interaction: simultaneous and successive contrast
C36: Topic 7: Color Temperature: Warm/Cool | G36: CLO 1, CLO 2, CLO 3 | I36: 2 | M36: 2 | S36: 2 | T36: 6 | U36: Topic 7: Color Temperature: Warm/Cool
C37: Topic 8: Color to enhance space: Atmospheric Perspective | G37: CLO 1, CLO 2, CLO 3 | I37: 2 | M37: 2 | S37: 2 | T37: 6 | U37: Topic 8: Color to enhance space: Atmospheric Perspective
C38: Topic 9: Color schemes: monochrome, complementary, analogous, split complement, double complement, triad, tetrad | G38: CLO 1, CLO 2, CLO 3 | I38: 2 | M38: 2 | S38: 2 | T38: 6 | U38: Topic 9: Color schemes: monochrome, complementary, analogous, split complement, double complement, triad, tetrad
C39: Topic 10: Psychology of color /expressive vs. local color, high and low key color | G39: CLO 1, CLO 2 | I39: 2 | M39: 2 | S39: 2 | T39: 6 | U39: Topic 10: Psychology of color /expressive vs. local color, high and low key color
C40: Topic 11: Color theories and systems/Theorists | G40: CLO 1, CLO 2 | I40: 2 | M40: 2 | S40: 2 | T40: 6 | U40: Topic 11: Color theories and systems/Theorists
C41: Topic 12: Artist’s use of color: Post-Impressionists, Joseph Albers, Hans Hoffman, et.al. | G41: CLO 1, CLO 2 | I41: 2 | M41: 2 | S41: 2 | T41: 6 | U41: Topic 12: Artist’s use of color: Post-Impressionists, Joseph Albers, Hans Hoffman, et.al.
T42: =SUM(T30:T41) -> 72
C44: Continuous Assessment | L44: Percentage (%) | N44: F2F | Q44: NF2F | T44: SLT
C45: 1 | D45: Test 1 | L45: 10 | N45: 1.25 | Q45: 5 | T45: =SUM(N45:S45) -> 6.25
C46: 2 | D46: Test 2 | L46: 10 | N46: 1.25 | Q46: 5 | T46: 6.25 | U46: =D46 -> Test 2
C47: 3 | D47: Assignment | L47: 10 | Q47: 5 | T47: 5 | U47: Assignment
C48: 4 | D48: Labskill | L48: 10 | N48: 4 | Q48: 2 | T48: 6 | U48: Labskill
C49: 5 | D49: Project | L49: 10 | N49: 1.5 | Q49: 12 | T49: 13.5 | U49: Project
T50: =SUM(T45:T49) -> 37
C52: Final Assessment | L52: Percentage (%) | N52: F2F | Q52: NF2F | T52: SLT
C53: 1 | D53: Final Examination | L53: 50 | N53: 2.5 | Q53: 8.5 | T53: =SUM(N53:S53) -> 11
T54: 0 | U54: =D54 -> 
T55: 0
T56: 0
T57: 0
T58: =SUM(T53:T57) -> 11 | U58: =D58 -> 
T60: =+T42+T50+T58 -> 120
B63: 11 | C63: Identify special requirement to deliver the course (e.g: software, nursery, computer lab, simulation room, etc)
U64: =H64 -> 
B65: 12 | C65: References: (include required and further readings, and should be the most current) | H65: Understanding Color: An Introduction for Designers 5th Edition by Linda Holtzschue, Wiley; 5 edition, 2017
H66: Albers, Josef. Interaction of Color revised edition. Yale University Press. 2013
H67: Color Theory: An essential guide to color-from basic principles to practical applications by Patti Mollica, Walter Foster Publishing, 2013
U68: =H68 -> 
B69: 13 | C69: Other additional Information | H69: Last updated : 24 November 2019 | U69: Last updated : 24 November 2019

Sheet Advertising
B2: Back | C2: Name of Course | D2: Advertising | AK2: 1 | AL2: 1
C3: Course Code | D3: CMMxxxx | AJ3: √ | AK3: 2 | AL3: 2
B4: 2 | C4: Synopsis | D4: This course introduces student to takes a look at media advertising elements, including digital, mobile, and social networks while reinforcing the importance of traditional components such as television, magazine, online, and outdoor advertising. The course also explores target audience development, product positioning, creative messaging, media strategies, and campaign execution. | U4: =D4 -> This course introduces student to takes a look at media advertising elements, including digital, mobile, and social networks while reinforcing the importance of traditional components such as television, magazine, online, and outdoor advertising. The course also explores target audience development, product positioning, creative messaging, media strategies, and campaign execution. | AK4: 3 | AL4: 3
B5: 3 | C5: Name (s) of Academic Staff | D5: Nuur Fatihah binti Mohd Yusoff | AK5: 4 | AL5: 4
B6: 4 | C6: Semester | D6: Semester | E6: 3 | F6: Year | G6: 2 | AK6: 5
B7: 5 | C7: Credit Value | D7: 3 | AK7: 6
B8: 6 | C8: Pre-requisite / Co-requisite (if any) | D8: none | AK8: 7
B9: 7 | C9: Course Learning Outcomes (CLO): At the end of the course the students will be able to: | AK9: 8
C10: (example) - explain the basic principles of immunisation (C2, PLO1) | AK10: 9
C11: CLO1 | U11: =D11 ->  | AK11: 10
C12: CLO2 | AK12: 11
C13: CLO3
AK14: 12
B15: 8 | C15: Mapping of the Course Learning Outcomes to the Programme Learning Outcomes, Teaching Methods and Assessment:
C16: Course Learning Outcomes (CLO) | D16: Programme Learning Outcomes (PLO) | P16: Teaching Methods | S16: Assessment
D17: PLO1 | E17: PLO2 | F17: PLO3 | G17: PLO4 | H17: PLO5 | I17: PLO6 | J17: PLO7 | K17: PLO8 | L17: PLO9 | M17: PLO10 | N17: PLO11 | O17: PLO12
C18: CLO1 | D18: √ | U18: =S18 -> 
C19: CLO2 | E19: √
C20: CLO3 | F20: √
C21: CLO4
B23: 9 | C23: Transferable skills (if applicable) | G23: 1 | H23: Knowledge and understanding
C24: (Skills learned in the course of study which can be useful and utilised in other settings) | G24: 2 | H24: Cognitive skills
G25: 3 | H25: Practical Skills
B26: 10 | C26: Distribution of Students Learning Time (SLT)
C27: Course Content Outline | G27: CLO | I27: Teaching and Learning Activities | T27: SLT
I28: Guided learning (F2F) | Q28: Guided Learning (NF2F) eg: e-learning | S28: Independent learning (NF2F)
I29: L | K29: T | M29: P | O29: O
C30: 1.0 What Is Advertising and What New Forms Is It Taking? 1.1 So Just What Is Advertising? 1.2 Advertising and the Rest of the Promotional Toolbox 1.3 A Sampling of Advertising Innovations 1.3.1. Devices as New Media Channels 1.3.2. Social Networks 1.3.3. Twitter 1.3.4. Online Video Ads 1.4 Advertising Networks and Exchanges 1.5 New Ways to Target the Right Consumer with the Right Message 1.6 Behavioral Targeting 1.7 Search Advertising
C31: 2.0 Important Times in Advertising History 2.1. Profound Moments in Advertising History and What We Can Learn from Them 2.2. A Wild Decade: 2000–2010 2.3. Recessions and Advertising 2.4. The Great Depression and Advertising 2.5. Birth of Great Products | U31: =C31 -> 2.0 Important Times in Advertising History 2.1. Profound Moments in Advertising History and What We Can Learn from Them 2.2. A Wild Decade: 2000–2010 2.3. Recessions and Advertising 2.4. The Great Depression and Advertising 2.5. Birth of Great Products
C32: 3.0 Ethical and Regulatory Contexts of Advertising 3.1. Ethical Challenges for Advertising 3.1.1. Questionable Taste 3.1.2. Stereotyping Women 3.1.3. Does Political Attack Advertising Make People Cynical about Politics? 3.1.4. Invasion of Consumer Privacy 3.2. Regulation and Self-Regulation of Advertising 3.2.1. Transparency about Brand Endorsements 3.2.2. Protection from Phone Call Harassment 3.3. Facilitating Positive Behavior 3.4. Advertising: The Good, the Bad, and the Regulated | U32: 3.0 Ethical and Regulatory Contexts of Advertising 3.1. Ethical Challenges for Advertising 3.1.1. Questionable Taste 3.1.2. Stereotyping Women 3.1.3. Does Political Attack Advertising Make People Cynical about Politics? 3.1.4. Invasion of Consumer Privacy 3.2. Regulation and Self-Regulation of Advertising 3.2.1. Transparency about Brand Endorsements 3.2.2. Protection from Phone Call Harassment 3.3. Facilitating Positive Behavior 3.4. Advertising: The Good, the Bad, and the Regulated
C33: 4.0 Segmentation, Brand Positioning, and Defining the Brand Value Proposition 4.1 Why Segmentation Is So Critical 4.2 Demographics: The Simplest Segmentation Approach 4.3 Psychographic Segmenting 4.4 Segmenting by Generation 4.5 Getting Segmentation Right 4.6 Segmentation and the Problems of Privacy and Vulnerable Audiences 4.7 Positioning and Brand Value Propositions | U33: 4.0 Segmentation, Brand Positioning, and Defining the Brand Value Proposition 4.1 Why Segmentation Is So Critical 4.2 Demographics: The Simplest Segmentation Approach 4.3 Psychographic Segmenting 4.4 Segmenting by Generation 4.5 Getting Segmentation Right 4.6 Segmentation and the Problems of Privacy and Vulnerable Audiences 4.7 Positioning and Brand Value Propositions
C34: 5.0 Advertising and Promotion Management and Planning 5.1 Putting Together a Plan 5.2 Break Me Off a Piece of That Soy-Sauce Bar 5.3 Go Global or Go Local? Research and Local Knowledge Matter 5.4 Management Matters 5.5 It’s Not about You 5.6 A Global Consumer in Our Future? | U34: 5.0 Advertising and Promotion Management and Planning 5.1 Putting Together a Plan 5.2 Break Me Off a Piece of That Soy-Sauce Bar 5.3 Go Global or Go Local? Research and Local Knowledge Matter 5.4 Management Matters 5.5 It’s Not about You 5.6 A Global Consumer in Our Future?
C35: 6.0 The Creative Strategy of Advertising Messages 6.1 Do Real Men Drink Diet Soda? 6.2 CareerBuilder versus Monster 6.3 Battle of the Travel Sites 6.4 Creative Strategy for Issue-Based Advertising 6.5 Big Ideas and Creative Strategies 6.6 From Creative Brief to Commercials 6.7 Message Creativity or Creativity in the Selection of the Medium? 6.8 Does the Creative in an Ad Have to Be about the Product? 6.9 Advertising Appeals: A Potpourri, Nike’s Greatest Ad Ever, Old Spice Humor | U35: 6.0 The Creative Strategy of Advertising Messages 6.1 Do Real Men Drink Diet Soda? 6.2 CareerBuilder versus Monster 6.3 Battle of the Travel Sites 6.4 Creative Strategy for Issue-Based Advertising 6.5 Big Ideas and Creative Strategies 6.6 From Creative Brief to Commercials 6.7 Message Creativity or Creativity in the Selection of the Medium? 6.8 Does the Creative in an Ad Have to Be about the Product? 6.9 Advertising Appeals: A Potpourri, Nike’s Greatest Ad Ever, Old Spice Humor
C36: 7.0 Creative Copywriting 7.1 Research versus Creativity 7.2 Strategy 7.3 Features and Benefits 7.4 Creativity in 140 Characters? 7.5 What’s Creative? 7.6 On Advertising and Promotional Creativity 7.7 Creative Design and Visuals 7.8 Persuasion and Visuals 7.9 The Creative Brief: A Template for Teamwork 7.10 One Device to Rule Them All? | U36: 7.0 Creative Copywriting 7.1 Research versus Creativity 7.2 Strategy 7.3 Features and Benefits 7.4 Creativity in 140 Characters? 7.5 What’s Creative? 7.6 On Advertising and Promotional Creativity 7.7 Creative Design and Visuals 7.8 Persuasion and Visuals 7.9 The Creative Brief: A Template for Teamwork 7.10 One Device to Rule Them All?
C37: 8.0 Media Planning 8.1 Are Media the New Creative? 8.2 Measuring Media 8.3 Paid Media Still Dominate 8.4 Why Do People Choose Different Media? 8.5 Individual Differences 8.6 Aperture—The Perfect Opening 8.7 Voice 8.8 Media Features | U37: 8.0 Media Planning 8.1 Are Media the New Creative? 8.2 Measuring Media 8.3 Paid Media Still Dominate 8.4 Why Do People Choose Different Media? 8.5 Individual Differences 8.6 Aperture—The Perfect Opening 8.7 Voice 8.8 Media Features
C38: 9.0 Media Planning for the Internet and Other Digital Media 9.1 The Consumer Power Shift 9.2 The Internet Advantage 9.3 Internet Marketing 9.4 Search 9.5 Email Marketing 9.6 Social Networking 9.7 Gaming 9.8 Mobile 9.9 Video and Branded Entertainment | U38: 9.0 Media Planning for the Internet and Other Digital Media 9.1 The Consumer Power Shift 9.2 The Internet Advantage 9.3 Internet Marketing 9.4 Search 9.5 Email Marketing 9.6 Social Networking 9.7 Gaming 9.8 Mobile 9.9 Video and Branded Entertainment
C39: 10.0 Promotions and Their Relationship to Advertising 10.1 Sales Promotion 10.2 Coupons and Samples 10.3 Premiums, Frequent Shopper, and Loyalty Programs 10.4 Sponsorships 10.5 Point of Purchase | U39: 10.0 Promotions and Their Relationship to Advertising 10.1 Sales Promotion 10.2 Coupons and Samples 10.3 Premiums, Frequent Shopper, and Loyalty Programs 10.4 Sponsorships 10.5 Point of Purchase
C40: 11.0 Public Relations and Advertising 11.1 Controlled and Uncontrolled Media 11.2 Different Roles for Public Relations 11.3 Managing Relationships 11.4 Complexity of PR Campaigns 11.5 More on Crisis Communication 11.6 Public Relations’ Growing Importance | U40: 11.0 Public Relations and Advertising 11.1 Controlled and Uncontrolled Media 11.2 Different Roles for Public Relations 11.3 Managing Relationships 11.4 Complexity of PR Campaigns 11.5 More on Crisis Communication 11.6 Public Relations’ Growing Importance
C41: 12.0 Advertising’s Future 12.1 How Downturns Affect Advertising 12.2 Advertising’s Financial Future 12.3 Future Challenges to Advertising 12.4 A Final Word | U41: 12.0 Advertising’s Future 12.1 How Downturns Affect Advertising 12.2 Advertising’s Financial Future 12.3 Future Challenges to Advertising 12.4 A Final Word
C44: Continuous Assessment | L44: Percentage (%) | N44: F2F | Q44: NF2F | T44: SLT
C45: 1 | D45: Test 1 | L45: 10 | N45: 1.25 | Q45: 5 | T45: =SUM(N45:S45) -> 6.25
C46: 2 | D46: Test 2 | L46: 10 | N46: 1.25 | Q46: 5 | T46: 6.25 | U46: =D46 -> Test 2
C47: 3 | D47: Assignment | L47: 20 | Q47: 5 | T47: 5 | U47: Assignment
C48: 4 | D48: Project | L48: 10 | N48: 1.5 | Q48: 12 | T48: 13.5 | U48: =#REF! -> #REF!
C49: 5 | T49: =SUM(N48:S48) -> 13.5 | U49: =D48 -> Project
T50: =SUM(T45:T49) -> 44.5 | U50: =D50 -> 
C52: Final Assessment | L52: Percentage (%) | N52: F2F | Q52: NF2F | T52: SLT
C53: 1 | D53: Final Examination | L53: 50 | N53: 2.5 | Q53: 8.5 | T53: =SUM(N53:S53) -> 11
T54: 0 | U54: =D54 -> 
T55: 0
T56: 0
T57: 0
T58: =SUM(T53:T57) -> 11 | U58: =D58 -> 
T60: =+T42+T50+T58 -> 55.5
B63: 11 | C63: Identify special requirement to deliver the course (e.g: software, nursery, computer lab, simulation room, etc)
U64: =H64 -> 
B65: 12 | C65: References: (include required and further readings, and should be the most current) | H65: Esther Thorson, Margaret Duffy, Advertising Age The Principles of Advertising and Marketing Communication at Work , 2011
H66: Chris Hackley, ‎Rungpaka Amy Hackley, Advertising and Promotion, 2017
H67: John DiMarco, Communications Writing and Design: The Integrated Manual for Marketing, Advertising, and Public Relations, Wiley-Blackwell, 2017
U68: =H68 -> 
B69: 13 | C69: Other additional Information | H69: Last updated : 24 September 2020 | U69: Last updated : 24 September 2020

Sheet Basic Sketching
B2: Back | C2: Name of Course | D2: Basic Sketching | AK2: 1 | AL2: 1
C3: Course Code | D3: CMM2173 | AJ3: √ | AK3: 2 | AL3: 2
B4: 2 | C4: Synopsis | D4: This course provides the students the basic guide to sketching, covering the tools, techniques and tips. It will take the student by the hand, in most step-by-step guidance and will teach the student everything in order to start sketching. Students will become more creative and innovative in drawing. Besides, this is one of the best ways to practice drawing in general, as well as improving their visual and sketching skills. | U4: =D4 -> This course provides the students the basic guide to sketching, covering the tools, techniques and tips. It will take the student by the hand, in most step-by-step guidance and will teach the student everything in order to start sketching. Students will become more creative and innovative in drawing. Besides, this is one of the best ways to practice drawing in general, as well as improving their visual and sketching skills. | AK4: 3 | AL4: 3
B5: 3 | C5: Name (s) of Academic Staff | D5: Nur Hazwani Binti Hamdan | AK5: 4 | AL5: 4
B6: 4 | C6: Semester | D6: Semester | E6: 4 | F6: Year | G6: 2 | AK6: 5
B7: 5 | C7: Credit Value | D7: =IF(T54=40,1,(IF(T54=80,2,(IF(T54=120,3,(IF(T54=160,4,IF(T54=200,5,IF(T54=240,6,""))))))))) -> 3 | AK7: 6
B8: 6 | C8: Pre-requisite / Co-requisite (if any) | D8: none | AK8: 7
B9: 7 | C9: Course Learning Outcomes (CLO): At the end of the course the students will be able to: | AK9: 8
C10: (example) - explain the basic principles of immunisation (C2, PLO1) | AK10: 9
C11: CLO1 | D11: Apply the basic concept and principles of sketching tools and technique process. (C3, PLO1) | U11: =D11 -> Apply the basic concept and principles of sketching tools and technique process. (C3, PLO1) | AK11: 10
C12: CLO2 | D12: Demonstrate the ability to sketching a creative object or situation using an appropriate drawing tool. (P3, PLO3) | U12: Demonstrate the ability to sketching a creative object or situation using an appropriate drawing tool. (P3, PLO3) | AK12: 11
C13: CLO3 | D13: Demonstrate positive attitude and good ethics during the course (A3, EM2, PLO11)
AK14: 12
B15: 8 | C15: Mapping of the Course Learning Outcomes to the Programme Learning Outcomes, Teaching Methods and Assessment:
C16: Course Learning Outcomes (CLO) | D16: Programme Learning Outcomes (PLO) | P16: Teaching Methods | S16: Assessment
D17: PLO1 | E17: PLO2 | F17: PLO3 | G17: PLO4 | H17: PLO5 | I17: PLO6 | J17: PLO7 | K17: PLO8 | L17: PLO9 | M17: PLO10 | N17: PLO11 | O17: PLO12
C18: CLO1 | D18: √ | P18: Lecture | Discussion | Informal Co-Opeative Learning | S18: Assignment | Test | Final Examination | U18: =S18 -> Assignment | Test | Final Examination
C19: CLO2 | F19: √ | P19: Studio Work | Informal Co-operative Learning | S19: Assignment | Studio Skills | Project
C20: CLO3 | N20: √ | P20: Lecture | Discussion| Studio Work | Informal Co-operative Learning | Independent | S20: Assignment | studio Skills | Test | Final Examination
C22: (The description must be read together with standards 2.1.2, 2.2.1 and 2.2.2 in Area 2 - pages 16 & 18)
B23: 9 | C23: Transferable skills (if applicable) | G23: 1 | H23: Knowledge
C24: (Skills learned in the course of study which can be useful and utilised in other settings) | G24: 2 | H24: Practicall Skill
G25: 3 | H25: Ethics and Professionalism
B26: 10 | C26: Distribution of Students Learning Time (SLT)
C27: Course Content Outline | G27: CLO | I27: Teaching and Learning Activities | T27: SLT
I28: Guided learning (F2F) | Q28: Guided Learning (NF2F) eg: e-learning | S28: Independent learning (NF2F)
I29: L | K29: T | M29: P | O29: O
C30: 1.0 Tools Overview 1.1 Sketchbook 1.2 Fude Fountain Pen 1.3 Ink 1.4 Watercolor Kit 1.5 Water Brush 1.6 Water Spray Mister 1.7 Daily Sketch Bag | G30: CLO1, CLO3 | I30: 2 | M30: 2 | S30: 2 | T30: =SUM(I30:S30) -> 6
C31: 2.0 Line Techniques 2.1 Pen to Paper 2.2 Fude Fountain Pen 2.3 Basic Perspective 2.4 Sketch What's of Interest First 2.5 Contour Lines and Minimal Shading 2.6 Reinstate 2.7 Repetition and Pattern 2.8 Symmetry 2.9 Angle/Composition | G31: CLO1, CLO2, CLO3 | I31: 8 | M31: 8 | S31: 8 | T31: 24 | U31: =C31 -> 2.0 Line Techniques 2.1 Pen to Paper 2.2 Fude Fountain Pen 2.3 Basic Perspective 2.4 Sketch What's of Interest First 2.5 Contour Lines and Minimal Shading 2.6 Reinstate 2.7 Repetition and Pattern 2.8 Symmetry 2.9 Angle/Composition
C32: 3.0 Color Techniques 3.1 Coloring Tips 3.2 Color Mixing and Usage 3.3 Don't Color Everything | G32: CLO1, CLO2, CLO3 | I32: 2 | M32: 2 | S32: 2 | T32: 6 | U32: 3.0 Color Techniques 3.1 Coloring Tips 3.2 Color Mixing and Usage 3.3 Don't Color Everything
C33: 4.0 Finishing 4.1 Always Finish a Sketch 4.2 Finishing Later 4.3 Annotation and Graphics 4.4 Date and Stamp | G33: CLO1, CLO2, CLO3 | I33: 4 | M33: 4 | S33: 4 | T33: 12 | U33: 4.0 Finishing 4.1 Always Finish a Sketch 4.2 Finishing Later 4.3 Annotation and Graphics 4.4 Date and Stamp
C34: 5.0 Real-Life Examples 5.1 Food 5.2 Travel : Egypt 5.3 Travel : England 5.4 Travel : Peru 5.5 Coffee Shops 5.6 People 5.7 Challenging Sketching Situations | G34: CLO1, CLO2, CLO3 | I34: 4 | M34: 4 | S34: 4 | T34: 12 | U34: 5.0 Real-Life Examples 5.1 Food 5.2 Travel : Egypt 5.3 Travel : England 5.4 Travel : Peru 5.5 Coffee Shops 5.6 People 5.7 Challenging Sketching Situations
C35: 6.0 Think Later 6.1 Various Sketching Approaches 6.2 Safety 6.3 Sketch Standing 6.4 Making Sketching a Habit | G35: CLO1, CLO2, CLO3 | I35: 2 | M35: 2 | S35: 2 | T35: 6 | U35: 6.0 Think Later 6.1 Various Sketching Approaches 6.2 Safety 6.3 Sketch Standing 6.4 Making Sketching a Habit
C36: Total | T36: =SUM(T30:T35) -> 66 | U36: Total
C38: Continuous Assessment | L38: Percentage (%) | N38: F2F | Q38: NF2F | T38: SLT
C39: 1 | D39: Assignment (3) | L39: 10 | Q39: 6 | T39: =SUM(N39:S39) -> 6
C40: 2 | D40: Test (2) | L40: 20 | N40: 3 | Q40: 8 | T40: 11 | U40: =D40 -> Test (2)
C41: 3 | D41: Lab Skills (3) | L41: 10 | N41: 6 | Q41: 6 | T41: 12 | U41: Lab Skills (3)
C42: 4 | D42: Project | L42: 10 | N42: 3 | Q42: 10.5 | T42: 13.5 | U42: Project
C43: 5 | T43: 0
C44: Total | T44: =SUM(T39:T43) -> 42.5
C46: Final Assessment | L46: Percentage (%) | N46: F2F | Q46: NF2F | T46: SLT
C47: 1 | D47: Final Examination | L47: 50 | N47: 2.5 | Q47: 9 | T47: =SUM(N47:S47) -> 11.5
C48: 2 | T48: 0 | U48: =D48 -> 
C49: 3 | T49: 0
C50: 4 | T50: 0
C51: 5 | T51: 0
T52: =SUM(T47:T51) -> 11.5 | U52: =D52 -> 
C54: **Please tick (ü) in this course is Latihan Industri / Clinical Placement / Practicum / WBL using 2 weeks; 1 credit formula | T54: =+T36+T44+T52 -> 120
C55: L= Lecture, T=Tutorial, P=Practical, O=Others, F2F=Face to Face, NF2F=None Face to Face
C56: *Indicate the CLO based on the CLO's numbering in item 8
B57: 11 | C57: Identify special requirement to deliver the course (e.g: software, nursery, computer lab, simulation room, etc) | H57: Studio
U58: =H58 -> 
B59: 12 | C59: References: | H59: Mike Yoshiaki Daikubara, Sketch Now, Think Later: Jump into Urban Sketching with Limited Time, Tools, and Techniques, Quarry Books, 2017
C60: (include required and further readings, and should be the most current) | H60: Liron Yanconsky, How To Sketch : A Beginner's Gide to Sketching Techniques, Including Step By Stp Exercices, Tips and Tricks, 1 Edition, CreateSpace Independent Publishing Platform, 2014 | U60: =H60 -> Liron Yanconsky, How To Sketch : A Beginner's Gide to Sketching Techniques, Including Step By Stp Exercices, Tips and Tricks, 1 Edition, CreateSpace Independent Publishing Platform, 2014
H61: Jon Stich, Sketch Your Stuff: 200 Things to Draw and How to Draw Them, Quarry Books, 2016 | U61: Jon Stich, Sketch Your Stuff: 200 Things to Draw and How to Draw Them, Quarry Books, 2016
B62: 13 | C62: Other additional Information | H62: Last updated : 24 November 2019 | U62: Last updated : 24 November 2019

Sheet Web Animation
B2: Back | C2: Name of Course | D2: Web Animation | AK2: 1 | AL2: 1
C3: Course Code | D3: CMM3323 | AJ3: √ | AK3: 2 | AL3: 2
B4: 2 | C4: Synopsis | D4: This course introduces student to CSS animations, JavaScript and the development of applications for web-based delivery. Student will learn how to work with animations in HTML. This includes create animations found in common interface implementations, use CSS transforms and transitions. | U4: =D4 -> This course introduces student to CSS animations, JavaScript and the development of applications for web-based delivery. Student will learn how to work with animations in HTML. This includes create animations found in common interface implementations, use CSS transforms and transitions. | AK4: 3 | AL4: 3
B5: 3 | C5: Name (s) of Academic Staff | D5: Nuur Fatihah Bt Mohd Yusoff | AK5: 4 | AL5: 4
B6: 4 | C6: Semester | D6: Semester | E6: 5 | F6: Year | G6: 3 | AK6: 5
B7: 5 | C7: Credit Value | D7: =IF(T62=40,1,(IF(T62=80,2,(IF(T62=120,3,(IF(T62=160,4,IF(T62=200,5,IF(T62=240,6,""))))))))) -> 3 | AK7: 6
B8: 6 | C8: Pre-requisite / Co-requisite (if any) | AK8: 7
B9: 7 | C9: Course Learning Outcomes (CLO): At the end of the course the students will be able to: | AK9: 8
C10: (example) - explain the basic principles of immunisation (C2, PLO1) | AK10: 9
C11: CLO1 | D11: Apply the concept and principles of animation technique in web application. (C3, PLO1) | U11: =D11 -> Apply the concept and principles of animation technique in web application. (C3, PLO1) | AK11: 10
C12: CLO2 | D12: Demonstrate the ability to create a creative multimedia animation using an appropriate multimedia tool on web application. (P3, PLO3) | U12: Demonstrate the ability to create a creative multimedia animation using an appropriate multimedia tool on web application. (P3, PLO3) | AK12: 11
C13: CLO3 | D13: Acquire and manage information of producing web animation from various sources to accomplish a project within a given time frame (A3, LL2, PLO9)
AK14: 12
B15: 8 | C15: Mapping of the Course Learning Outcomes to the Programme Learning Outcomes, Teaching Methods and Assessment:
C16: Course Learning Outcomes (CLO) | D16: Programme Learning Outcomes (PLO) | P16: Teaching Methods | S16: Assessment
D17: PLO1 | E17: PLO2 | F17: PLO3 | G17: PLO4 | H17: PLO5 | I17: PLO6 | J17: PLO7 | K17: PLO8 | L17: PLO9 | M17: PLO10 | N17: PLO11 | O17: PLO12
C18: CLO1 | D18: √ | P18: Lecture | Discussion | Laboratory Work | S18: Lab Skill | Test | Final Exam | U18: =S18 -> Lab Skill | Test | Final Exam
C19: CLO2 | F19: √ | P19: Lecture | Discussion | Laboratory Work | S19: Lab Skill | Assignment
C20: CLO3 | L20: √ | P20: Laboratory Work | Independent Study Presentation | S20: Project
C22: (The description must be read together with standards 2.1.2, 2.2.1 and 2.2.2 in Area 2 - pages 16 & 18)
B23: 9 | C23: Transferable skills (if applicable) | G23: 1 | H23: Knowledge and Understanding
C24: (Skills learned in the course of study which can be useful and utilised in other settings) | G24: 2 | H24: Practical Skills
G25: 3 | H25: Personal Skills
B26: 10 | C26: Distribution of Students Learning Time (SLT)
C27: Course Content Outline | G27: CLO | I27: Teaching and Learning Activities | T27: SLT
I28: Guided learning (F2F) | Q28: Guided Learning (NF2F) eg: e-learning | S28: Independent learning (NF2F)
I29: L | K29: T | M29: P | O29: O
C30: 1.0 Introduction to Web Animation 1.1 What Is an Animation? | G30: CLO1 | I30: 1 | M30: 1 | S30: 1 | T30: =SUM(I30:S30) -> 3
C31: 2.0 Introduction to CSS Animation 2.1 Creating a Simple Animation 2.2 What Just Happened 2.3 The Longhand Version | G31: CLO1, CLO2,CLO3 | I31: 1 | M31: 1 | S31: 1 | T31: 3 | U31: =C31 -> 2.0 Introduction to CSS Animation 2.1 Creating a Simple Animation 2.2 What Just Happened 2.3 The Longhand Version
C32: 3.0 Introduction to CSS Transitions 3.1 Creating a Simple Transition 3.2 What Just Happened 3.3 The Longhand Version | G32: CLO1, CLO2,CLO3 | I32: 1 | M32: 1 | S32: 1 | T32: 3 | U32: 3.0 Introduction to CSS Transitions 3.1 Creating a Simple Transition 3.2 What Just Happened 3.3 The Longhand Version
C33: 4.0 Working with CSS Timing Functions 4.1 What is a Timing Function? 4.2 Timing Functions in CSS | G33: CLO1, CLO2,CLO3 | I33: 1 | M33: 1 | S33: 1 | T33: 3 | U33: 4.0 Working with CSS Timing Functions 4.1 What is a Timing Function? 4.2 Timing Functions in CSS
C34: 5.0 Ensuring Your Animations Run Really Smoothly 5.1 What Is a Smooth Animation 5.2 Creating Responsive 60 fps Animations | G34: CLO1, CLO2,CLO3 | I34: 2 | M34: 2 | S34: 2 | T34: 6 | U34: 5.0 Ensuring Your Animations Run Really Smoothly 5.1 What Is a Smooth Animation 5.2 Creating Responsive 60 fps Animations
C35: 6.0 Transitions, Animations, and Javascript 6.1 It's Just Property Changes 6.2 A Tale of Two Styling Approaches 6.3 Animating with requestAnimationFrame 6.4 Basic Keyframe Animation | G35: CLO1, CLO2,CLO3 | I35: 2 | M35: 2 | S35: 2 | T35: 6 | U35: 6.0 Transitions, Animations, and Javascript 6.1 It's Just Property Changes 6.2 A Tale of Two Styling Approaches 6.3 Animating with requestAnimationFrame 6.4 Basic Keyframe Animation
C36: 7.0 CSS Animation Versus CSS Transitions 7.1 Similarities 7.2 Differences | G36: CLO1, CLO2,CLO3 | I36: 1 | M36: 1 | S36: 1 | T36: 3 | U36: 7.0 CSS Animation Versus CSS Transitions 7.1 Similarities 7.2 Differences
C37: 8.0 Animating Your Links to Life 8.1 The Starting Point 8.2 Animated Underline 8.3 Simple Background Color Change 8.4 Cooler Background Color Change | G37: CLO1, CLO2,CLO3 | I37: 1 | M37: 1 | S37: 1 | T37: 3 | U37: 8.0 Animating Your Links to Life 8.1 The Starting Point 8.2 Animated Underline 8.3 Simple Background Color Change 8.4 Cooler Background Color Change
C38: 9.0 Simple Text Fade and Scale Animation 9.1 The Example | G38: CLO1, CLO2,CLO3 | I38: 2 | M38: 2 | S38: 2 | T38: 6 | U38: 9.0 Simple Text Fade and Scale Animation 9.1 The Example
C39: 10.0 Creating a Smooth Sliding Menu 10.1 How the Sliding Menu Works 10.2 Creating the Sliding Menu | G39: CLO1, CLO2,CLO3 | I39: 2 | M39: 2 | S39: 2 | T39: 6 | U39: 10.0 Creating a Smooth Sliding Menu 10.1 How the Sliding Menu Works 10.2 Creating the Sliding Menu
C40: 11.0 Scroll-Activated Animations 11.1 The Basic Idea 11.2 Building It All Out | G40: CLO1, CLO2,CLO3 | I40: 2 | M40: 2 | S40: 2 | T40: 6 | U40: 11.0 Scroll-Activated Animations 11.1 The Basic Idea 11.2 Building It All Out
C41: 12.0 Parallax Scrolling 12.1 Overview of How the Parallax Effect Works 12.2 Getting Started | G41: CLO1, CLO2,CLO3 | I41: 2 | M41: 2 | S41: 2 | T41: 6 | U41: 12.0 Parallax Scrolling 12.1 Overview of How the Parallax Effect Works 12.2 Getting Started
C42: 13.0 Sprite Sheet Animations Using Only CSS 13.1 Creating the Sprite Sheet | G42: CLO1, CLO2,CLO3 | I42: 2 | M42: 2 | S42: 2 | T42: 6 | U42: 13.0 Sprite Sheet Animations Using Only CSS 13.1 Creating the Sprite Sheet
C43: 14.0 Creating a Sweet Content Slider 14.1 Overview of How It Works 14.2 The Content 14.3 Clipping the Content 14.4 The Navigation Links 14.5 Making the Content Actually Slide 14.6 Understanding the Code (and More!) | G43: CLO1, CLO2,CLO3 | I43: 2 | M43: 2 | S43: 4 | T43: 8 | U43: 14.0 Creating a Sweet Content Slider 14.1 Overview of How It Works 14.2 The Content 14.3 Clipping the Content 14.4 The Navigation Links 14.5 Making the Content Actually Slide 14.6 Understanding the Code (and More!)
T44: =SUM(T30:T43) -> 68
C46: Continuous Assessment | L46: Percentage (%) | N46: F2F | Q46: NF2F | T46: SLT
C47: 1 | D47: Assignment (3) | L47: 10 | Q47: 6 | T47: =SUM(N47:S47) -> 6
C48: 2 | D48: Lab Skills (4) | L48: 10 | N48: 8 | Q48: 2 | T48: 10 | U48: =D48 -> Lab Skills (4)
C49: 3 | D49: Test 1 | L49: 10 | N49: 1.5 | Q49: 4 | T49: 5.5 | U49: Test 1
C50: 4 | D50: Test 2 | L50: 10 | N50: 1.5 | Q50: 4 | T50: 5.5 | U50: Test 2
C51: 5 | D51: Project | L51: 10 | N51: 1 | Q51: 12 | T51: 13 | U51: Project
C52: Total | T52: =SUM(T47:T51) -> 40
C54: Final Assessment | L54: Percentage (%) | N54: F2F | Q54: NF2F | T54: SLT
C55: 1 | D55: Final Examination | L55: 50 | N55: 2.5 | Q55: 9.5 | T55: =SUM(N55:S55) -> 12
C56: 2 | T56: 0 | U56: =D56 -> 
C57: 3 | T57: 0
C58: 4 | T58: 0
C59: 5 | T59: 0
T60: =SUM(T55:T59) -> 12 | U60: =D60 -> 
C62: **Please tick (ü) in this course is Latihan Industri / Clinical Placement / Practicum / WBL using 2 weeks; 1 credit formula | T62: =+T44+T52+T60 -> 120
C63: L= Lecture, T=Tutorial, P=Practical, O=Others, F2F=Face to Face, NF2F=None Face to Face
C64: *Indicate the CLO based on the CLO's numbering in item 8
B65: 11 | C65: Identify special requirement to deliver the course (e.g: software, nursery, computer lab, simulation room, etc) | H65: HTML 5 Animation Tools
U66: =H66 -> 
B67: 12 | C67: References: | H67: Kirupa Chinnathambi, Creating Web Animations Bringing Your UIs to Life, O'Reilly Media, 2017.
C68: (include required and further readings, and should be the most current) | H68: Estelle Weyl, Transitions and Animations in CSS: Adding Motion with CSS, 1st Edition, O'Reilly Media, 2016. Kirupa Chinnathambi, Animation in HTML, CSS, and JavaScript, 3rd Edition, CreateSpace Independent Publishing Platform, 2014. Steven Bradley, CSS Animations and Transitions for the Modern Web,1st Edition, Adobe Press, 2014. Alexis Goldstein, Learning CSS3 Animations and Transitions: A Hands-on Guide to Animating in CSS3 with Transforms, Transitions, Keyframes, and JavaScript,1st Edition, Addison-Wesley, 2012. | U68: =H68 -> Estelle Weyl, Transitions and Animations in CSS: Adding Motion with CSS, 1st Edition, O'Reilly Media, 2016. Kirupa Chinnathambi, Animation in HTML, CSS, and JavaScript, 3rd Edition, CreateSpace Independent Publishing Platform, 2014. Steven Bradley, CSS Animations and Transitions for the Modern Web,1st Edition, Adobe Press, 2014. Alexis Goldstein, Learning CSS3 Animations and Transitions: A Hands-on Guide to Animating in CSS3 with Transforms, Transitions, Keyframes, and JavaScript,1st Edition, Addison-Wesley, 2012.
B69: 13 | C69: Other additional Information | H69: Last updated : 24 November 2019 | U69: Last updated : 24 November 2019

Sheet History of Art
B2: Back | C2: Name of Course | D2: History of Art and Design | AK2: 1 | AL2: 1
C3: Course Code | D3: CMM1133 | AJ3: √ | AK3: 2 | AL3: 2
B4: 2 | C4: Synopsis | D4: This course is required to brief student about the basic elements of multimedia and the skill required for certain purpose of handling the multimedia projects. Students should know about the authoring tools either the software or hardware. For the practical session, student will use the Director as a authoring tools to develop their project. In addition, student will recognized and differentiate between software and hardware for the computer especially based on multimedia scope. | U4: =D4 -> This course is required to brief student about the basic elements of multimedia and the skill required for certain purpose of handling the multimedia projects. Students should know about the authoring tools either the software or hardware. For the practical session, student will use the Director as a authoring tools to develop their project. In addition, student will recognized and differentiate between software and hardware for the computer especially based on multimedia scope. | AK4: 3 | AL4: 3
B5: 3 | C5: Name (s) of Academic Staff | D5: Nuur Fatihah Mohd Yusoff | AK5: 4 | AL5: 4
B6: 4 | C6: Semester | D6: Semester | E6: 2 | F6: Year | G6: 1 | AK6: 5
B7: 5 | C7: Credit Value | D7: 3 | AK7: 6
B8: 6 | C8: Pre-requisite / Co-requisite (if any) | AK8: 7
B9: 7 | C9: Course Learning Outcomes (CLO): At the end of the course the students will be able to: | AK9: 8
C10: (example) - explain the basic principles of immunisation (C2, PLO1) | AK10: 9
C11: CLO1 | D11: Describe a brief history, development of art and important events that reflect man's achievement in the field of art. (C2, PLO1) | U11: =D11 -> Describe a brief history, development of art and important events that reflect man's achievement in the field of art. (C2, PLO1) | AK11: 10
C12: CLO2 | D12: Discover the development of art based on different art movements. (C3, PLO2) | U12: Discover the development of art based on different art movements. (C3, PLO2) | AK12: 11
C13: CLO3 | D13: Work collaboratively in a team to accomplish an assigned project within a given time. (P3, A2, PLO4)
AK14: 12
B15: 8 | C15: Mapping of the Course Learning Outcomes to the Programme Learning Outcomes, Teaching Methods and Assessment:
C16: Course Learning Outcomes (CLO) | D16: Programme Learning Outcomes (PLO) | P16: Teaching Methods | S16: Assessment
D17: PLO1 | E17: PLO2 | F17: PLO3 | G17: PLO4 | H17: PLO5 | I17: PLO6 | J17: PLO7 | K17: PLO8 | L17: PLO9 | M17: PLO10 | N17: PLO11 | O17: PLO12
C18: CLO1 | D18: √ | P18: Lecture | Discussion | S18: Quiz | Assignment | Tests | Final Examination | U18: =S18 -> Quiz | Assignment | Tests | Final Examination
C19: CLO2 | E19: √ | P19: Lecture | Discussion | S19: Quiz | Assignment | Tests | Final Examination
C20: CLO3 | G20: √ | P20: Informal Co-operative Learning | Presentation | S20: Project
C21: (The description must be read together with standards 2.1.2, 2.2.1 and 2.2.2 in Area 2 - pages 16 & 18)
B22: 9 | C22: Transferable skills (if applicable) | G22: 1 | H22: Knowledge
C23: (Skills learned in the course of study which can be useful and utilised in other settings) | G23: 2 | H23: Critical Thinking and Problem Solving
G24: 3 | H24: Teamwork skill
B25: 10 | C25: Distribution of Students Learning Time (SLT)
C26: Course Content Outline | G26: CLO | I26: Teaching and Learning Activities | T26: SLT
I27: Guided learning (F2F) | Q27: Guided Learning (NF2F) eg: e-learning | S27: Independent learning (NF2F)
I28: L | K28: T | M28: P | O28: O
C29: 1.0 Introduction to History of Art and Design 1.1 Art 1.2 Design | G29: CLO1 CLO2 CLO3 | I29: 2 | K29: 2 | S29: 2 | T29: =SUM(I29:S29) -> 6
C30: 2.0 Prehistoric 2.1 Paleolithic 2.2 Mesolitihic 2.3 Neolithic | G30: CLO1 CLO2 CLO3 | I30: 2 | K30: 2 | S30: 2 | T30: 6 | U30: =C30 -> 2.0 Prehistoric 2.1 Paleolithic 2.2 Mesolitihic 2.3 Neolithic
C31: 3.0 Ancient Period 3.1 Egyptian Period 3.2 Mesotamian Art 3.3 Persian Art 3.4 Aegean Art 3.5 Greek Art 3.6 Etruscan Art 3.7 Roman Art | G31: CLO1 CLO2 CLO3 | I31: 4 | K31: 4 | S31: 4 | T31: 12 | U31: 3.0 Ancient Period 3.1 Egyptian Period 3.2 Mesotamian Art 3.3 Persian Art 3.4 Aegean Art 3.5 Greek Art 3.6 Etruscan Art 3.7 Roman Art
C32: 4.0 Middle Ages 4.1 Jewish Art 4.2 Early Medieval Art 4.3 Byzantium Art 4.4 Islamic Art 4.5 Early Medieval Art 4.6 Romanesque Art 4.7 Gothic | G32: CLO1 CLO2 CLO3 | I32: 4 | K32: 4 | S32: 4 | T32: 12 | U32: 4.0 Middle Ages 4.1 Jewish Art 4.2 Early Medieval Art 4.3 Byzantium Art 4.4 Islamic Art 4.5 Early Medieval Art 4.6 Romanesque Art 4.7 Gothic
C33: 5.0 Renaissance 5.1 Late Gothic 5.2 Early Renaissance 5.3 Byzantium Art 5.4 Climax of Rennaissance 5.5 Mannerism | G33: CLO1 CLO2 CLO3 | I33: 4 | K33: 4 | S33: 4 | T33: 12 | U33: 5.0 Renaissance 5.1 Late Gothic 5.2 Early Renaissance 5.3 Byzantium Art 5.4 Climax of Rennaissance 5.5 Mannerism
C34: 6.0 Modern Art 6.1 Modernism, Impressionism and Symbolism 6.2 Art Nouveau, Expressionism, Fauvism 6.3 Cubism, Futurism and Constructivism 6.4 Art Deco, Bauhaus, Dadaism, Surrealism and Abstract Art 6.5 Art Brut, Pop Art, Op Art and Graffiti | G34: CLO1 CLO2 CLO3 | I34: 4 | K34: 4 | S34: 4 | T34: 12
C35: 7.0 Culture Art 7.1 Islamic Art 7.2 Chinese Art 7.3 Indian Art | G35: CLO1 CLO2 CLO3 | I35: 4 | K35: 4 | S35: 4 | T35: =SUM(I35:S35) -> 12 | U35: =C35 -> 7.0 Culture Art 7.1 Islamic Art 7.2 Chinese Art 7.3 Indian Art
U36: =#REF! -> #REF!
C37: Total | T37: =SUM(T29:T36) -> 72 | U37: =C37 -> Total
C39: Continuous Assessment | L39: Percentage (%) | N39: F2F | Q39: NF2F | T39: SLT
C40: 1 | D40: Quiz (4) | L40: 10 | N40: 2 | Q40: 2 | T40: =SUM(N40:S40) -> 4 | U40: =D40 -> Quiz (4)
C41: 2 | D41: Test (2) | L41: 20 | N41: 3 | Q41: 6 | T41: 9 | U41: Test (2)
C42: 3 | D42: Assignment (2) | L42: 10 | Q42: 8 | T42: 8 | U42: Assignment (2)
C43: 4 | D43: Project | L43: 10 | N43: 3 | Q43: 13 | T43: 16 | U43: Project
C44: Total | T44: =SUM(T40:T43) -> 37
C46: Final Assessment | L46: Percentage (%) | N46: F2F | Q46: NF2F | T46: SLT
C47: 1 | D47: Final Examination | L47: 50 | N47: 2.5 | Q47: 8.5 | T47: =SUM(N47:S47) -> 11
C48: 2 | T48: 0 | U48: =D48 -> 
C49: 3 | T49: 0
C50: 4 | T50: 0
C51: 5 | T51: 0
T52: =SUM(T47:T51) -> 11 | U52: =D52 -> 
C54: **Please tick (ü) in this course is Latihan Industri / Clinical Placement / Practicum / WBL using 2 weeks; 1 credit formula | T54: =+T37+T44+T52 -> 120
C55: L= Lecture, T=Tutorial, P=Practical, O=Others, F2F=Face to Face, NF2F=None Face to Face
C56: *Indicate the CLO based on the CLO's numbering in item 8
B57: 11 | C57: Identify special requirement to deliver the course (e.g: software, nursery, computer lab, simulation room, etc) | H57: Adobe Director
U58: =H58 -> 
B59: 12 | C59: References:
C60: (include required and further readings, and should be the most current) | H60: 1. Meggs, P. B., & Purvis, A. W. (2016). Meggs' History of Graphic Design. John Wiley & Sons. 2. Stephen Little, (2018). Understanding Arts. Bloomsbury Publishing PLC. 3. Diana Newall, (2017). Art and Its Global Histories - A Reader. Manchester University Press. | U60: =H60 -> 1. Meggs, P. B., & Purvis, A. W. (2016). Meggs' History of Graphic Design. John Wiley & Sons. 2. Stephen Little, (2018). Understanding Arts. Bloomsbury Publishing PLC. 3. Diana Newall, (2017). Art and Its Global Histories - A Reader. Manchester University Press.
B61: 13 | C61: Other additional Information | H61: Project: 1. Produce 100 years of arts. Last updated : 24 November 2019 | U61: Project: 1. Produce 100 years of arts. Last updated : 24 November 2019

Sheet Storyboard
B2: Back | C2: Name of Course | D2: Storyboarding | AK2: 1 | AL2: 1
C3: Course Code | D3: CMM2163 | AJ3: √ | AK3: 2 | AL3: 2
B4: 2 | C4: Synopsis | D4: This courses is visualizing the script from the organization of project’s content. It consists the process of the visual action sequentially in a logical narrative. The storyboard are useful tools for produced the ideas to client visually which contains the story, idea and development. Student will be exposed with designation of the commercials, film and television title and video presentation as well as can apply the skills in 2D and 3D animation and interaction design. Additionally, this course teaches story-based concepting skills and techniques as well as basic animatic production. | U4: =D4 -> This courses is visualizing the script from the organization of project’s content. It consists the process of the visual action sequentially in a logical narrative. The storyboard are useful tools for produced the ideas to client visually which contains the story, idea and development. Student will be exposed with designation of the commercials, film and television title and video presentation as well as can apply the skills in 2D and 3D animation and interaction design. Additionally, this course teaches story-based concepting skills and techniques as well as basic animatic production. | AK4: 3 | AL4: 3
B5: 3 | C5: Name (s) of Academic Staff | D5: Nuur Fatihah Mohd Yusoff | AK5: 4 | AL5: 4
B6: 4 | C6: Semester | D6: Semester | E6: 3 | F6: Year | G6: 2 | AK6: 5
B7: 5 | C7: Credit Value | D7: =IF(T57=40,1,(IF(T57=80,2,(IF(T57=120,3,(IF(T57=160,4,IF(T57=200,5,IF(T57=240,6,""))))))))) -> 3 | AK7: 6
B8: 6 | C8: Pre-requisite / Co-requisite (if any) | AK8: 7
B9: 7 | C9: Course Learning Outcomes (CLO): At the end of the course the students will be able to: | AK9: 8
C10: (example) - explain the basic principles of immunisation (C2, PLO1) | AK10: 9
C11: CLO1 | D11: Use storyboard concept of characters, thumbnails, tonal sketches and story sequences in drawing process. (C3, PLO1) | U11: =D11 -> Use storyboard concept of characters, thumbnails, tonal sketches and story sequences in drawing process. (C3, PLO1) | AK11: 10
C12: CLO2 | D12: Apply basic drawing techniques to create legible storyboards. (C3, P3, PLO3) | U12: Apply basic drawing techniques to create legible storyboards. (C3, P3, PLO3) | AK12: 11
C13: CLO3 | D13: Produce a series of cohesive storyboards to accomplish an assigned project within a given time frame. (A2, LL2, PLO9)
AK14: 12
B15: 8 | C15: Mapping of the Course Learning Outcomes to the Programme Learning Outcomes, Teaching Methods and Assessment:
C16: Course Learning Outcomes (CLO) | D16: Programme Learning Outcomes (PLO) | P16: Teaching Methods | S16: Assessment
D17: PLO1 | E17: PLO2 | F17: PLO3 | G17: PLO4 | H17: PLO5 | I17: PLO6 | J17: PLO7 | K17: PLO8 | L17: PLO9 | M17: PLO10 | N17: PLO11 | O17: PLO12
C18: CLO1 | D18: √ | P18: Lecture | Informal Cooperative Learning | S18: Tests | Final Examination | U18: =S18 -> Tests | Final Examination
C19: CLO2 | F19: √ | P19: Technical Skills | Lab activities | S19: Drawing & Lab Skills
C20: CLO3 | L20: √ | P20: Lecture | Discussion | S20: Assignment | Project
C21: CLO4
C22: (The description must be read together with standards 2.1.2, 2.2.1 and 2.2.2 in Area 2 - pages 16 & 18)
B23: 9 | C23: Transferable skills (if applicable) | G23: 1 | H23: Knowledge & Understanding
C24: (Skills learned in the course of study which can be useful and utilised in other settings) | G24: 2 | H24: Practical skill
G25: 3 | H25: Personal Skill, Lifelong Learning
B26: 10 | C26: Distribution of Students Learning Time (SLT)
C27: Course Content Outline | G27: CLO | I27: Teaching and Learning Activities | T27: SLT
I28: Guided learning (F2F) | Q28: Guided Learning (NF2F) eg: e-learning | S28: Independent learning (NF2F)
I29: L | K29: T | M29: P | O29: O
C30: 1.0 Creating Concept and Characters 1.1 Finding the idea 1.2 Walking the story line 1.3 Creating outlines 1.4 Treatment and beginning character development | G30: CLO1 CLO2 | I30: 2 | M30: 2 | S30: 2 | T30: =SUM(I30:S30) -> 6
C31: 2.0 How Storyboard Took Over the Movie? 2.1 Live action and animation boards 2.2 The hybrid film 2.3 Shaping the frame 2.4 The fixed frame 2.5 Commercial Storyboards 2.6 Symbolic animal and objects | G31: CLO1 CLO2 | I31: 2 | M31: 2 | S31: 2 | T31: 6 | U31: =C31 -> 2.0 How Storyboard Took Over the Movie? 2.1 Live action and animation boards 2.2 The hybrid film 2.3 Shaping the frame 2.4 The fixed frame 2.5 Commercial Storyboards 2.6 Symbolic animal and objects
C32: 3.0 Situation and Character Driven Stories 3.1 Linear Stories 3.2 Characters arcs and stories subtexts 3.3 Nonlinear stories 3.4 Defining conflicts and story arcs 3.5 Parodies and Pastiches | G32: CLO1 CLO2 | I32: 2 | M32: 2 | S32: 2 | T32: 6 | U32: 3.0 Situation and Character Driven Stories 3.1 Linear Stories 3.2 Characters arcs and stories subtexts 3.3 Nonlinear stories 3.4 Defining conflicts and story arcs 3.5 Parodies and Pastiches
C33: 4.0 Designing Characters and Personality 4.1 Form follows action 4.2 The importance of scale 4.3 Scale and storytelling 4.4 Getting into character 4.5 Evolving the character 4.6 The shape of things | G33: CLO2 CLO3 | I33: 4 | M33: 4 | S33: 2 | T33: 10 | U33: 4.0 Designing Characters and Personality 4.1 Form follows action 4.2 The importance of scale 4.3 Scale and storytelling 4.4 Getting into character 4.5 Evolving the character 4.6 The shape of things
C34: 5.0 Color and Design in Storytelling 5.1 Location 5.2 Establishing shots 5.3 Colorful characters 5.4 Symbolic colours | G34: CLO1 CLO2 CLO3 | I34: 2 | M34: 2 | S34: 4 | T34: 8 | U34: 5.0 Color and Design in Storytelling 5.1 Location 5.2 Establishing shots 5.3 Colorful characters 5.4 Symbolic colours
C35: 6.0 Thumbnails and Tonal Sketches 6.1 Quick sketches and thumbnails 6.2 Reality is overrated? 6.3 Graphic images ahead 6.4 Using contrast to direct the eyes | G35: CLO1 CLO2 CLO3 | I35: 2 | M35: 2 | S35: 2 | T35: 6 | U35: 6.0 Thumbnails and Tonal Sketches 6.1 Quick sketches and thumbnails 6.2 Reality is overrated? 6.3 Graphic images ahead 6.4 Using contrast to direct the eyes
C36: 7.0 Story Beat 7.1 Basic Staging 7.2 Creating story sequences 7.3 Pacing action on rough boards 7.4 Creating a performance on storyboards 7.5 Art direction and storytelling | G36: CLO1 CLO2 CLO3 | I36: 4 | M36: 4 | S36: 4 | T36: 12 | U36: 7.0 Story Beat 7.1 Basic Staging 7.2 Creating story sequences 7.3 Pacing action on rough boards 7.4 Creating a performance on storyboards 7.5 Art direction and storytelling
C37: 8.0 Pitch Etiquette and Procedures 8.1 Digital Pitch 8.2 Refining story reels 8.3 Story team etiquette 8.4 Modeling character in three dimensions | G37: CLO2 CLO3 | I37: 4 | M37: 4 | S37: 4 | T37: 12 | U37: 8.0 Pitch Etiquette and Procedures 8.1 Digital Pitch 8.2 Refining story reels 8.3 Story team etiquette 8.4 Modeling character in three dimensions
C38: 9.0 Preparing for Production 9.1 Final animatics 9.2 Final boards | G38: CLO1 CLO2 CLO3 | I38: 2 | M38: 2 | S38: 2 | T38: 6 | U38: 9.0 Preparing for Production 9.1 Final animatics 9.2 Final boards
C39: Total | T39: =SUM(T30:T38) -> 72 | U39: Total
C41: Continuous Assessment | L41: Percentage (%) | N41: F2F | Q41: NF2F | T41: SLT
C42: 1 | D42: Assignment (2) | L42: 5 | Q42: 6 | T42: =SUM(N42:S42) -> 6
C43: 2 | D43: Lab Skill (2) | L43: 10 | N43: 4 | Q43: 2 | T43: 6
C44: 3 | D44: Drawing Skill (2) | L44: 5 | Q44: 5 | T44: 5 | U44: =D44 -> Drawing Skill (2)
C45: 4 | D45: Test (2) | L45: 15 | N45: 3 | Q45: 4 | T45: 7 | U45: Test (2)
C46: 5 | D46: Project | L46: 15 | N46: 1 | Q46: 12 | T46: 13
C47: Total | T47: =SUM(T42:T46) -> 37 | U47: =D47 -> 
C49: Final Assessment | L49: Percentage (%) | N49: F2F | Q49: NF2F | T49: SLT
C50: 1 | D50: Final Examination | L50: 50 | N50: 2.5 | Q50: 8.5 | T50: =SUM(N50:S50) -> 11
C51: 2 | T51: 0 | U51: =D51 -> 
C52: 3 | T52: 0
C53: 4 | T53: 0
C54: 5 | T54: 0
T55: =SUM(T50:T54) -> 11
C57: **Please tick (ü) in this course is Latihan Industri / Clinical Placement / Practicum / WBL using 2 weeks; 1 credit formula | T57: =+T39+T47+T55 -> 120
C58: L= Lecture, T=Tutorial, P=Practical, O=Others, F2F=Face to Face, NF2F=None Face to Face
C59: *Indicate the CLO based on the CLO's numbering in item 8
B60: 11 | C60: Identify special requirement to deliver the course (e.g: software, nursery, computer lab, simulation room, etc) | H60: 8.5” x 11” high quality drawing paper drawing pencils markers, pens, watercolors or any other art supplies (optional) Headphones/earbuds (recommended)
U61: =H61 -> 
B62: 12 | C62: References: | H62: 1. Prepare to Board! Creating Story and Characters for Animated Features and Shorts 3rd Edition, Kindle Edition, 2017.
C63: (include required and further readings, and should be the most current) | U63: =H62 -> 1. Prepare to Board! Creating Story and Characters for Animated Features and Shorts 3rd Edition, Kindle Edition, 2017.
B64: 13 | C64: Other additional Information | H64: Lab Activities: Lab 1: Thumbnails Lab 2: Perspective drawing Lab 3: Drawing from a script Lab 4: Story to Shotlist to Storyboards Lab 5: Digital Storyboards Lab 6: Animatic Basics Lab 7: Final animatics Lab 8: Final boards | U64: =H64 -> Lab Activities: Lab 1: Thumbnails Lab 2: Perspective drawing Lab 3: Drawing from a script Lab 4: Story to Shotlist to Storyboards Lab 5: Digital Storyboards Lab 6: Animatic Basics Lab 7: Final animatics Lab 8: Final boards
H65: Last updated : 24 November 2019

Sheet Visual Communication
B2: Back | C2: Name of Course | D2: Visual Communication | AK2: 1 | AL2: 1
C3: Course Code | D3: CMM2413 | AJ3: √ | AK3: 2 | AL3: 2
B4: 2 | C4: Synopsis | D4: This course introduces students to communication in a creative and innovative perspective through visual imagery and media. Students will learn the concepts, theories, aesthetics and skills of visual communication, covering visual persuasion, photography, graphic design, cultural and ethical issues, visualization of ideas, and others. Emphasis will be placed on the ability to conceive new and innovative solutions for specified communication issues. Relevant project works and case studies worldwide will be discussed. Techniques will also be introduced for accomplishing visual communication tasks with a range of media applications. Through hands-on practice, students will learn to apply theories into practice and to become creative and effective communicators in the media world. | U4: =D4 -> This course introduces students to communication in a creative and innovative perspective through visual imagery and media. Students will learn the concepts, theories, aesthetics and skills of visual communication, covering visual persuasion, photography, graphic design, cultural and ethical issues, visualization of ideas, and others. Emphasis will be placed on the ability to conceive new and innovative solutions for specified communication issues. Relevant project works and case studies worldwide will be discussed. Techniques will also be introduced for accomplishing visual communication tasks with a range of media applications. Through hands-on practice, students will learn to apply theories into practice and to become creative and effective communicators in the media world. | AK4: 3 | AL4: 3
B5: 3 | C5: Name (s) of Academic Staff | D5: Nur Hazwani binti Hamdan | AK5: 4 | AL5: 4
B6: 4 | C6: Semester | D6: Semester | E6: 3 | F6: Year | G6: 2 | AK6: 5
B7: 5 | C7: Credit Value | D7: =IF(T58=40,1,(IF(T58=80,2,(IF(T58=120,3,(IF(T58=160,4,IF(T58=200,5,IF(T58=240,6,""))))))))) -> 3 | AK7: 6
B8: 6 | C8: Pre-requisite / Co-requisite (if any) | AK8: 7
B9: 7 | C9: Course Learning Outcomes (CLO): At the end of the course the students will be able to: | AK9: 8
C10: (example) - explain the basic principles of immunisation (C2, PLO1) | AK10: 9
C11: CLO1 | D11: Apply the concepts and theories of visual communication. (C3, PLO1) | U11: =D11 -> Apply the concepts and theories of visual communication. (C3, PLO1) | AK11: 10
C12: CLO2 | D12: Solve problem on assigned project by construction a innovative communication projects by applying visual theories.(C3, CTPS2, CTPS3, PLO2) | U12: Solve problem on assigned project by construction a innovative communication projects by applying visual theories.(C3, CTPS2, CTPS3, PLO2) | AK12: 11
C13: CLO3 | D13: Demonstrate a sense of aesthetics and skills in communication through visual imagery and media. (P3, PLO5) | AK13: 12
B14: 8 | C14: Mapping of the Course Learning Outcomes to the Programme Learning Outcomes, Teaching Methods and Assessment:
C15: Course Learning Outcomes (CLO) | D15: Programme Learning Outcomes (PLO) | S15: Teaching Methods | T15: Assessment
D16: PLO1 | E16: PLO2 | F16: PLO3 | G16: PLO4 | H16: PLO5 | I16: PLO6 | J16: PLO7 | K16: PLO8 | L16: PLO9 | M16: PLO10 | N16: PLO11
C17: CLO1 | D17: √ | S17: Lecture | Lab Activities | T17: Test | Examination | U17: =S17 -> Lecture | Lab Activities
C18: CLO2 | E18: √ | S18: Lecture | Lab Activities | T18: Test | Assignment | Examination
C19: CLO3 | H19: √ | S19: Lab Activities | T19: Assignment | Project
C20: (The description must be read together with standards 2.1.2, 2.2.1 and 2.2.2 in Area 2 - pages 16 & 18)
B21: 9 | C21: Transferable skills (if applicable) | G21: 1 | H21: Knowledge and Understanding Skill
C22: (Skills learned in the course of study which can be useful and utilised in other settings) | G22: 2 | H22: Critical Thinking and Problem Solving Skill
G23: 3 | H23: Communication skill
B24: 10 | C24: Distribution of Students Learning Time (SLT)
C25: Course Content Outline | G25: CLO | I25: Teaching and Learning Activities | T25: SLT
I26: Guided learning (F2F) | Q26: Guided Learning (NF2F) eg: e-learning | S26: Independent learning (NF2F)
I27: L | K27: T | M27: P | O27: O
C28: 1.0 Introduction 1.1 History and Development of Visuals 1.2 Visual Communiation Theories | G28: CLO1 | I28: 2 | S28: 2 | T28: =SUM(I28:S28) -> 4
C29: 2.0 Image, Aesthetics & Culture 2.1 What is beauty 2.2 Cultural Influences on Visual Communication 2.3 Stereotypes | G29: CLO2 CLO3 | I29: 2 | M29: 1 | S29: 2 | T29: 5 | U29: =C29 -> 2.0 Image, Aesthetics & Culture 2.1 What is beauty 2.2 Cultural Influences on Visual Communication 2.3 Stereotypes
C30: 3.0 Visual Persuasion and Stereotypes 3.1 Discussion on Case Study | G30: CLO1 | I30: 2 | S30: 2 | T30: 4 | U30: 3.0 Visual Persuasion and Stereotypes 3.1 Discussion on Case Study
C31: 4.0 Principles of Design and Layout 4.1 Importance and Strategy Graphic Design | G31: CLO1 | I31: 2 | M31: 2 | S31: 2 | T31: 6 | U31: 4.0 Principles of Design and Layout 4.1 Importance and Strategy Graphic Design
C32: 5.0 Color 5.1 Color Theory 5.2 Color in Digital World 5.3 Physical and psychological implications of color | G32: CLO2 CLO3 | I32: 2 | M32: 2 | S32: 2 | T32: 6 | U32: 5.0 Color 5.1 Color Theory 5.2 Color in Digital World 5.3 Physical and psychological implications of color
C33: 6.0 Typography 6.1 Basics, rules of use and creative typography | G33: CLO2 CLO3 | I33: 2 | M33: 2 | S33: 2 | T33: 6 | U33: 6.0 Typography 6.1 Basics, rules of use and creative typography
C34: 7.0 Photography and Lighting | G34: CLO2 CLO3 | I34: 2 | M34: 2 | S34: 2 | T34: 6 | U34: 7.0 Photography and Lighting
C35: 8.0 Camera Control and Imaging | G35: CLO2 CLO3 | I35: 2 | M35: 2 | S35: 2 | T35: 6 | U35: 8.0 Camera Control and Imaging
C36: 9.0 Photo Editing | G36: CLO2 CLO3 | I36: 2 | M36: 2 | S36: 2 | T36: 6 | U36: 9.0 Photo Editing
C37: 10.0 Motion Pictures 10.1 History 10.2 Development 10.3 Implications | G37: CLO2 CLO3 | I37: 2 | M37: 2 | S37: 4 | T37: 8 | U37: 10.0 Motion Pictures 10.1 History 10.2 Development 10.3 Implications
C38: 11.0 Innovative Methods | G38: CLO1 | I38: 2 | S38: 4 | T38: 6 | U38: 11.0 Innovative Methods
C39: 12.0 Visualization Techniques 12.1 Strategy and Practise | G39: CLO1 | I39: 2 | M39: 2 | S39: 4 | T39: 8 | U39: 12.0 Visualization Techniques 12.1 Strategy and Practise
C40: Total | T40: =SUM(T28:T39) -> 71 | U40: Total
C42: Continuous Assessment | L42: Percentage (%) | N42: F2F | Q42: NF2F | T42: SLT
C43: 1 | D43: Test (2) | L43: 20 | N43: 3 | Q43: 4 | T43: =SUM(N43:S43) -> 7
C44: 2 | D44: Assignment (5) | L44: 10 | Q44: 5 | T44: 5 | U44: =D44 -> Assignment (5)
C45: 3 | D45: Lab Skill (5) | L45: 10 | N45: 10 | Q45: 5 | T45: 15 | U45: Lab Skill (5)
C46: 4 | D46: Project | L46: 10 | N46: 2 | Q46: 14 | T46: 16 | U46: Project
C47: 5 | T47: 0
C48: Total | T48: =SUM(T43:T47) -> 43
C50: Final Assessment | L50: Percentage (%) | N50: F2F | Q50: NF2F | T50: SLT
C51: 1 | D51: Final Examination | L51: 50 | N51: 2.5 | Q51: 3.5 | T51: =SUM(N51:S51) -> 6
C52: 2 | T52: 0 | U52: =D52 -> 
C53: 3 | T53: 0
C54: 4 | T54: 0
C55: 5 | T55: 0
T56: =SUM(T51:T55) -> 6 | U56: =D56 -> 
C58: **Please tick (ü) in this course is Latihan Industri / Clinical Placement / Practicum / WBL using 2 weeks; 1 credit formula | T58: =+T40+T48+T56 -> 120
C59: L= Lecture, T=Tutorial, P=Practical, O=Others, F2F=Face to Face, NF2F=None Face to Face
C60: *Indicate the CLO based on the CLO's numbering in item 8
B61: 11 | C61: Identify special requirement to deliver the course (e.g: software, nursery, computer lab, simulation room, etc) | H61: Photoshop / Lightroom, InDesign , Dreamweaver, Adobe Muse, Wix
U62: =H62 -> 
B63: 12 | C63: References:
C64: (include required and further readings, and should be the most current) | H64: 1. Golombisky, K., Hagen, R. (2016). White Space Is Not Your Enemy: A Beginner's Guide to Communicating Visually Through Graphic, Web and Multimedia Design (3rd ed.). Boca Raton: Taylor & Francis. 2. Lester, P. M. (2014). Visual Communication: Images with Messages (6th ed.). Boston, MA: Wadsworth Cengage Learning. 3. Long, B. (2015). Complete digital photography (8th ed.). Boston, MA: Cengage Learning PTR. 4. Osgood, R., & Hinshaw, M. (2014). Visual storytelling: Videography and post production in the digital age (2nd ed.). Boston, MA: Wadsworth Cengage Learning. | U64: =H64 -> 1. Golombisky, K., Hagen, R. (2016). White Space Is Not Your Enemy: A Beginner's Guide to Communicating Visually Through Graphic, Web and Multimedia Design (3rd ed.). Boca Raton: Taylor & Francis. 2. Lester, P. M. (2014). Visual Communication: Images with Messages (6th ed.). Boston, MA: Wadsworth Cengage Learning. 3. Long, B. (2015). Complete digital photography (8th ed.). Boston, MA: Cengage Learning PTR. 4. Osgood, R., & Hinshaw, M. (2014). Visual storytelling: Videography and post production in the digital age (2nd ed.). Boston, MA: Wadsworth Cengage Learning.
B65: 13 | C65: Other additional Information | H65: Last updated : 24 November 2019 | U65: Last updated : 24 November 2019

Sheet Drawing I
B2: Back | C2: Name of Course | D2: Drawing Fundamental I | AK2: 1 | AL2: 1
C3: Course Code | D3: CMM1123 | AJ3: √ | AK3: 2 | AL3: 2
B4: 2 | C4: Synopsis | D4: This course provides the students the basic guide to classical and contemporary drawing techniques and concepts,with emphasis on the understanding of their formal language and the fundamentals of artistic expression. Even though previous drawing experience is not a prerequisite for this course, the vigorous training provided will prepare students for going into needs in developing multimedia production. Drawing of still-life, landscape, and life models from observation are geared towards realism; at the same time, various other drawing styles might be explored. Linear perspective, pictorial composition, figure/ground relationships, shading techniques, tonal value, visual perception, spatial concepts, and critical thinking skills are all emphasized extensively. Various dry drawing media, such as graphite and charcoal, are the primary tools for this class. | U4: =D4 -> This course provides the students the basic guide to classical and contemporary drawing techniques and concepts,with emphasis on the understanding of their formal language and the fundamentals of artistic expression. Even though previous drawing experience is not a prerequisite for this course, the vigorous training provided will prepare students for going into needs in developing multimedia production. Drawing of still-life, landscape, and life models from observation are geared towards realism; at the same time, various other drawing styles might be explored. Linear perspective, pictorial composition, figure/ground relationships, shading techniques, tonal value, visual perception, spatial concepts, and critical thinking skills are all emphasized extensively. Various dry drawing media, such as graphite and charcoal, are the primary tools for this class. | AK4: 3 | AL4: 3
B5: 3 | C5: Name (s) of Academic Staff | D5: Nur Hazwani Hamdan | AK5: 4 | AL5: 4
B6: 4 | C6: Semester | D6: Semester | E6: 1 | F6: Year | G6: 1 | AK6: 5
B7: 5 | C7: Credit Value | D7: =IF(T56=40,1,(IF(T56=80,2,(IF(T56=120,3,(IF(T56=160,4,IF(T56=200,5,IF(T56=240,6,""))))))))) -> 3 | AK7: 6
B8: 6 | C8: Pre-requisite / Co-requisite (if any) | D8: None | AK8: 7
B9: 7 | C9: Course Learning Outcomes (CLO): At the end of the course the students will be able to: | AK9: 8
C10: (example) - explain the basic principles of immunisation (C2, PLO1) | AK10: 9
C11: CLO1 | D11: Apply the basic understanding of the principles of linear perspective, composition, proposition and texture. (C3, PLO1) | U11: =D11 -> Apply the basic understanding of the principles of linear perspective, composition, proposition and texture. (C3, PLO1) | AK11: 10
C12: CLO2 | D12: Demonstrate various drawing styles by using an appropriate drawing tool. (C3, P3, PLO3) | U12: Demonstrate various drawing styles by using an appropriate drawing tool. (C3, P3, PLO3) | AK12: 11
C13: CLO3 | D13: Demonstrate the ability to verbally articulate ideas and processes in drawing with positive attitude and good ethics during the course. (A3, EM1, EM2, PLO11)
AK14: 12
B15: 8 | C15: Mapping of the Course Learning Outcomes to the Programme Learning Outcomes, Teaching Methods and Assessment:
C16: Course Learning Outcomes (CLO) | D16: Programme Learning Outcomes (PLO) | P16: Teaching Methods | S16: Assessment
D17: PLO1 | E17: PLO2 | F17: PLO3 | G17: PLO4 | H17: PLO5 | I17: PLO6 | J17: PLO7 | K17: PLO8 | L17: PLO9 | M17: PLO10 | N17: PLO11
C18: CLO1 | D18: √ | P18: Lecture | Discussion | Informal Co-Opeative Learning | S18: Assignment | Test | Final Examination | U18: =S18 -> Assignment | Test | Final Examination
C19: CLO2 | F19: √ | P19: Studio Work | Informal Co-operative Learning | S19: Assignment | Drawing Skills | Project
C20: CLO3 | N20: √ | P20: Lecture | Discussion| Studio Work | Informal Co-operative Learning | Independent | S20: Project
C22: (The description must be read together with standards 2.1.2, 2.2.1 and 2.2.2 in Area 2 - pages 16 & 18)
B23: 9 | C23: Transferable skills (if applicable) | G23: 1 | H23: Knowledge
C24: (Skills learned in the course of study which can be useful and utilised in other settings) | G24: 2 | H24: Practicall Skill
G25: 3 | H25: Values, Attitude and Ethics
B26: 10 | C26: Distribution of Students Learning Time (SLT)
C27: Course Content Outline | G27: CLO | I27: Teaching and Learning Activities | T27: SLT
I28: Guided learning (F2F) | Q28: Guided Learning (NF2F) eg: e-learning | S28: Independent learning (NF2F)
I29: L | K29: T | M29: P | O29: O
C30: 1.0 Introductory Lecture, Overview & Course Objectives, Materials | G30: CLO1 | I30: 2 | M30: 2 | S30: 2 | T30: =SUM(I30:S30) -> 6
C31: 2.0 Linear Perspective (one & two points, non-converging edges), Linear Perspective (three points, converging edges) & Hand Measurement | G31: CLO1, CLO2 | I31: 2 | M31: 2 | S31: 2 | T31: 6 | U31: =C31 -> 2.0 Linear Perspective (one & two points, non-converging edges), Linear Perspective (three points, converging edges) & Hand Measurement
C32: 3.0 Tonal Value, Tonal Gradation & Shading Techniques | G32: CLO1, CLO2 | I32: 2 | M32: 2 | S32: 2 | T32: 6 | U32: 3.0 Tonal Value, Tonal Gradation & Shading Techniques
C33: 4.0 Inclined Planes and Cast Shadow | G33: CLO1, CLO2 | I33: 2 | M33: 2 | S33: 2 | T33: 6 | U33: 4.0 Inclined Planes and Cast Shadow
C34: 5.0 Dark & Light Contrast - Side light, flat lighting (front) , rim lighting (back); Shape - Positive and Negative Shapes | G34: CLO1, CLO2 | I34: 4 | M34: 4 | S34: 4 | T34: 12 | U34: 5.0 Dark & Light Contrast - Side light, flat lighting (front) , rim lighting (back); Shape - Positive and Negative Shapes
C35: 6.0 Elements of Design - Square, Stage, Diamond, Circular, Linear Pattern & Line Expression (Pictography, Realism, Stylized, Cubism & Abstraction) | G35: CLO1, CLO2, CLO3 | I35: 4 | M35: 4 | S35: 4 | T35: 12
C36: 7.0 Abstract Quality in Realism Composition Space, Movement, Balance, Direction & Rhythm(Proportion and Golden section) | G36: CLO1, CLO2, CLO3 | I36: 2 | M36: 2 | S36: 2 | T36: 6
C37: 8.0 Proportion of the Human Head and Various Styles of Potrait Drawing | G37: CLO1, CLO2, CLO3 | I37: 2 | M37: 2 | S37: 2 | T37: 6 | U37: =C37 -> 8.0 Proportion of the Human Head and Various Styles of Potrait Drawing
C38: Total | T38: =SUM(T30:T37) -> 60 | U38: Total
C40: Continuous Assessment | L40: Percentage (%) | N40: F2F | Q40: NF2F | T40: SLT
C41: 1 | D41: Assignment | L41: 10 | Q41: 8.5 | T41: =SUM(N41:S41) -> 8.5
C42: 2 | D42: Test (1) | L42: 10 | N42: 1.5 | Q42: 3 | T42: 4.5 | U42: =D42 -> Test (1)
C43: 3 | D43: Drawing Skills (5) | L43: 20 | N43: 10 | Q43: 5 | T43: 15 | U43: Drawing Skills (5)
C44: 4 | D44: Project | L44: 10 | N44: 4.5 | Q44: 16 | T44: 20.5 | U44: Project
C45: 5 | T45: 0
C46: Total | T46: =SUM(T41:T45) -> 48.5
C48: Final Assessment | L48: Percentage (%) | N48: F2F | Q48: NF2F | T48: SLT
C49: 1 | D49: Final Examination | L49: 50 | N49: 2.5 | Q49: 9 | T49: =SUM(N49:S49) -> 11.5
C50: 2 | T50: 0 | U50: =D50 -> 
C51: 3 | T51: 0
C52: 4 | T52: 0
C53: 5 | T53: 0
T54: =SUM(T49:T53) -> 11.5 | U54: =D54 -> 
C56: **Please tick (ü) in this course is Latihan Industri / Clinical Placement / Practicum / WBL using 2 weeks; 1 credit formula | T56: =+T38+T46+T54 -> 120
C57: L= Lecture, T=Tutorial, P=Practical, O=Others, F2F=Face to Face, NF2F=None Face to Face
C58: *Indicate the CLO based on the CLO's numbering in item 8
B59: 11 | C59: Identify special requirement to deliver the course (e.g: software, nursery, computer lab, simulation room, etc)
U60: =H60 -> 
B61: 12 | C61: References: | H61: Walter Foster Creative Team, The Complete Beginner's Guide to Drawing, Walter Foster Publishing; (1 edition) 2015.
C62: (include required and further readings, and should be the most current) | H62: Kenneth W Auwvil, Perspective Drawing , 2nd Edition, Mountain View : Mayfield Publishing Company, 1997. ISBN 0-87484-943-8 | U62: =H62 -> Kenneth W Auwvil, Perspective Drawing , 2nd Edition, Mountain View : Mayfield Publishing Company, 1997. ISBN 0-87484-943-8
H63: Brian Curtis, Perceptual Drawing : Drawing From Observation, New York, NY: McGraw Hill, 2009. ISBN: 0073379182 | U63: Brian Curtis, Perceptual Drawing : Drawing From Observation, New York, NY: McGraw Hill, 2009. ISBN: 0073379182
B64: 13 | C64: Other additional Information | H64: Last updated : 24 November 2019 | U64: Last updated : 24 November 2019

Sheet Drawing II
B2: Back | C2: Name of Course | D2: Drawing Fundamental II | AK2: 1 | AL2: 1
C3: Course Code | D3: CMM1143 | AJ3: √ | AK3: 2 | AL3: 2
B4: 2 | C4: Synopsis | D4: Drawing Fundamental II (Digital Painting) is a foundation course for the 2D and 3D curriculum. This course Study the suitable features of the software applications and provides students the fundamental skill in the use of a drawing tablet and the painting program Photoshop as well as basic knowledge in the creation of concept art and backgrounds for 2D and 3D animations. Students can also apply skills learned in this class in other areas including motion graphics, illustration and game art. | U4: =D4 -> Drawing Fundamental II (Digital Painting) is a foundation course for the 2D and 3D curriculum. This course Study the suitable features of the software applications and provides students the fundamental skill in the use of a drawing tablet and the painting program Photoshop as well as basic knowledge in the creation of concept art and backgrounds for 2D and 3D animations. Students can also apply skills learned in this class in other areas including motion graphics, illustration and game art. | AK4: 3 | AL4: 3
B5: 3 | C5: Name (s) of Academic Staff | D5: Nur Hazwani Hamdan | AK5: 4 | AL5: 4
B6: 4 | C6: Semester | D6: Semester | E6: 2 | F6: Year | G6: 1 | AK6: 5
B7: 5 | C7: Credit Value | D7: =IF(T49=40,1,(IF(T49=80,2,(IF(T49=120,3,(IF(T49=160,4,IF(T49=200,5,IF(T49=240,6,""))))))))) -> 3 | AK7: 6
B8: 6 | C8: Pre-requisite / Co-requisite (if any) | AK8: 7
B9: 7 | C9: Course Learning Outcomes (CLO): At the end of the course the students will be able to: | AK9: 8
C10: (example) - explain the basic principles of immunisation (C2, PLO1) | AK10: 9
C11: CLO1 | D11: Apply the steps required to create a project in digital painting. (C3, PLO1) | U11: =D11 -> Apply the steps required to create a project in digital painting. (C3, PLO1) | AK11: 10
C12: CLO2 | D12: Demonstrate various drawing styles by using an appropriate drawing tool. (P3, C3, PLO3) | U12: Demonstrate various drawing styles by using an appropriate drawing tool. (P3, C3, PLO3) | AK12: 11
C13: CLO3 | D13: Demonstrate the ability to verbally articulate ideas and processes in drawing with positive attitude and good ethics during the course (A3,EM1, EM2, PLO11)
B14: 8 | C14: Mapping of the Course Learning Outcomes to the Programme Learning Outcomes, Teaching Methods and Assessment:
C15: Course Learning Outcomes (CLO) | D15: Programme Learning Outcomes (PLO) | P15: Teaching Methods | S15: Assessment
D16: PLO1 | E16: PLO2 | F16: PLO3 | G16: PLO4 | H16: PLO5 | I16: PLO6 | J16: PLO7 | K16: PLO8 | L16: PLO9 | M16: PLO10 | N16: PLO11 | O16: PLO12
C17: CLO1 | D17: √ | P17: Lecture | Discussion | Laboratory Work | S17: Assignment | Test | Final Examination | U17: =S17 -> Assignment | Test | Final Examination
C18: CLO2 | F18: √ | P18: Lecture | Discussion | Laboratory Work | S18: Assignment | Lab Skills | Project
C19: CLO3 | N19: √ | P19: Laboratory | Independent Study Presentation | S19: Project
C20: (The description must be read together with standards 2.1.2, 2.2.1 and 2.2.2 in Area 2 - pages 16 & 18)
B21: 9 | C21: Transferable skills (if applicable) | G21: 1 | H21: Knowledge
C22: (Skills learned in the course of study which can be useful and utilised in other settings) | G22: 2 | H22: Practicall Skill
G23: 3 | H23: Values, Attitude and Ethics
B24: 10 | C24: Distribution of Students Learning Time (SLT)
C25: Course Content Outline | G25: CLO | I25: Teaching and Learning Activities | T25: SLT
I26: Guided learning (F2F) | Q26: Guided Learning (NF2F) eg: e-learning | S26: Independent learning (NF2F)
I27: L | K27: T | M27: P | O27: O
C28: 1.0 Introduction to Digital Painting and Photoshop 1.1 Overview of Digital Painting 1.2 Computer basics 1.3 Introduction to the tablet 1.4 Photoshop Basics 1.5 Brush Basics 1.6 Creating Custom Brushes 1.7 Capture Brush Tip Shapes 1.8 Adding and changing Brush Dynamics 1.9 Painting and Blending Techniques | G28: CLO1 | I28: 4 | M28: 4 | S28: 4 | T28: =SUM(I28:S28) -> 12
C29: 2.0 Vector Tool 2.1 Creating Shape Layers and Paths 2.2 Stroking Paths with Brushes 2.3 Creating, Saving, and Loading Selections 2.4 Combining and Modifying Selections Channels and Masking Techniques | G29: CLO1 | I29: 2 | M29: 2 | S29: 2 | T29: 6 | U29: =C29 -> 2.0 Vector Tool 2.1 Creating Shape Layers and Paths 2.2 Stroking Paths with Brushes 2.3 Creating, Saving, and Loading Selections 2.4 Combining and Modifying Selections Channels and Masking Techniques
C30: 3.0 Mini Projects I 3.1 The project utilizes custom brushes, painting and blending techniques, and the stroke path command. 3.2 What Just Happened 3.3 The Longhand Version | G30: CLO3 | I30: 2 | M30: 2 | S30: 2 | T30: 6 | U30: 3.0 Mini Projects I 3.1 The project utilizes custom brushes, painting and blending techniques, and the stroke path command. 3.2 What Just Happened 3.3 The Longhand Version
C31: 4.0 Major Project 4.1 Students will create an original vehicle concept drawing utilizing the techniques learned in the previous exercises and mini project. The students will follow the process of creating the concept from thumbnails to final rendering. | G31: CLO3 | I31: 2 | M31: 2 | S31: 2 | T31: 6 | U31: 4.0 Major Project 4.1 Students will create an original vehicle concept drawing utilizing the techniques learned in the previous exercises and mini project. The students will follow the process of creating the concept from thumbnails to final rendering.
C32: 5.0 Mixer Brush & Light and Shadow. 5.1 Understanding the Mixer Brush Understanding Light and Shadow:Creating the illusion of volume and space with light and shadow | G32: CLO1 | I32: 2 | M32: 2 | S32: 2 | T32: 6 | U32: 5.0 Mixer Brush & Light and Shadow. 5.1 Understanding the Mixer Brush Understanding Light and Shadow:Creating the illusion of volume and space with light and shadow
C33: 6.0 Mini Project 6.1 Anatomy of Light: Students will using the information from the discussion and handouts on Light and Shadow to create the four shapes | G33: CLO2 | I33: 2 | M33: 2 | S33: 2 | T33: 6 | U33: 6.0 Mini Project 6.1 Anatomy of Light: Students will using the information from the discussion and handouts on Light and Shadow to create the four shapes
C34: 7.0 Photoshop Perspective Tool 7.1 Linear Perspective 7.2 Atmospheric Perspective 7.3 Color Perspective 7.4 Perspective Tool 7.5 Differences | G34: CLO1 | I34: 4 | M34: 4 | S34: 4 | T34: 12 | U34: 7.0 Photoshop Perspective Tool 7.1 Linear Perspective 7.2 Atmospheric Perspective 7.3 Color Perspective 7.4 Perspective Tool 7.5 Differences
C35: 8.0 Major Project Final 8.1 Students will create a digital painting and employing advanced painting techniques learned throughout the semester while following the creative process for creating a concept project. | G35: CLO2, CLO3 | I35: 2 | M35: 2 | S35: 2 | T35: 6 | U35: 8.0 Major Project Final 8.1 Students will create a digital painting and employing advanced painting techniques learned throughout the semester while following the creative process for creating a concept project.
T36: =SUM(T28:T35) -> 60
C38: Continuous Assessment | L38: Percentage (%) | N38: F2F | Q38: NF2F | T38: SLT
C39: 1 | D39: Assignment | L39: 10 | Q39: 8 | T39: =SUM(N39:S39) -> 8
C40: 2 | D40: Test (1) | L40: 10 | N40: 1.5 | Q40: 3 | T40: 4.5 | U40: =#REF! -> #REF!
C41: 3 | D41: Lab Skills (5) | L41: 20 | N41: 10 | Q41: 5 | T41: 15 | U41: =D40 -> Test (1)
C42: 4 | D42: Project | L42: 10 | N42: 4.5 | Q42: 13 | T42: 17.5 | U42: Lab Skills (5)
C43: Total | T43: =SUM(T39:T42) -> 45 | U43: Project
C45: Final Assessment | L45: Percentage (%) | N45: F2F | Q45: NF2F | T45: SLT
C46: 1 | D46: Final Examination | L46: 50 | N46: 2.5 | Q46: 12.5 | T46: =SUM(N46:S46) -> 15
T47: =SUM(T46) -> 15
U48: =D47 -> 
C49: **Please tick (ü) in this course is Latihan Industri / Clinical Placement / Practicum / WBL using 2 weeks; 1 credit formula | T49: =+T36+T43+T47 -> 120
C51: L= Lecture, T=Tutorial, P=Practical, O=Others, F2F=Face to Face, NF2F=None Face to Face
C52: *Indicate the CLO based on the CLO's numbering in item 8
B53: 11 | C53: Identify special requirement to deliver the course (e.g: software, nursery, computer lab, simulation room, etc) | H53: Paint Tool Sai, krita, GIMP2
U54: =H54 -> 
B55: 12 | C55: References: | H55: Faulkner, A. and Chavez, C., Adobe Photoshop CC Classroom in a Book (2018 release) 1st Edition, Adobe Press ISBN-13: 978-0134852485 Lesa Snider, The Missing Manual, O'Reilly Media, 2014 ISBN 978-1449342418
C56: (include required and further readings, and should be the most current) | U56: =H56 -> 
B57: 13 | H57: Last updated : 24 November 2019 | U57: Last updated : 24 November 2019

Sheet Creative Thinking
B2: Back | C2: Name of Course | D2: Creative Thinking | AK2: 1 | AL2: 1
C3: Course Code | D3: CMM1612 | AJ3: √ | AK3: 2 | AL3: 2
B4: 2 | C4: Synopsis | D4: This course explores the creative approaches of recent (and historic) innovations in business, industry, and education. Through a case study approach, this course cultivates intentional and systematic competencies in students in order to develop leaders capable of solving problems in multimedia. Students will draw insights from the most innovative and successful corporations to explore their approaches. Students will also examine the role of failure in innovations throughout history using foundational creative‐thinking concepts. | U4: =D4 -> This course explores the creative approaches of recent (and historic) innovations in business, industry, and education. Through a case study approach, this course cultivates intentional and systematic competencies in students in order to develop leaders capable of solving problems in multimedia. Students will draw insights from the most innovative and successful corporations to explore their approaches. Students will also examine the role of failure in innovations throughout history using foundational creative‐thinking concepts. | AK4: 3 | AL4: 3
B5: 3 | C5: Name (s) of Academic Staff | D5: Noor Harzun Hashbullah | AK5: 4 | AL5: 4
B6: 4 | C6: Semester | D6: Semester | E6: 1 | F6: Year | G6: 1 | AK6: 5
B7: 5 | C7: Credit Value | D7: =IF(T53=40,1,(IF(T53=80,2,(IF(T53=120,3,(IF(T53=160,4,IF(T53=200,5,IF(T53=240,6,""))))))))) -> 2 | AK7: 6
B8: 6 | C8: Pre-requisite / Co-requisite (if any) | AK8: 7
B9: 7 | C9: Course Learning Outcomes (CLO): At the end of the course the students will be able to: | AK9: 8
C10: (example) - explain the basic principles of immunisation (C2, PLO1) | AK10: 9
C11: CLO1 | D11: Apply the design of the creative process to educational experiences and endeavor generally. (C3, PLO1) | U11: =#REF! -> #REF! | AK11: 10
C12: CLO2 | D12: Solve the problem based on case studies using relevant materials to innovations in educational and business settings.(C3, CTPS3, PLO2) | U12: #REF! | AK12: 11
C13: CLO3 | D13: Build effective projects that provide an innovative solution to real‐world problems using technology. (P3, PLO3)
B14: 8 | C14: Mapping of the Course Learning Outcomes to the Programme Learning Outcomes, Teaching Methods and Assessment:
C15: Course Learning Outcomes (CLO) | D15: Programme Learning Outcomes (PLO) | P15: Teaching Methods | S15: Assessment
D16: PLO1 | E16: PLO2 | F16: PLO3 | G16: PLO4 | H16: PLO5 | I16: PLO6 | J16: PLO7 | K16: PLO8 | L16: PLO9 | M16: PLO10 | N16: PLO11 | O16: PLO12
C17: CLO1 | D17: √ | P17: Lecture | Discussion | S17: Test | Assignment | Final Examination | U17: =S17 -> Test | Assignment | Final Examination
C18: CLO2 | E18: √ | P18: Cooperative Learning l Discussion | S18: Assignment | Final Examination
C19: CLO3 | F19: √ | P19: Cooperative Learning l Discussion | S19: Project
C20: (The description must be read together with standards 2.1.2, 2.2.1 and 2.2.2 in Area 2 - pages 16 & 18)
B21: 9 | C21: Transferable skills (if applicable) | G21: 1 | H21: Knowledge, Social Skils and Responsibility
C22: (Skills learned in the course of study which can be useful and utilised in other settings) | G22: 2 | H22: Creative Thinking and Problem Solving
G23: 3 | H23: Communication and Teamwork
B24: 10 | C24: Distribution of Students Learning Time (SLT)
C25: Course Content Outline | G25: CLO | I25: Teaching and Learning Activities | T25: SLT
I26: Guided learning (F2F) | Q26: Guided Learning (NF2F) eg: e-learning | S26: Independent learning (NF2F)
I27: L | K27: T | M27: P | O27: O
C28: 1.0 Introduction to Course, Projects and Texts 1.1 A Primer on innovation | G28: CLO 2 | I28: 1 | K28: 1 | S28: 1.5 | T28: =SUM(I28:S28) -> 3.5
C29: 2.0 The Innovator 2.1 Potrait of the innovator as a young man 2.2 Leadership at the top 2.3 Science and Technology 2.4 Science, Technology, Engineering and Mathematics (STEM) innovators. | G29: CLO 1 | I29: 2 | K29: 2 | S29: 3 | T29: 7 | U29: =C29 -> 2.0 The Innovator 2.1 Potrait of the innovator as a young man 2.2 Leadership at the top 2.3 Science and Technology 2.4 Science, Technology, Engineering and Mathematics (STEM) innovators.
C30: 3.0 Collaborating and Innovation 3.1 Social innovators 3.2 Teaching and learning 3.3 Innovating learning | G30: CLO 3 | I30: 2 | K30: 2 | S30: 3 | T30: 7 | U30: 3.0 Collaborating and Innovation 3.1 Social innovators 3.2 Teaching and learning 3.3 Innovating learning
C31: 4.0 Projecting the Future 4.1 The future of innovation 4.2 Live the future 4.3 Creating innovators 4.4 Letter to a young innovator | G31: CLO 1 | I31: 2 | K31: 2 | S31: 3 | T31: 7 | U31: 4.0 Projecting the Future 4.1 The future of innovation 4.2 Live the future 4.3 Creating innovators 4.4 Letter to a young innovator
C32: 5.0 Innovative Projects 5.1 Winging it in Start Up Mode 5.2 Innovative Concepts 5.3 Innovation begin with an eye 5.4 Strategies 5.5 The perfect brainstorm 5.6 Innovatives Companies | G32: CLO 3 | I32: 2 | K32: 2 | S32: 3 | T32: 7 | U32: 5.0 Innovative Projects 5.1 Winging it in Start Up Mode 5.2 Innovative Concepts 5.3 Innovation begin with an eye 5.4 Strategies 5.5 The perfect brainstorm 5.6 Innovatives Companies
C33: 6.0 Prototypes 6.1 Prototypes as shorthand of innovation 6.2 Innovative Spaces | G33: CLO 2 | I33: 1 | K33: 1 | S33: 1.5 | T33: 3.5 | U33: 6.0 Prototypes 6.1 Prototypes as shorthand of innovation 6.2 Innovative Spaces
C34: 7.0 Flow and Creating an Experience 7.1 Shared experience of absurdity 7.2 Preparing your pitch 7.3 Creating experiences for fun and profit | G34: CLO 2 | I34: 1 | K34: 1 | S34: 1.5 | T34: 3.5 | U34: 7.0 Flow and Creating an Experience 7.1 Shared experience of absurdity 7.2 Preparing your pitch 7.3 Creating experiences for fun and profit
C35: Total | T35: =SUM(T28:T34) -> 38.5 | U35: Total
C37: Continuous Assessment | L37: Percentage (%) | N37: F2F | Q37: NF2F | T37: SLT
C38: 1 | D38: Project | L38: 20 | N38: 4 | Q38: 12 | T38: =SUM(N38:S38) -> 16
C39: 2 | D39: Assignment | L39: 20 | Q39: 10 | T39: 10 | U39: =D39 -> Assignment
C40: 3 | D40: Test | L40: 10 | N40: 2 | Q40: 3 | T40: 5 | U40: Test
C41: 4 | T41: 0
C42: 5 | T42: 0
C43: Total | T43: =SUM(T38:T42) -> 31
C45: Final Assessment | L45: Percentage (%) | N45: F2F | Q45: NF2F | T45: SLT
C46: 1 | D46: Final Examination | L46: 50 | N46: 2 | Q46: 8.5 | T46: =SUM(N46:S46) -> 10.5
C47: 2 | T47: 0 | U47: =D47 -> 
C48: 3 | T48: 0
C49: 4 | T49: 0
C50: 5 | T50: 0
T51: =SUM(T46:T50) -> 10.5 | U51: =D51 -> 
C53: **Please tick (ü) in this course is Latihan Industri / Clinical Placement / Practicum / WBL using 2 weeks; 1 credit formula | T53: =+T35+T43+T51 -> 80
C54: L= Lecture, CL=Cooperative Learning, P=Practical, O=Others, F2F=Face to Face, NF2F=None Face to Face
C55: *Indicate the CLO based on the CLO's numbering in item 8
B56: 11 | C56: Identify special requirement to deliver the course (e.g: software, nursery, computer lab, simulation room, etc) | H56: None
U57: =H57 -> 
B58: 12 | C58: References: | H58: Wagner, Tony (2015). Creating Innovators : The Making of Young People Who Will Change the World. New York : Simon & Schuster.
C59: (include required and further readings, and should be the most current) | H59: Kelley, Tom, Jonathan Littmant,Peters (2001). The Art of Innovation : Lessons in Creativity from IDEO (8th ed.). New York: Doubleday | U59: =H59 -> Kelley, Tom, Jonathan Littmant,Peters (2001). The Art of Innovation : Lessons in Creativity from IDEO (8th ed.). New York: Doubleday
B60: 13 | C60: Other additional Information | H60: Last updated : 24 November 2019 | U60: Last updated : 24 November 2019

Sheet Eng Comm I
B2: Back | C2: Name of Course | D2: English Communicatative Skills 1 | AK2: 1 | AL2: 1
C3: Course Code | D3: ELS 1212 | AJ3: √ | AK3: 2 | AL3: 2
B4: 2 | C4: Synopsis | D4: This course exposes students to knowledge in communicating in English language by using the appropriate methodology. Skills and talent can be polished to be an effective communicator in verbal and non-verbal communication which utilises four main skills; writing, reading, listening and speaking in academic and non-academic environment. | U4: =D4 -> This course exposes students to knowledge in communicating in English language by using the appropriate methodology. Skills and talent can be polished to be an effective communicator in verbal and non-verbal communication which utilises four main skills; writing, reading, listening and speaking in academic and non-academic environment. | AK4: 3 | AL4: 3
B5: 3 | C5: Name (s) of Academic Staff | D5: Sharmin Alam | AK5: 4 | AL5: 4
B6: 4 | C6: Semester | D6: Semester | E6: 1 | F6: Year | G6: 1 | AK6: 5
B7: 5 | C7: Credit Value | D7: =IF(T59=40,1,(IF(T59=80,2,(IF(T59=120,3,(IF(T59=160,4,IF(T59=200,5,IF(T59=240,6,""))))))))) ->  | AK7: 6
B8: 6 | C8: Pre-requisite / Co-requisite (if any) | AK8: 7
B9: 7 | C9: Course Learning Outcomes (CLO): At the end of the course the students will be able to: | AK9: 8
C10: (example) - explain the basic principles of immunisation (C2, PLO1) | AK10: 9
C11: CLO1 | D11: Apply writing, reading, listening and speaking with correct use of grammar.(C3, PLO1) | U11: =D11 -> Apply writing, reading, listening and speaking with correct use of grammar.(C3, PLO1) | AK11: 10
C12: CLO2 | D12: Extract information from listening texts, express opinion and relay information confidently and correctly. (C3, CTPS3,PLO2) | U12: Extract information from listening texts, express opinion and relay information confidently and correctly. (C3, CTPS3,PLO2) | AK12: 11
C13: CLO3 | D13: Prepare oral disscussion on given topic in group within time frame. (P2, A2, PLO4)
AK14: 12
B15: 8 | C15: Mapping of the Course Learning Outcomes to the Programme Learning Outcomes, Teaching Methods and Assessment:
C16: Course Learning Outcomes (CLO) | D16: Programme Learning Outcomes (PLO) | P16: Teaching Methods | S16: Assessment
D17: PLO1 | E17: PLO2 | F17: PLO3 | G17: PLO4 | H17: PLO5 | I17: PLO6 | J17: PLO7 | K17: PLO8 | L17: PLO9 | M17: PLO10 | N17: PLO11 | O17: PLO12
C18: CLO1 | D18: √ | P18: Lecture | S18: Test |Final Exam | U18: =S18 -> Test |Final Exam
C19: CLO2 | E19: √ | P19: Lecture | S19: Test
C20: CLO3 | G20: √ | P20: Lecture | Discussion | S20: Presentation
C21: CLO4 | P21: | Presentation | S21: Demonstration
C22: (The description must be read together with standards 2.1.2, 2.2.1 and 2.2.2 in Area 2 - pages 16 & 18)
B23: 9 | C23: Transferable skills (if applicable) | G23: 1 | H23: Knowledge
C24: (Skills learned in the course of study which can be useful and utilised in other settings) | G24: 2 | H24: Cognitive Skill
G25: 3 | H25: Interpersonal Skill
B26: 10 | C26: Distribution of Students Learning Time (SLT)
C27: Course Content Outline | G27: CLO | I27: Teaching and Learning Activities | T27: SLT
I28: Guided learning (F2F) | Q28: Guided Learning (NF2F) eg: e-learning | S28: Independent learning (NF2F)
I29: L | K29: T | M29: P | O29: O
C30: Free Writing in Journal Book | G30: CLO 1 | I30: 2 | S30: 2 | T30: =SUM(I30:S30) -> 4
C31: Briefing of Course Outline Grammar 1.1 Parts of Speech 1.2 Sentence Patterns 1.3 Tenses | G31: CLO 1 | I31: 2 | S31: 2 | T31: 4 | U31: =C31 -> Briefing of Course Outline Grammar 1.1 Parts of Speech 1.2 Sentence Patterns 1.3 Tenses
C32: Writing 2.1 Sentence Writing 2.2 Essay Format 2.3Essay Writing - Argumentative - Comparison & Contrast | G32: CLO 1 | I32: 2 | S32: 2 | T32: 4 | U32: Writing 2.1 Sentence Writing 2.2 Essay Format 2.3Essay Writing - Argumentative - Comparison & Contrast
C33: Writing 2.1 Sentence Writing 2.2 Essay Format 2.3Essay Writing - Argumentative - Comparison & Contrast | G33: CLO 1 | I33: 2 | S33: 2 | T33: 4 | U33: Writing 2.1 Sentence Writing 2.2 Essay Format 2.3Essay Writing - Argumentative - Comparison & Contrast
C34: Reading 3.1 Skimming & Scanning 3.2 Information Transfer 3.3 Contextual Clues 3.4 Making Inferences 3.5 Making Predictions | G34: CLO 3 | I34: 2 | S34: 2 | T34: 4 | U34: Reading 3.1 Skimming & Scanning 3.2 Information Transfer 3.3 Contextual Clues 3.4 Making Inferences 3.5 Making Predictions
C35: Reading 3.1 Skimming & Scanning 3.2 Information Transfer 3.3 Contextual Clues 3.4 Making Inferences 3.5 Making Predictions | G35: CLO 2 | I35: 2 | S35: 2 | T35: 4 | U35: Reading 3.1 Skimming & Scanning 3.2 Information Transfer 3.3 Contextual Clues 3.4 Making Inferences 3.5 Making Predictions
C36: Listening 4.1 General & Specific Ideas 4.2 Note-Taking | G36: CLO 3 | I36: 2 | S36: 2 | T36: 4 | U36: Listening 4.1 General & Specific Ideas 4.2 Note-Taking
C37: Listening 4.1 General & Specific Ideas 4.2 Note-Taking | G37: CLO 3 | I37: 2 | S37: 2 | T37: 4 | U37: Listening 4.1 General & Specific Ideas 4.2 Note-Taking
C38: Speaking 4.1 Impromptu Speech Activities 4.2 Persuasive Speech 4.3 Group Discussion – Persuasion & Negotiation | G38: CLO 4 | I38: 2 | S38: 2 | T38: 4 | U38: Speaking 4.1 Impromptu Speech Activities 4.2 Persuasive Speech 4.3 Group Discussion – Persuasion & Negotiation
C39: Speaking 5.1 Impromptu Speech Activities 5.2 Persuasive Speech 5.3 Group Discussion – Persuasion & Negotiation | G39: CLO 4 | I39: 2 | S39: 2 | T39: 4 | U39: Speaking 5.1 Impromptu Speech Activities 5.2 Persuasive Speech 5.3 Group Discussion – Persuasion & Negotiation
C40: Speaking 5.1 Impromptu Speech Activities 5.2 Persuasive Speech 5.3 Group Discussion – Persuasion & Negotiation | G40: CLO 4 | I40: 2 | S40: 2 | T40: 4 | U40: Speaking 5.1 Impromptu Speech Activities 5.2 Persuasive Speech 5.3 Group Discussion – Persuasion & Negotiation
C41: Total | T41: =SUM(T30:T40) -> 44 | U41: Total
C43: Continuous Assessment | L43: Percentage (%) | N43: F2F | Q43: NF2F | T43: SLT
C44: 1 | D44: Listening Test | L44: 10 | N44: 0.5 | Q44: 1.5 | T44: =SUM(N44:S44) -> 2
C45: 2 | D45: Writing Assignment | L45: 15 | N45: 1.5 | Q45: 3 | T45: 4.5 | U45: =D45 -> Writing Assignment
C46: 3 | D46: Reading Test | L46: 10 | N46: 1.5 | Q46: 2 | T46: 3.5 | U46: Reading Test
C47: 4 | D47: Persuasive Speech | L47: 10 | N47: 1.5 | Q47: 2 | T47: 3.5 | U47: Persuasive Speech
C48: 5 | D48: Journal Writing | L48: 5 | Q48: 0.5 | T48: 0.5 | U48: Journal Writing
C49: Total | T49: =SUM(T44:T48) -> 14
C51: Final Assessment | L51: Percentage (%) | N51: F2F | Q51: NF2F | T51: SLT
C52: 1 | D52: Final Examination | L52: 50 | N52: 2 | Q52: 6 | T52: =SUM(N52:S52) -> 8
C53: 2 | T53: 0 | U53: =D53 -> 
C54: 3 | T54: 0
C55: 4 | T55: 0
C56: 5 | T56: 0
T57: =SUM(T52:T56) -> 8 | U57: =D57 -> 
C59: **Please tick (ü) in this course is Latihan Industri / Clinical Placement / Practicum / WBL using 2 weeks; 1 credit formula | T59: =+T41+T49+T57 -> 66
C60: L= Lecture, T=Tutorial, P=Practical, O=Others, F2F=Face to Face, NF2F=None Face to Face
C61: *Indicate the CLO based on the CLO's numbering in item 8
B62: 11 | C62: Identify special requirement to deliver the course (e.g: software, nursery, computer lab, simulation room, etc) | H62: None
U63: =H63 -> 
B64: 12 | C64: References: | H64: 1. Azar, B.S., Hagen, S.A. (2011). Fundamentals of English Grammar – 4th Edition.USA :Pearson Longman.
C65: (include required and further readings, and should be the most current) | H65: 2. Seng, E.S.K. (2013). Practical English. Malaysia : Cengage Learning 3. Curzan, A., Adams, M.A. (2013) How English Work: A Linguistics Introduction. Pearson | U65: =H65 -> 2. Seng, E.S.K. (2013). Practical English. Malaysia : Cengage Learning 3. Curzan, A., Adams, M.A. (2013) How English Work: A Linguistics Introduction. Pearson
B66: 13 | C66: Other additional Information | H66: Last updated : 24 November 2019 | U66: Last updated : 24 November 2019

Sheet Aplikasi
B2: Back | C2: Name of Course | D2: Introduction To Computer Hardware And Application | AK2: 1 | AL2: 1
C3: Course Code | D3: CMM1513 | AJ3: √ | AK3: 2 | AL3: 2
B4: 2 | C4: Synopsis | D4: This course is required to expose students to computer systems, operating systems and the Internet at the initial stage. Syllabus plus learning Microsoft Office computer applications in theoretical and practical and very important for the student to complete the computer literacy that will be used throughout the study. | U4: =D4 -> This course is required to expose students to computer systems, operating systems and the Internet at the initial stage. Syllabus plus learning Microsoft Office computer applications in theoretical and practical and very important for the student to complete the computer literacy that will be used throughout the study. | AK4: 3 | AL4: 3
B5: 3 | C5: Name (s) of Academic Staff | D5: Mohd Kamarulzaman Bin Omar | AK5: 4 | AL5: 4
B6: 4 | C6: Semester | D6: Semester | E6: 1 | F6: Year | G6: 1 | AK6: 5
B7: 5 | C7: Credit Value | D7: =IF(T55=40,1,(IF(T55=80,2,(IF(T55=120,3,(IF(T55=160,4,IF(T55=200,5,IF(T55=240,6,""))))))))) -> 3 | AK7: 6
B8: 6 | C8: Pre-requisite / Co-requisite (if any) | AK8: 7
B9: 7 | C9: Course Learning Outcomes (CLO): At the end of the course the students will be able to: | AK9: 8
C10: (example) - explain the basic principles of immunisation (C2, PLO1) | AK10: 9
C11: CLO1 | D11: Apply the components of computer system and its function, data communication, computer network and office application software. (C3, PLO1) | U11: =D11 -> Apply the components of computer system and its function, data communication, computer network and office application software. (C3, PLO1) | AK11: 10
C12: CLO2 | D12: Demonstrate skills of Microsoft Word, Microsoft Excel, Microsoft Power Point and Microsoft Access. (C3, CTPS3, PLO7) | U12: Demonstrate skills of Microsoft Word, Microsoft Excel, Microsoft Power Point and Microsoft Access. (C3, CTPS3, PLO7) | AK12: 11
C13: CLO3 | D13: Work collaboratively in a team to accomplish an assigned project within a given time. (A3, PLO4)
AK14: 12
B15: 8 | C15: Mapping of the Course Learning Outcomes to the Programme Learning Outcomes, Teaching Methods and Assessment:
C16: Course Learning Outcomes (CLO) | D16: Programme Learning Outcomes (PLO) | P16: Teaching Methods | S16: Assessment
D17: PLO1 | E17: PLO2 | F17: PLO3 | G17: PLO4 | H17: PLO5 | I17: PLO6 | J17: PLO7 | K17: PLO8 | L17: PLO9 | M17: PLO10 | N17: PLO11 | O17: PLO12
C18: CLO1 | D18: √ | P18: Lecture | Discussion | Lab activities | S18: Assignment | Tests | Final Examination | U18: =S18 -> Assignment | Tests | Final Examination
C19: CLO2 | J19: √ | P19: Lecture | Discussion | Lab activities | S19: Lab Skill
C20: CLO3 | G20: √ | P20: Informal Co-operative Learning | Presentation | S20: Project
C22: (The description must be read together with standards 2.1.2, 2.2.1 and 2.2.2 in Area 2 - pages 16 & 18)
B23: 9 | C23: Transferable skills (if applicable) | G23: 1 | H23: Knowledge
C24: (Skills learned in the course of study which can be useful and utilised in other settings) | G24: 2 | H24: Numerical Skill
G25: 3 | H25: Teamwork Skill
B26: 10 | C26: Distribution of Students Learning Time (SLT)
C27: Course Content Outline | G27: CLO | I27: Teaching and Learning Activities | T27: SLT
I28: Guided learning (F2F) | Q28: Guided Learning (NF2F) eg: e-learning | S28: Independent learning (NF2F)
I29: L | K29: T | M29: P | O29: O
C30: 1.0 Computer Systems 1.1 Computer Literacy 1.2 Computer Components 1.3 Advantages and Disadvantages of Computer 1.4 Category Computer 1.5 Data and Information 1.6 Components of System Unit 1.7 Computer Software | G30: CLO1 | I30: 2 | M30: 2 | S30: 2 | T30: =SUM(I30:S30) -> 6
C31: 2.0 Operating System 2.1 Operating System 2.2 Initialize and Manage Windows 2.3 Control Panel 2.4 Installation of Windows 10 | G31: CLO1 | I31: 2 | M31: 2 | S31: 2 | T31: 6 | U31: =C31 -> 2.0 Operating System 2.1 Operating System 2.2 Initialize and Manage Windows 2.3 Control Panel 2.4 Installation of Windows 10
C32: 3.0 Internet 3.1 Network and Internet 3.2 Web Browser 3.3 Internet Service 3.4 History of the Internet 3.5 Connecting to the World Wide Web (WWW) 3.6 Search Engine 3.7 Use the Internet and search | G32: CLO1 | I32: 2 | M32: 2 | S32: 2 | T32: 6 | U32: 3.0 Internet 3.1 Network and Internet 3.2 Web Browser 3.3 Internet Service 3.4 History of the Internet 3.5 Connecting to the World Wide Web (WWW) 3.6 Search Engine 3.7 Use the Internet and search
C33: 4.0 Word Processing 4.1 Window Word 4.2 Block Text 4.3 Spelling and Grammar 4.4 Save (Save and Save As) 4.5 Text and paragraph 4.6 Undo and Redo 4.7 Clip Art 4.8 Print and Print Preview 4.9 Setting margins 4.10 Header / Footer 4.11 Shortcut keys 4.12 Footnotes 4.13 Count 4.14 Hyperlink 4.15 Word Wizard 4.16 Templates 4.17 Clipboard 4.18 Table | G33: CLO2 CLO3 | I33: 4 | M33: 6 | S33: 6 | T33: 16 | U33: 4.0 Word Processing 4.1 Window Word 4.2 Block Text 4.3 Spelling and Grammar 4.4 Save (Save and Save As) 4.5 Text and paragraph 4.6 Undo and Redo 4.7 Clip Art 4.8 Print and Print Preview 4.9 Setting margins 4.10 Header / Footer 4.11 Shortcut keys 4.12 Footnotes 4.13 Count 4.14 Hyperlink 4.15 Word Wizard 4.16 Templates 4.17 Clipboard 4.18 Table
C34: 5.0 Graphic Presentation MS Powerpoint 5.1 PowerPoint Window 5.2 Template design 5.3 slide layout 5.4 Single and Multilevel Bulleted List 5.5 Slide View 5.6 Print Slide (slides, handouts, outline) 5.7 Clip art, table, graph 5.8 Animation 5.9 The movement of the slide 5.10 Sound, the movie 5.11 Wizard | G34: CLO2 CLO3 | I34: 4 | M34: 4 | S34: 4 | T34: 12 | U34: 5.0 Graphic Presentation MS Powerpoint 5.1 PowerPoint Window 5.2 Template design 5.3 slide layout 5.4 Single and Multilevel Bulleted List 5.5 Slide View 5.6 Print Slide (slides, handouts, outline) 5.7 Clip art, table, graph 5.8 Animation 5.9 The movement of the slide 5.10 Sound, the movie 5.11 Wizard
C35: 6.0 Electronic Sheet MS Excel 6.1 Excel Window 6.2 AutoSum 6.3 Copy Tues 6.4 Format cells and worksheet 6.5 Charts / graphs 6.6 Save and Print 6.7 AutoCalculate 6.8 Formula 6.9 Bandwidth, line 6.10 References 6.11 IF analysis | G35: CLO2 CLO3 | I35: 2 | M35: 6 | S35: 4 | T35: 12 | U35: 6.0 Electronic Sheet MS Excel 6.1 Excel Window 6.2 AutoSum 6.3 Copy Tues 6.4 Format cells and worksheet 6.5 Charts / graphs 6.6 Save and Print 6.7 AutoCalculate 6.8 Formula 6.9 Bandwidth, line 6.10 References 6.11 IF analysis
C36: 7.0 MS Access Data Base 7.1 Database Concepts 7.2 Data Types 7.3 Ms Access Database 7.4 Wizard and Design 7.5 Objects in MS Access | G36: CLO2 CLO3 | I36: 2 | M36: 2 | S36: 2 | T36: 6 | U36: 7.0 MS Access Data Base 7.1 Database Concepts 7.2 Data Types 7.3 Ms Access Database 7.4 Wizard and Design 7.5 Objects in MS Access
C37: Total | T37: =SUM(T30:T36) -> 64 | U37: Total
C39: Continuous Assessment | L39: Percentage (%) | N39: F2F | Q39: NF2F | T39: SLT
C40: 1 | D40: Lab Skill (5) | L40: 10 | N40: 10 | Q40: 5 | T40: =SUM(N40:S40) -> 15
C41: 2 | D41: Test (2) | L41: 20 | N41: 3 | Q41: 4 | T41: 7 | U41: =D41 -> Test (2)
C42: 3 | D42: Assignment (4) | L42: 10 | Q42: 9.5 | T42: 9.5 | U42: Assignment (4)
C43: 4 | D43: Project | L43: 10 | N43: 1 | Q43: 11 | T43: 12 | U43: Project
C44: 5 | T44: 0
C45: Total | T45: =SUM(T40:T44) -> 43.5
C47: Final Assessment | L47: Percentage (%) | N47: F2F | Q47: NF2F | T47: SLT
C48: 1 | D48: Final Examination | L48: 50 | N48: 2.5 | Q48: 10 | T48: =SUM(N48:S48) -> 12.5
C49: 2 | T49: 0 | U49: =D49 -> 
C50: 3 | T50: 0
C51: 4 | T51: 0
C52: 5 | T52: 0
T53: =SUM(T48:T52) -> 12.5 | U53: =D53 -> 
C55: **Please tick (ü) in this course is Latihan Industri / Clinical Placement / Practicum / WBL using 2 weeks; 1 credit formula | T55: =+T37+T45+T53 -> 120
C56: L= Lecture, T=Tutorial, P=Practical, O=Others, F2F=Face to Face, NF2F=None Face to Face
C57: *Indicate the CLO based on the CLO's numbering in item 8
B58: 11 | C58: Identify special requirement to deliver the course (e.g: software, nursery, computer lab, simulation room, etc) | H58: Microsoft Office Package
U59: =H59 -> 
B60: 12 | C60: References:
C61: (include required and further readings, and should be the most current) | H61: 1. Vermaat, S Freund, C Frydenberg. (2017) Discovering Computer 2018, Digital Technology, Data and Devices. Course Technology, Cengage Learning. 2. Shelly Cashmean Vermaat. Microsoft Office, Introductoy Concept and Technique, 2013. International Student Edition. Thomson Course Technology. 3. Modul Pengenalan Teknologi Komputer (2001). Terbitan UTM. 4. Stacy C.Sawyer. (2005) Brian K. Williams McGraw Hill. Using Information Technology. 5. Peter Norton. (2003). Introduction to Computers. Glencoe/McGraw Hill. 6. Larry Long & Nancy Long. (2004). Computers Information Technology in Perspective. Pearson, Prentice Hall. | U61: =H61 -> 1. Vermaat, S Freund, C Frydenberg. (2017) Discovering Computer 2018, Digital Technology, Data and Devices. Course Technology, Cengage Learning. 2. Shelly Cashmean Vermaat. Microsoft Office, Introductoy Concept and Technique, 2013. International Student Edition. Thomson Course Technology. 3. Modul Pengenalan Teknologi Komputer (2001). Terbitan UTM. 4. Stacy C.Sawyer. (2005) Brian K. Williams McGraw Hill. Using Information Technology. 5. Peter Norton. (2003). Introduction to Computers. Glencoe/McGraw Hill. 6. Larry Long & Nancy Long. (2004). Computers Information Technology in Perspective. Pearson, Prentice Hall.
B62: 13 | C62: Other additional Information | H62: Lab Activities: LAB 1 : Component of Computer System LAB 2 : Installing of OS - Windows LAB 3 : Internet - Browser and Search Engine LAB 4 : Microsoft Word LAB 5 : Microsoft Excel LAB 6 : Microsoft Power Point LAB 7 : Microsoft Access | U62: Lab Activities: LAB 1 : Component of Computer System LAB 2 : Installing of OS - Windows LAB 3 : Internet - Browser and Search Engine LAB 4 : Microsoft Word LAB 5 : Microsoft Excel LAB 6 : Microsoft Power Point LAB 7 : Microsoft Access
H64: Last updated : 24 November 2019

Sheet Pengajian Msia
B2: Back | C2: Name of Course | D2: Pengajian Malaysia | AK2: 1 | AL2: 1
C3: Course Code | D3: MPU2163 | AJ3: √ | AK3: 2 | AL3: 2
B4: 2 | C4: Synopsis | D4: Kursus ini membincangkan tentang persejarahan Malaysia secara komprehensif dan interaktif dari zaman Prasejarah hingga kini. Perbincangan juga mencakupi aspek sistem dan struktur perlembagaan, rancangan pembangunan serta isu-isu semasa berkaitan hubungan dengan masyarakat dan pembangunan insan serta alam sekitar. | U4: =D4 -> Kursus ini membincangkan tentang persejarahan Malaysia secara komprehensif dan interaktif dari zaman Prasejarah hingga kini. Perbincangan juga mencakupi aspek sistem dan struktur perlembagaan, rancangan pembangunan serta isu-isu semasa berkaitan hubungan dengan masyarakat dan pembangunan insan serta alam sekitar. | AK4: 3 | AL4: 3
B5: 3 | C5: Name (s) of Academic Staff | D5: Noor Enaida Tutan Khamin | AK5: 4 | AL5: 4
B6: 4 | C6: Semester | D6: Semester | E6: 1 | F6: Year | G6: 1 | AK6: 5
B7: 5 | C7: Credit Value | D7: =IF(T60=40,1,(IF(T60=80,2,(IF(T60=120,3,(IF(T60=160,4,IF(T60=200,5,IF(T60=240,6,""))))))))) -> 3 | AK7: 6
B8: 6 | C8: Pre-requisite / Co-requisite (if any) | AK8: 7
B9: 7 | C9: Course Learning Outcomes (CLO): At the end of the course the students will be able to: | AK9: 8
C10: (example) - explain the basic principles of immunisation (C2, PLO1) | AK10: 9
C11: CLO1 | D11: Menerangkan aspek sejarah negara dan bangsa, perlembagaan negara, dan perkembangan masyarakat dalam aspek sosial budaya, politik dan ekonomi. (C2, PLO1) | U11: =D11 -> Menerangkan aspek sejarah negara dan bangsa, perlembagaan negara, dan perkembangan masyarakat dalam aspek sosial budaya, politik dan ekonomi. (C2, PLO1) | AK11: 10
C12: CLO2 | D12: Membincangkan cabaran dan cara menangani permasalahan berkaitan kenegaraan ke arah peningkatan patriotisme. (A2, C2, PLO2) | U12: Membincangkan cabaran dan cara menangani permasalahan berkaitan kenegaraan ke arah peningkatan patriotisme. (A2, C2, PLO2) | AK12: 11
C13: CLO3 | D13: Membentuk semangat patriotisme, nasionalisme dan kesukarelawan melalui aktiviti bersama. (A3, P2, PLO11)
AK14: 12
B15: 8
C16: Course Learning Outcomes (CLO) | D16: Programme Learning Outcomes (PLO) | P16: Teaching Methods | S16: Assessment
D17: PLO1 | E17: PLO2 | F17: PLO3 | G17: PLO4 | H17: PLO5 | I17: PLO6 | J17: PLO7 | K17: PLO8 | L17: PLO9 | M17: PLO10 | N17: PLO11 | O17: PLO12
C18: CLO1 | D18: √ | P18: Lecture | Discussion | S18: Quiz| Test | Final Examination | U18: =S18 -> Quiz| Test | Final Examination
C19: CLO2 | E19: √ | P19: Activities|Discussion | S19: Assignment
C20: CLO3 | N20: √ | P20: Activities | S20: Assignment
C22: (The description must be read together with standards 2.1.2, 2.2.1 and 2.2.2 in Area 2 - pages 16 & 18)
B23: 9 | C23: Transferable skills (if applicable) | G23: 1 | H23: Pengetahuan
C24: (Skills learned in the course of study which can be useful and utilised in other settings) | G24: 2 | H24: Kemahiran berfikir dan penyelesaian masalah
G25: 3 | H25: Etika dan moral
C26: Distribution of Students Learning Time (SLT)
C27: Course Content Outline | G27: CLO | I27: Teaching and Learning Activities | T27: SLT
I28: Guided learning (F2F) | Q28: Guided Learning (NF2F) eg: e-learning | S28: Independent learning (NF2F)
I29: L | K29: T | M29: P | O29: O
C30: BAHAGIAN 1: SEJARAH DAN POLITIK 1.0 Pengenalan 1.1.1 Kesultanan Melaka 1.1.2 Kesultanan Johor 1.1.3 Pengasas Kesultanan-kesultanan Melayu Lain 1.2. Penjajahan Kuasa Asing 1.2.1 Penjajahan Portugis 1.2.2 Penjajahan Belanda 1.2.3 Penjajahan British 1.3 Sabah dan Sarawak Sehingga 1941 1.3.1 Sabah 1.3.2 Sarawak | G30: CLO 1 | I30: 1 | K30: 2 | S30: 2 | T30: =SUM(I30:S30) -> 5
C31: 1.4 Kemerdekaan 1.4.1 Reaksi Masyarakat Tempatan terhadap Penjajahan British 1.4.2 Pendudukan Jepun 1.4.3 Perjuangan Kemerdekaan 1.4.4 Perjuanagan dan Idea-idea Semangat Kebangsaan Melalui Akhbar dan Majalah 1.4.5 Gerakan Berpersatuan 1.4.6 Kesatuan Malaya (Malayan Union) 1.4.7 Persekutuan Tanah Melayu (PTM) 1.4.8 Kemunculan Parti-parti Politik di Tanah Melayu Selepas Perang Dunia Kedua 1.4.9 Rundingan Kemerdekaan 1.5 Pembentukann Malaysia 1.5.1 Latarbelakang Pembentukan Malaysia 1.5.2 Faktor-faktor Penubuhan Malaysia 1.5.3 Reaksi Sabah, Sarawak, Brunei dan Singapura 1.5.4 Reaksi Indonesia dan Filipina 1.5.5 Proses pembentukan Malaysia 1.5.6 Isu Brunei dan Singapura 1.6 Kesimpulan | G31: CLO 1 | I31: 2 | K31: 2 | S31: 2 | T31: 6 | U31: =C31 -> 1.4 Kemerdekaan 1.4.1 Reaksi Masyarakat Tempatan terhadap Penjajahan British 1.4.2 Pendudukan Jepun 1.4.3 Perjuangan Kemerdekaan 1.4.4 Perjuanagan dan Idea-idea Semangat Kebangsaan Melalui Akhbar dan Majalah 1.4.5 Gerakan Berpersatuan 1.4.6 Kesatuan Malaya (Malayan Union) 1.4.7 Persekutuan Tanah Melayu (PTM) 1.4.8 Kemunculan Parti-parti Politik di Tanah Melayu Selepas Perang Dunia Kedua 1.4.9 Rundingan Kemerdekaan 1.5 Pembentukann Malaysia 1.5.1 Latarbelakang Pembentukan Malaysia 1.5.2 Faktor-faktor Penubuhan Malaysia 1.5.3 Reaksi Sabah, Sarawak, Brunei dan Singapura 1.5.4 Reaksi Indonesia dan Filipina 1.5.5 Proses pembentukan Malaysia 1.5.6 Isu Brunei dan Singapura 1.6 Kesimpulan
C32: BAHAGIAN 2 : PERLEMBAGAAN MALAYSIA 2.0 Perlembagaan Malaysia 2.1. Definisi Malaysia 2.2. Sejarag Penggubalan Perlembagaan 2.2.1 Peranan Perlembagaan 2.2.2 Pembentukan Perlembagaan 2.3 Keluhuran Perlembagaan 2.3.1 Undang-undang Utama Perlembagaan 2.3.2 Ketertinggian Perlembagaan 2.3.3 Pindaan Perlembagaan 2.3.4 Perlembagaan Persekutuan dan Negeri | G32: CLO 1 | I32: 2 | K32: 2 | S32: 4 | T32: 8 | U32: BAHAGIAN 2 : PERLEMBAGAAN MALAYSIA 2.0 Perlembagaan Malaysia 2.1. Definisi Malaysia 2.2. Sejarag Penggubalan Perlembagaan 2.2.1 Peranan Perlembagaan 2.2.2 Pembentukan Perlembagaan 2.3 Keluhuran Perlembagaan 2.3.1 Undang-undang Utama Perlembagaan 2.3.2 Ketertinggian Perlembagaan 2.3.3 Pindaan Perlembagaan 2.3.4 Perlembagaan Persekutuan dan Negeri
C33: 2.4 Peruntukan Penting dalam Perlembagaan 2.4.1 Bahasa Melayu 2.4.2 Pemerintahan Beraja 2.4.3 Islam sebagai Agama Persekutuan dan Kedudukan Agama-agama Lain 2.4.4 Kewarganegaraan 2.4.5 Kedudukan Istemewa Orang Melayu, Bumiputera dan Hak Kaum-kaum Lain 2.4.6 Individu di Sisi Perlembagaan 2.5 Kesimpulan | G33: CLO 1 | I33: 2 | K33: 2 | S33: 4 | T33: 8 | U33: 2.4 Peruntukan Penting dalam Perlembagaan 2.4.1 Bahasa Melayu 2.4.2 Pemerintahan Beraja 2.4.3 Islam sebagai Agama Persekutuan dan Kedudukan Agama-agama Lain 2.4.4 Kewarganegaraan 2.4.5 Kedudukan Istemewa Orang Melayu, Bumiputera dan Hak Kaum-kaum Lain 2.4.6 Individu di Sisi Perlembagaan 2.5 Kesimpulan
C34: BAHAGIAN 3 : SISTEM DAN STRUKTUR PENTADBIRAN 3.0 Pengenalan 3.1. Konsep Federalisme 3.2. Demokrasi Berparlimen di Malaysia 3.2.1 Maksud Demokrasi Berparlimen 3.2.2 Ciri-ciri Negara Demokrasi Berparlimen 3.3 Komponen Utama Kerajaan Malaysia 3.3.1 Yang di-Pertuan Agong (YDPA) 3.3.2 Badan Pentadbiran/Pelaksana (Eksekutif) 3.3.3 Badan Perundangan (Legislatif) 3.3.4 Badan Kehakiman (Judisiari) 3.4 Kesimpulan | G34: CLO 1 | I34: 2 | K34: 2 | S34: 2 | T34: 6 | U34: BAHAGIAN 3 : SISTEM DAN STRUKTUR PENTADBIRAN 3.0 Pengenalan 3.1. Konsep Federalisme 3.2. Demokrasi Berparlimen di Malaysia 3.2.1 Maksud Demokrasi Berparlimen 3.2.2 Ciri-ciri Negara Demokrasi Berparlimen 3.3 Komponen Utama Kerajaan Malaysia 3.3.1 Yang di-Pertuan Agong (YDPA) 3.3.2 Badan Pentadbiran/Pelaksana (Eksekutif) 3.3.3 Badan Perundangan (Legislatif) 3.3.4 Badan Kehakiman (Judisiari) 3.4 Kesimpulan
C35: BAHAGIAN 4 : KEMASYARAKATAN DAN PERPADUAN 4.0 Pengenalan 4.1. Kom[osisi dan Taburan Pendudukan Sebelum Merdeka 4..1.1 Kaum Melayu 4.1.2 Kaum Cina 4.1.3 Kaum India 4.2 Komposisi dan Taburan Penduduk Selepas Merdeka | G35: CLO 1 | I35: 2 | K35: 2 | S35: 2 | T35: 6 | U35: BAHAGIAN 4 : KEMASYARAKATAN DAN PERPADUAN 4.0 Pengenalan 4.1. Kom[osisi dan Taburan Pendudukan Sebelum Merdeka 4..1.1 Kaum Melayu 4.1.2 Kaum Cina 4.1.3 Kaum India 4.2 Komposisi dan Taburan Penduduk Selepas Merdeka
C36: 4.3 Perpaduan Negara dan Integrasi Nasional 4.3.1 Cabaran Membina Negara Bangsa 4.3.2 Rusuhan Kaum 13 Mei 1969 4.3.3 Usaha Kearah Perpaduan dan Integrasi Nasional 4.4 Rukun Negara sebagai Satu Strategi pemantapan Perpaduan 4.4.1 Latar Belakang Rukun Negara 4.4.2 Objektif Rukunn Negara 4.4.3 Prinsip-prinsip Rukun Negara 4.5 Kesimpulan | G36: CLO 1 | I36: 2 | K36: 2 | S36: 5 | T36: 9 | U36: 4.3 Perpaduan Negara dan Integrasi Nasional 4.3.1 Cabaran Membina Negara Bangsa 4.3.2 Rusuhan Kaum 13 Mei 1969 4.3.3 Usaha Kearah Perpaduan dan Integrasi Nasional 4.4 Rukun Negara sebagai Satu Strategi pemantapan Perpaduan 4.4.1 Latar Belakang Rukun Negara 4.4.2 Objektif Rukunn Negara 4.4.3 Prinsip-prinsip Rukun Negara 4.5 Kesimpulan
C37: BAHAGIAN 5 : PEMBANGUNAN NEGARA 5.0 Pengenalan 5.1 Rancangan Pembangunan Lima Tahun 5.2 Rancangan Pembangunan Jangka Panjang 5.2.1 Dasar Ekonomi Baru (DEB) 5.2.2 Dasar Pembangunan Nasional (DPN) 5.2.3 Dasar Wawasan Negara (DWN) 5.2.4 wawasan 2020 5.2.5 Transformati Nasional 2050 (TN50) 5.3 Dasar Ekonomi 5.3.1 Dasar Pertanian Negara 5.3.2 Dasar Perindustrian Negara 5.3.3 Pelan Induk Perindustrian Negara 5.3.4 Model Ekonomi Baru | G37: CLO 1 | I37: 2 | K37: 2 | S37: 3 | T37: 7 | U37: BAHAGIAN 5 : PEMBANGUNAN NEGARA 5.0 Pengenalan 5.1 Rancangan Pembangunan Lima Tahun 5.2 Rancangan Pembangunan Jangka Panjang 5.2.1 Dasar Ekonomi Baru (DEB) 5.2.2 Dasar Pembangunan Nasional (DPN) 5.2.3 Dasar Wawasan Negara (DWN) 5.2.4 wawasan 2020 5.2.5 Transformati Nasional 2050 (TN50) 5.3 Dasar Ekonomi 5.3.1 Dasar Pertanian Negara 5.3.2 Dasar Perindustrian Negara 5.3.3 Pelan Induk Perindustrian Negara 5.3.4 Model Ekonomi Baru
C38: 5.4 Dasar Sosial 5.4.1 Perkembangan Pendidikan Malaysia dan Dasar Pendidikan Kebangsaan 5.4.2 Dasar Kebdayaan Kebangsaan 5.4.3 Dasar Sosial Negara 5.4.4 dasar Wanita Negara 5.4.5 Dasar Keluarga Negara 5.4.6 Pelan Tindakan Pembangunan Belia 5.4.7 Pelan Integriti Nasional 5.4.8 Dasar Penerapan Nilai-nilai Islam 5.4.9 1 Malaysia | G38: CLO 1 | I38: 4 | K38: 2 | S38: 3 | T38: 9 | U38: 5.4 Dasar Sosial 5.4.1 Perkembangan Pendidikan Malaysia dan Dasar Pendidikan Kebangsaan 5.4.2 Dasar Kebdayaan Kebangsaan 5.4.3 Dasar Sosial Negara 5.4.4 dasar Wanita Negara 5.4.5 Dasar Keluarga Negara 5.4.6 Pelan Tindakan Pembangunan Belia 5.4.7 Pelan Integriti Nasional 5.4.8 Dasar Penerapan Nilai-nilai Islam 5.4.9 1 Malaysia
C39: 5.5 Dasar Luar 5.5.1 Latar Belakang Hubungan Luar Malaysia 5.5.2 Pertubuhan Negara-negara Asia Tenggara (ASEAN) 5.5.3 Pertubuhan Negara-negara Islam 5.5.4 Pertubuhan negara-negara Bekas jajahan British (KOMANWEL) 5.5.5 Pertubuhan Bangsa-bangsa Bersatu (PBB) 5.5.6 Pergerakan Negara-negara Berkecuali (NAM) 5.5.7 Kerjasama Selatan-Selatan (KSS) 5.5.8 Kerjasama Ekonomi Asia Timur (EAEC) 5.5.9 Organization for Economic Coorperation (Developing/D-8) 5.6 Kesimpulan | G39: CLO 1 | I39: 4 | K39: 4 | S39: 4 | T39: 12 | U39: 5.5 Dasar Luar 5.5.1 Latar Belakang Hubungan Luar Malaysia 5.5.2 Pertubuhan Negara-negara Asia Tenggara (ASEAN) 5.5.3 Pertubuhan Negara-negara Islam 5.5.4 Pertubuhan negara-negara Bekas jajahan British (KOMANWEL) 5.5.5 Pertubuhan Bangsa-bangsa Bersatu (PBB) 5.5.6 Pergerakan Negara-negara Berkecuali (NAM) 5.5.7 Kerjasama Selatan-Selatan (KSS) 5.5.8 Kerjasama Ekonomi Asia Timur (EAEC) 5.5.9 Organization for Economic Coorperation (Developing/D-8) 5.6 Kesimpulan
C40: BAGAHIAN 6 : AGAMA 6.0 Pengenalan 6.1 Kepentingan Beragama 6.2 Agama di Malaysia 6.2.1 Islam 6.2.2 Buddha 6.2.3 Konfusianisme 6.2.4 Taoisme 6.2.5 Hindu 6.2.6 Kristian | G40: CLO 1 | I40: 2 | K40: 2 | S40: 2 | T40: 6
C41: 6.3 Kedudukan Agama dalam Perlembagaan Persekutuan 6.3.1 Peruntukan Berhubung Agama 6.3.2 Rasional Perkara 3 dan Perkara 11 6.4 Agama dan Masyarakat 6.4.1 Institusi/Pertubuhan Keagamaan 6.4.2 Perayaan dan Hari Penting bagi Masyarakat di Malaysia 6.5 Kesimpulan | G41: CLO 2 | I41: 2 | K41: 2 | S41: 5 | T41: 9 | U41: =C41 -> 6.3 Kedudukan Agama dalam Perlembagaan Persekutuan 6.3.1 Peruntukan Berhubung Agama 6.3.2 Rasional Perkara 3 dan Perkara 11 6.4 Agama dan Masyarakat 6.4.1 Institusi/Pertubuhan Keagamaan 6.4.2 Perayaan dan Hari Penting bagi Masyarakat di Malaysia 6.5 Kesimpulan
C42: Total | T42: =SUM(T30:T41) -> 91 | U42: Total
C44: Continuous Assessment | L44: Percentage (%) | N44: F2F | Q44: NF2F | T44: SLT
C45: 1 | D45: Assignment (2) | L45: 20 | Q45: 12 | T45: =SUM(N45:S45) -> 12
C46: 2 | D46: Quiz (2) | L46: 20 | N46: 1 | Q46: 2 | T46: 3 | U46: =D46 -> Quiz (2)
C47: 3 | D47: Test | L47: 10 | N47: 2 | Q47: 4 | T47: 6 | U47: Test
C48: 4 | T48: 0
C49: 5 | T49: 0
C50: Total | T50: =SUM(T45:T49) -> 21
C52: Final Assessment | L52: Percentage (%) | N52: F2F | Q52: NF2F | T52: SLT
C53: 1 | D53: Final Examination | L53: 50 | N53: 2.5 | Q53: 5.5 | T53: =SUM(N53:S53) -> 8
C54: 2 | T54: 0 | U54: =D54 -> 
C55: 3 | T55: 0
C56: 4 | T56: 0
C57: 5 | T57: 0
T58: =SUM(T53:T57) -> 8 | U58: =D58 -> 
C60: **Please tick (ü) in this course is Latihan Industri / Clinical Placement / Practicum / WBL using 2 weeks; 1 credit formula | T60: =+T42+T50+T58 -> 120
C61: L= Lecture, T=Tutorial, P=Practical, O=Others, F2F=Face to Face, NF2F=None Face to Face
C62: *Indicate the CLO based on the CLO's numbering in item 8
B63: 11 | C63: Identify special requirement to deliver the course (e.g: software, nursery, computer lab, simulation room, etc) | H63: None
U64: =H64 -> 
B65: 12 | C65: References: | H65: Mardiana Nordin & Hasnah Hussin. (2019). Pengajian Malaysia. Petaling Jaya. Fajar Bakti Sdn. Bhd.
C66: (include required and further readings, and should be the most current) | H66: Hairol Anuar Mak Din. (2006). Pengajian Malaysia: Kenegaraan & Patriotisme. Bangi: Kolej Universiti Islam Antarabangsa Selangor. | U66: =H66 -> Hairol Anuar Mak Din. (2006). Pengajian Malaysia: Kenegaraan & Patriotisme. Bangi: Kolej Universiti Islam Antarabangsa Selangor.
B67: 13 | C67: Other additional Information | H67: Last updated : 24 November 2019 | U67: Last updated : 24 November 2019

Sheet MPU2232
B2: Back | C2: Name of Course | D2: Pengucapan Awam | AK2: 1 | AL2: 1
C3: Course Code | D3: MPU2232 | AJ3: √ | AK3: 2 | AL3: 2
B4: 2 | C4: Synopsis | D4: Kursus ini memberi tumpuan kepada teori, prinsip dan komunikasi yang berkesan dalam suasana perniagaan. Ia menilai bentuk-bentuk komunikasi antara individu, kumpulan dan organisasi. Ia juga melihat bagaimana komunikasi lisan dan bukan lisan digunakan secara berkesan oleh individu, kumpulan dan organisasi dalam mencapai matlamat dan objektif mereka. | U4: =D4 -> Kursus ini memberi tumpuan kepada teori, prinsip dan komunikasi yang berkesan dalam suasana perniagaan. Ia menilai bentuk-bentuk komunikasi antara individu, kumpulan dan organisasi. Ia juga melihat bagaimana komunikasi lisan dan bukan lisan digunakan secara berkesan oleh individu, kumpulan dan organisasi dalam mencapai matlamat dan objektif mereka. | AK4: 3 | AL4: 3
B5: 3 | C5: Name (s) of Academic Staff | D5: Noor Enaida binti Tutan Khamin | AK5: 4 | AL5: 4
B6: 4 | C6: Semester | D6: Semester | E6: 2 | F6: Year | G6: 1 | AK6: 5
B7: 5 | C7: Credit Value | D7: =IF(T60=40,1,(IF(T60=80,2,(IF(T60=120,3,(IF(T60=160,4,IF(T60=200,5,IF(T60=240,6,""))))))))) -> 2 | AK7: 6
B8: 6 | C8: Pre-requisite / Co-requisite (if any) | AK8: 7
B9: 7 | C9: Course Learning Outcomes (CLO): At the end of the course the students will be able to: | AK9: 8
C10: (example) - explain the basic principles of immunisation (C2, PLO1) | AK10: 9
C11: CLO1 | D11: Menjelaskan konsep, prinsip dan ciri-ciri pengucapan awam yang berkesan secara lisan dan bertulis melalui rujukan daripada pelbagai sumber. (C2, PLO1) | U11: =D11 -> Menjelaskan konsep, prinsip dan ciri-ciri pengucapan awam yang berkesan secara lisan dan bertulis melalui rujukan daripada pelbagai sumber. (C2, PLO1) | AK11: 10
C12: CLO2 | D12: Menyampaikan pengucapan awam mengikut format dan tatacara yang betul secara kreatif dan kritis. (P3, A3, PLO5) | U12: Menyampaikan pengucapan awam mengikut format dan tatacara yang betul secara kreatif dan kritis. (P3, A3, PLO5) | AK12: 11
C13: CLO3 | D13: Menghasil teks ucapan mengikut situasi dan majlis tertentu. (A3, P2, PLO9)
B14: 8 | C14: Mapping of the Course Learning Outcomes to the Programme Learning Outcomes, Teaching Methods and Assessment:
C15: Course Learning Outcomes (CLO) | D15: Programme Learning Outcomes (PLO) | P15: Teaching Methods | S15: Assessment
D16: PLO1 | E16: PLO2 | F16: PLO3 | G16: PLO4 | H16: PLO5 | I16: PLO6 | J16: PLO7 | K16: PLO8 | L16: PLO9 | M16: PLO10 | N16: PLO11 | O16: PLO12
C17: CLO1 | D17: √ | P17: Kuliah | Perbincangan | S17: Ujian | Peperiksaan akhir | U17: =S17 -> Ujian | Peperiksaan akhir
C18: CLO2 | H18: √ | P18: Kuliah | Perbincangan | Pembentangan | S18: Tugasan | Peperiksaan akhir
C19: CLO3 | L19: √ | P19: Kuliah | Perbincangan | S19: Tugasan | Peperiksaan akhir
C20: (The description must be read together with standards 2.1.2, 2.2.1 and 2.2.2 in Area 2 - pages 16 & 18)
B21: 9 | C21: Transferable skills (if applicable) | G21: 1 | H21: Pengetahuan
C22: (Skills learned in the course of study which can be useful and utilised in other settings) | G22: 2 | H22: Kemahiran komunikasi
G23: 3 | H23: Kemahiran kendiri dan pembelajaran sepanjang hayat
B24: 10 | C24: Distribution of Students Learning Time (SLT)
C25: Course Content Outline | G25: CLO | I25: Teaching and Learning Activities | T25: SLT
I26: Guided learning (F2F) | Q26: Guided Learning (NF2F) eg: e-learning | S26: Independent learning (NF2F)
I27: L | K27: T | M27: P | O27: O
C28: 1.0 Pengenalan pengucapan awam dan kepentinganya 1.1 Pengertian pengucapan awam. 1.2 Proses ucapan | G28: CLO 1 | I28: 1 | S28: 2 | T28: =SUM(I28:S28) -> 3
C29: 2.0 Kepentingan pengucapan awam. 2.1 Penerimaan idea dan pengaruh 2.2 Peningkatan kerjaya 2.3 Promosi bisnes 2.4 Membuat keputusan 2.5 Penigkatan dan keupayaan ingatan | G29: CLO 1 | I29: 1 | S29: 2 | T29: 3 | U29: =C29 -> 2.0 Kepentingan pengucapan awam. 2.1 Penerimaan idea dan pengaruh 2.2 Peningkatan kerjaya 2.3 Promosi bisnes 2.4 Membuat keputusan 2.5 Penigkatan dan keupayaan ingatan
C30: 3.0 Jenis –jenis ucapan 3.1 Berdasarkan tujuan 3.1.1 Pemberitahuan 3.1.2 Pemujukan 3.1.3 Menghibur 3.1.4 Majlis khas 3.2 Berdasarkan cara 3.2.1 Impromptu 3.2 2 Menghafal 3.2.3 Membaca teks 3.2.4 Ekstemporaneous | G30: CLO 1 | I30: 2 | S30: 2 | T30: 4 | U30: 3.0 Jenis –jenis ucapan 3.1 Berdasarkan tujuan 3.1.1 Pemberitahuan 3.1.2 Pemujukan 3.1.3 Menghibur 3.1.4 Majlis khas 3.2 Berdasarkan cara 3.2.1 Impromptu 3.2 2 Menghafal 3.2.3 Membaca teks 3.2.4 Ekstemporaneous
C31: 4.0 Ciri-ciri perucap yang baik dan tidak baik 4.1 Berpengetahuan 4.2 Berkemahiran berucap 4.3 Berkeyakinan 4.4 Perinbadi/ perwatakan baik | G31: CLO 1 | I31: 2 | S31: 2 | T31: 4 | U31: 4.0 Ciri-ciri perucap yang baik dan tidak baik 4.1 Berpengetahuan 4.2 Berkemahiran berucap 4.3 Berkeyakinan 4.4 Perinbadi/ perwatakan baik
C32: 5.0 Sifat-sifat perucap yg tidak baik 5.1 Seronok sendiri 5.2 Lawak yang keterlaluan 5.3 Suara terlalu perlahan/tiada nada 5.4 Tidak tepati masa | G32: CLO 1 | I32: 2 | S32: 3 | T32: 5 | U32: 5.0 Sifat-sifat perucap yg tidak baik 5.1 Seronok sendiri 5.2 Lawak yang keterlaluan 5.3 Suara terlalu perlahan/tiada nada 5.4 Tidak tepati masa
C33: 6.0 Intonasi dan Pengawalan suara. 6.1 Nada (suara tinggi dan nada suara rendah) 6.2 Kelantangan 6.3 Pengulangan 6.4 Jeda 6.5 Sebutan tepat | G33: CLO 1 | I33: 2 | S33: 2 | T33: 4 | U33: 6.0 Intonasi dan Pengawalan suara. 6.1 Nada (suara tinggi dan nada suara rendah) 6.2 Kelantangan 6.3 Pengulangan 6.4 Jeda 6.5 Sebutan tepat
C34: 7.0 Lisan 7.1 Penyediaan dan persembahan ucapan. 7.2 Mengawal gugup 7.3 Menganalisis diri 7.4 Mengumpul bahan 7.5 Menyusun bahan 7.6 Merancang pengenalan 7.7 Merancang penutup 7.8 Berlatih 7.9 Menyampaikan ucapan | G34: CLO 1 | I34: 2 | S34: 3 | T34: 5 | U34: 7.0 Lisan 7.1 Penyediaan dan persembahan ucapan. 7.2 Mengawal gugup 7.3 Menganalisis diri 7.4 Mengumpul bahan 7.5 Menyusun bahan 7.6 Merancang pengenalan 7.7 Merancang penutup 7.8 Berlatih 7.9 Menyampaikan ucapan
C35: 8.0 Tanpa lisan - gerakan badan (body language) 8.1 Sentuhan 8.2 Expresi muka 8.3 Pertemuan mata 8.4 Kepala 8.5 Bahu 8.6 Tangan dan jari 8.7 Pakaian atau penampilan | G35: CLO 1 | I35: 2 | S35: 4 | T35: 6 | U35: 8.0 Tanpa lisan - gerakan badan (body language) 8.1 Sentuhan 8.2 Expresi muka 8.3 Pertemuan mata 8.4 Kepala 8.5 Bahu 8.6 Tangan dan jari 8.7 Pakaian atau penampilan
C36: 9.0 Elemen-elemen yang mempengaruhi keberkesanan pengucapan awam 9.1 Perucap 9.2 Mesej 9.3 Saluran 9.4 Pendengar (audiens) 9.5 Maklumbalas 9.6 Gangguan 9.7 Setting | G36: CLO 1 | I36: 2 | S36: 2 | T36: 4 | U36: 9.0 Elemen-elemen yang mempengaruhi keberkesanan pengucapan awam 9.1 Perucap 9.2 Mesej 9.3 Saluran 9.4 Pendengar (audiens) 9.5 Maklumbalas 9.6 Gangguan 9.7 Setting
C37: 10.0 Etiket dan etika dalam pengucapan awam 10.1 Definisi etiket 10.2 Definisi etika | G37: CLO 1 | I37: 1 | S37: 2 | T37: 3 | U37: 10.0 Etiket dan etika dalam pengucapan awam 10.1 Definisi etiket 10.2 Definisi etika
C38: 11.0 Pengucapan awam dalam konteks Islam 11.1 Isu-isu berkaitan dengan sosioekonomi di Malaysia 11.2 Perkembangan Islam di Malaysia | G38: CLO 1 | I38: 1 | S38: 2 | T38: 3 | U38: 11.0 Pengucapan awam dalam konteks Islam 11.1 Isu-isu berkaitan dengan sosioekonomi di Malaysia 11.2 Perkembangan Islam di Malaysia
C39: 12.0 Metod asas pengucapan awam 12.1 Spontan (tanpa persediaan) 12.2 Manskrip (membaca) 12.3 Tanpa teks terperinci 12.4 Hafalan | G39: CLO 1 | I39: 2 | S39: 2 | T39: 4 | U39: 12.0 Metod asas pengucapan awam 12.1 Spontan (tanpa persediaan) 12.2 Manskrip (membaca) 12.3 Tanpa teks terperinci 12.4 Hafalan
C40: 13.0 Persiapan sebelum persembahan 13.1 Tajuk, tarikh, tempoh masa 13.2 Objektif 13.3 Bahan-bahan 13.4 Rangka ucapan 13.5 Menulis ucapan 13.6 Latihan | G40: CLO 1 | I40: 2 | S40: 2 | T40: 4 | U40: 13.0 Persiapan sebelum persembahan 13.1 Tajuk, tarikh, tempoh masa 13.2 Objektif 13.3 Bahan-bahan 13.4 Rangka ucapan 13.5 Menulis ucapan 13.6 Latihan
C41: 14.0 Persembahan (pengucapan awam) 14.1 Persediaan fizikal, mental, emosi | G41: CLO 1 | I41: 2 | S41: 3 | T41: 5 | U41: 14.0 Persembahan (pengucapan awam) 14.1 Persediaan fizikal, mental, emosi
C42: Total | T42: =SUM(T28:T41) -> 57 | U42: Total
C44: Continuous Assessment | L44: Percentage (%) | N44: F2F | Q44: NF2F | T44: SLT
C45: 1 | D45: Ujian | L45: 10 | N45: 1 | Q45: 2 | T45: =SUM(N45:S45) -> 3
C46: 2 | D46: Tugasan 1 | L46: 15 | N46: 0.5 | Q46: 2 | T46: 2.5 | U46: =D46 -> Tugasan 1
C47: 3 | D47: Tugasan 2 | L47: 15 | N47: 1 | Q47: 4 | T47: 5 | U47: Tugasan 2
C48: 4 | D48: Tugasan 3 | L48: 20 | N48: 1 | Q48: 4 | T48: 5 | U48: Tugasan 3
C49: 5 | D49: Kuiz | L49: 10 | N49: 0.5 | T49: 0.5 | U49: Kuiz
C50: Total | T50: =SUM(T45:T49) -> 16
C52: Final Assessment | L52: Percentage (%) | N52: F2F | Q52: NF2F | T52: SLT
C53: 1 | D53: Final Examination | L53: 30 | N53: 2.5 | Q53: 4.5 | T53: =SUM(N53:S53) -> 7
C54: 2 | T54: 0 | U54: =D54 -> 
C55: 3 | T55: 0
C56: 4 | T56: 0
C57: 5 | T57: 0
T58: =SUM(T53:T57) -> 7 | U58: =D58 -> 
C60: **Please tick (ü) in this course is Latihan Industri / Clinical Placement / Practicum / WBL using 2 weeks; 1 credit formula | T60: =+T42+T50+T58 -> 80
C61: L= Lecture, T=Tutorial, P=Practical, O=Others, F2F=Face to Face, NF2F=None Face to Face
C62: *Indicate the CLO based on the CLO's numbering in item 8
B63: 11 | C63: Identify special requirement to deliver the course (e.g: software, nursery, computer lab, simulation room, etc) | H63: None
U64: =H64 -> 
B65: 12 | C65: References: | H65: Abdul Mua'ti @ Zamri Ahmad (2015). Panduan Pengucapan Awam, Edisi kedua, Kuala Lumpur. Dewan Bahasa dan Pustaka
C66: (include required and further readings, and should be the most current) | H66: 1. Jumali Hj.Selamat. (2012). Pengucapan Awam Strategik dan Kemahiran. Saturn Universe Abdullah Hassan, Ainon Mohd. (1998), Komunikasi Untuk Pemimpin, Kuala Lumpur, Utusan Publication & Distributors Sdn Bhd. 2. Hrd Tim Pemenangan Pemilu Nasional. (2008), Materi Keterampilan Tekad, Solo, Era Intermedia. Hisham Altalib. (1992) Alih Bahasa Wan Izzuddin Wan Sulaiman, Panduan Latihan Bagi Petugas Islam, Kuala Lumpur, Nurin Enterprise. 3. Sallehuddin Hj. Mohd Noor, Jallaludin Haji Mohd Noor & Ishak Haji Abdul Rahman. (2003). Pengucapan Awam. Kuala Lumpur: Thomson Learning (a division of thomas learning) Pte.Ltd Kuulwindr Kaur Sidhu. (2006). Pengucapan Awam Dan Kemahiran Persembahan. Kuala Lumpur: Penerbit Universiti Malaya. 4. Abdullah Hassan & Ainon Mohd.(2001). Teori Dan Teknik Ucapan Berpengaruh. Kuala Lumpur: PTS Publications and Distibutions Sdn Bhd. | U66: =H66 -> 1. Jumali Hj.Selamat. (2012). Pengucapan Awam Strategik dan Kemahiran. Saturn Universe Abdullah Hassan, Ainon Mohd. (1998), Komunikasi Untuk Pemimpin, Kuala Lumpur, Utusan Publication & Distributors Sdn Bhd. 2. Hrd Tim Pemenangan Pemilu Nasional. (2008), Materi Keterampilan Tekad, Solo, Era Intermedia. Hisham Altalib. (1992) Alih Bahasa Wan Izzuddin Wan Sulaiman, Panduan Latihan Bagi Petugas Islam, Kuala Lumpur, Nurin Enterprise. 3. Sallehuddin Hj. Mohd Noor, Jallaludin Haji Mohd Noor & Ishak Haji Abdul Rahman. (2003). Pengucapan Awam. Kuala Lumpur: Thomson Learning (a division of thomas learning) Pte.Ltd Kuulwindr Kaur Sidhu. (2006). Pengucapan Awam Dan Kemahiran Persembahan. Kuala Lumpur: Penerbit Universiti Malaya. 4. Abdullah Hassan & Ainon Mohd.(2001). Teori Dan Teknik Ucapan Berpengaruh. Kuala Lumpur: PTS Publications and Distibutions Sdn Bhd.
B67: 13 | C67: Other additional Information | H67: Kemaskini pada : 24 November 2019 | U67: Kemaskini pada : 24 November 2019

Sheet MPU2312
B2: Back | C2: Name of Course | D2: ISLAM DAN PEMBENTUKAN MASYARAKAT MALAYSIA | AK2: 1 | AL2: 1
C3: Course Code | D3: MPU 2312 | AJ3: √ | AK3: 2 | AL3: 2
B4: 2 | C4: Synopsis | D4: Kursus ini membincangkan tentang Islam dan konsep-konsep asas yang tertumpu kepada Islam sebagai cara hidup. Dalam bahagian Islam sebagai peradaban dan tamadun merangkumi tajuk-tajuk konsep peradaban dan tamadun, keunikan dan keistimewaan tamadun Islam, faktor kejayaan dan kemerosotan tamadun Islam, sumbangan tamadun Islam, dan seni dan keindahan Islam. Bahagian Institusi Islam merangkumi tajuk-tajuk kekeluargaan dan kemasyarakatan, pendidikan, pemerintahan dan pentadbiran, perundangan, dan ekonomi dan kewangan. Bahagian yang terakhir adalah mengenai Islam dan cabaran semasa di Malaysia. | U4: =D4 -> Kursus ini membincangkan tentang Islam dan konsep-konsep asas yang tertumpu kepada Islam sebagai cara hidup. Dalam bahagian Islam sebagai peradaban dan tamadun merangkumi tajuk-tajuk konsep peradaban dan tamadun, keunikan dan keistimewaan tamadun Islam, faktor kejayaan dan kemerosotan tamadun Islam, sumbangan tamadun Islam, dan seni dan keindahan Islam. Bahagian Institusi Islam merangkumi tajuk-tajuk kekeluargaan dan kemasyarakatan, pendidikan, pemerintahan dan pentadbiran, perundangan, dan ekonomi dan kewangan. Bahagian yang terakhir adalah mengenai Islam dan cabaran semasa di Malaysia. | AK4: 3 | AL4: 3
B5: 3 | C5: Name (s) of Academic Staff | D5: Wan Muhammad Silmi Hamzah | AK5: 4 | AL5: 4
B6: 4 | C6: Semester | D6: Semester | E6: 3 | F6: Year | G6: 2 | AK6: 5
B7: 5 | C7: Credit Value | D7: =IF(T57=40,1,(IF(T57=80,2,(IF(T57=120,3,(IF(T57=160,4,IF(T57=200,5,IF(T57=240,6,""))))))))) -> 2 | AK7: 6
B8: 6 | C8: Pre-requisite / Co-requisite (if any) | AK8: 7
B9: 7 | C9: Course Learning Outcomes (CLO): At the end of the course the students will be able to: | AK9: 8
C10: (example) - explain the basic principles of immunisation (C2, PLO1) | AK10: 9
C11: CLO1 | D11: Menerangkan Islam sebagai sebuah peradaban dan tamadun yang menyumbang kepada pembangunan ummah. (C2, PLO1) | U11: =D11 -> Menerangkan Islam sebagai sebuah peradaban dan tamadun yang menyumbang kepada pembangunan ummah. (C2, PLO1) | AK11: 10
C12: CLO2 | D12: Menghubungkaitkan konsep dan teori peradaban Islam dengan era globalisasi. (C3, PLO2) | U12: Menghubungkaitkan konsep dan teori peradaban Islam dengan era globalisasi. (C3, PLO2) | AK12: 11
C13: CLO3 | D13: Membincangkan cabaran dan cara menangani permasalahan yang dihadapi oleh masyarakat majmuk Malaysia. (A3, C3, PLO4)
C14: CLO4 | AK14: 12
B15: 8 | C15: Mapping of the Course Learning Outcomes to the Programme Learning Outcomes, Teaching Methods and Assessment:
C16: Course Learning Outcomes (CLO) | D16: Programme Learning Outcomes (PLO) | P16: Teaching Methods | S16: Assessment
D17: PLO1 | E17: PLO2 | F17: PLO3 | G17: PLO4 | H17: PLO5 | I17: PLO6 | J17: PLO7 | K17: PLO8 | L17: PLO9 | M17: PLO10 | N17: PLO11 | O17: PLO12
C18: CLO1 | D18: √ | P18: Lecture | Discussion | S18: Assignment | Quiz | Test | Final Examination | U18: =S18 -> Assignment | Quiz | Test | Final Examination
C19: CLO2 | E19: √ | P19: Lecture | Discussion | S19: Assignment | Quiz | Test | Final Examination
C20: CLO3 | G20: √ | P20: Lecture | Discussion | Presentation | S20: Assignment | Final Examination
C21: CLO4
C22: (The description must be read together with standards 2.1.2, 2.2.1 and 2.2.2 in Area 2 - pages 16 & 18)
B23: 9 | C23: Transferable skills (if applicable) | G23: 1 | H23: Pengetahuan
C24: (Skills learned in the course of study which can be useful and utilised in other settings) | G24: 2 | H24: Etika dan moral
G25: 3 | H25: Pengetahuan berterusan
B26: 10 | C26: Distribution of Students Learning Time (SLT)
C27: Course Content Outline | G27: CLO | I27: Teaching and Learning Activities | T27: SLT
I28: Guided learning (F2F) | Q28: Guided Learning (NF2F) eg: e-learning | S28: Independent learning (NF2F)
I29: L | K29: T | M29: P | O29: O
C30: Islam dan Konsep-Konsep Asas Islam sebagai cara hidup  Pengertian Islam, iman dan ihsan  Konsep Islam sebagai al-Din  Islam Dalam Perlembagaan Malaysia  Asas-asas syariat Islam:-  Akidah: Rububiah, Uluhiyah, Asma’ wa sifat  Syariah: Ibadah, muamalah, munakahat, dan jinayat  Akhlak: hubungan dengan Allah, manusia dan alam  Maqasid al-Shari’ah (tujuan-tujuan syariah):  Dharurriat al-Khamsah  Tasawwur Islam: keistimewaan dan ciri-ciri:  Rabbani (ketuhanan)  Thabat wa al-Murunah (tetap dan anjal)  Waq’iyyah (realistik)  Tawazun (keseimbangan)  Syumul (menyeluruh)  ’Alamiyyah (sejagat)  Wasatiyyah (kesederhanaan)  Pandangan semester alam:  Pandangan Islam mengenai konsep tuhan, manusia, dan alam  Konsep hak dan tanggungjawab  Konsep ilmu  Pengkelasan ilmu, sumber pengetahuan dan hierarki ilmuan  Konsep nilai:  Sumber-sumber nilai (Al-Quran, hadis qudsi, sunnah, ’uruf dan ’adah)  Hierarki nilai (mahmudah, makhruzah, mazmumah)  Pelaksanaan nilai dalam kehidupan  Konsep jihad dalam Islam:  Pengertian  Jenis-jenis  Unsur-unsur: hijrah, perjuangan, pengorbanan, syahid dan sebagainya.  Kepentingan dan keutamaan | G30: CLO 1 | I30: 4 | K30: 2 | M30: 0 | S30: 3 | T30: =SUM(I30:S30) -> 9
C31: Islam Sebagai Peradaban Dan Tamadun Konsep peradaban dan tamadun  Pengertian  Ciri-ciri  Sumber tamadun Keunikan dan keistimewaan tamadun Islam  Ciri-ciri keunikan dan keistimewaan Faktor kejayaan dan kemerosotan Tamadun Islam Sumbangan tamadun Islam  Sumbangan dalam pelbagai bidang – sains dan teknologi, sosial sains dan kemanusian Islam Dalam Tamadun Melayu  Pengenalan Tamadun Melayu  Kedatangan Islam ke Tanah Melayu  Sumbangan Islam kepada Tamadun Melayu | G31: CLO 2 | I31: 2 | K31: 2 | O31: 0 | S31: 2 | T31: 6 | U31: =C31 -> Islam Sebagai Peradaban Dan Tamadun Konsep peradaban dan tamadun  Pengertian  Ciri-ciri  Sumber tamadun Keunikan dan keistimewaan tamadun Islam  Ciri-ciri keunikan dan keistimewaan Faktor kejayaan dan kemerosotan Tamadun Islam Sumbangan tamadun Islam  Sumbangan dalam pelbagai bidang – sains dan teknologi, sosial sains dan kemanusian Islam Dalam Tamadun Melayu  Pengenalan Tamadun Melayu  Kedatangan Islam ke Tanah Melayu  Sumbangan Islam kepada Tamadun Melayu
C32: Seni dan keindahan Islam  Konsep dan prinsip seni dan keindahan  Seni dan manisfesi budaya:  Senibina dan rekabentuk bangunan  Kaligrafi  Kesusasteraan dan persuratan  Seni suara  Seni dan Keindahan Islam di Malaysia | G32: CLO 2 | I32: 2 | K32: 2 | S32: 2 | T32: 6 | U32: Seni dan keindahan Islam  Konsep dan prinsip seni dan keindahan  Seni dan manisfesi budaya:  Senibina dan rekabentuk bangunan  Kaligrafi  Kesusasteraan dan persuratan  Seni suara  Seni dan Keindahan Islam di Malaysia
C33: Institusi Islam Kekeluargaan dan kemasyarakatan  Pembinaan institusi keluarga:  Falsafah dan konsep  Peranan, hak dan tanggungjawab  Pembentukan masyarakat:  Falsafah dan konsep  Peranan, hak dan tanggungjawab  Islam dan masyarakat majmuk di Malaysia  Falsafah dan konsep  Peranan, hak dan tanggungjawab warganegara  Ummah pertengahan (ummatan wasatan) dan terbaik (khayru ummah) | G33: CLO 2 | I33: 2 | K33: 2 | S33: 3 | T33: 7 | U33: Institusi Islam Kekeluargaan dan kemasyarakatan  Pembinaan institusi keluarga:  Falsafah dan konsep  Peranan, hak dan tanggungjawab  Pembentukan masyarakat:  Falsafah dan konsep  Peranan, hak dan tanggungjawab  Islam dan masyarakat majmuk di Malaysia  Falsafah dan konsep  Peranan, hak dan tanggungjawab warganegara  Ummah pertengahan (ummatan wasatan) dan terbaik (khayru ummah)
C34: Pendidikan  Falsafah dan konsep pendidikan  Adab dalam pengajaran dan pembelajaran  Peranan, hak dan tanggungjawab:  Individu  Keluarga  Masyarakat  Para ilmuan/ ulamak  Pemerintah  Perkembangan Institusi Pendidiikan Islam di Malaysia | G34: CLO 2 | I34: 2 | K34: 2 | S34: 2 | T34: 6 | U34: Pendidikan  Falsafah dan konsep pendidikan  Adab dalam pengajaran dan pembelajaran  Peranan, hak dan tanggungjawab:  Individu  Keluarga  Masyarakat  Para ilmuan/ ulamak  Pemerintah  Perkembangan Institusi Pendidiikan Islam di Malaysia
C35: Pemerintahan dan pentadbiran  Sistem pemerintahan dan pentadbiran  Konsep  Prinsip  Ciri-ciri  Istilah-istilah (khalifah, imamah dan imarah)  Pemerintahan dan kepimpinan Rasulullah SAW dan Khulafa’ al-Rasyidin (merujuk kepada hadith mengenai ’kurun terbaik’):  Keadilan  Kesamarataan  Kebebasan  Ketelusan  Syura  Sistem Demokrasi Dalam Konteks Malaysia  Perbandingan demokrasi dan syura  Pentadbiran Islam di Malaysia | G35: CLO 2 | I35: 2 | K35: 2 | S35: 2 | T35: 6 | U35: Pemerintahan dan pentadbiran  Sistem pemerintahan dan pentadbiran  Konsep  Prinsip  Ciri-ciri  Istilah-istilah (khalifah, imamah dan imarah)  Pemerintahan dan kepimpinan Rasulullah SAW dan Khulafa’ al-Rasyidin (merujuk kepada hadith mengenai ’kurun terbaik’):  Keadilan  Kesamarataan  Kebebasan  Ketelusan  Syura  Sistem Demokrasi Dalam Konteks Malaysia  Perbandingan demokrasi dan syura  Pentadbiran Islam di Malaysia
C36: Perundangan  Konsep, prinsip, dan falsafah perundangan Islam  Sumber-sumber perundangan Islam:  Sumber primer (Al-Quran, Hadith Qudsi& A-Sunnah)  Sumber sekunder (ijmak dan qiyas)  Klasifikasi hukum:  Hudud  Qisas  Ta’zir  Prinsip dan konsep pemikiran mazhab dalam Islam:  Mazhab-mazhab mu’tabar  Perundangan Islam di Malaysia  Mahkamah Syariah | G36: CLO 4 | I36: 2 | K36: 2 | S36: 2 | T36: 6 | U36: Perundangan  Konsep, prinsip, dan falsafah perundangan Islam  Sumber-sumber perundangan Islam:  Sumber primer (Al-Quran, Hadith Qudsi& A-Sunnah)  Sumber sekunder (ijmak dan qiyas)  Klasifikasi hukum:  Hudud  Qisas  Ta’zir  Prinsip dan konsep pemikiran mazhab dalam Islam:  Mazhab-mazhab mu’tabar  Perundangan Islam di Malaysia  Mahkamah Syariah
C37: Ekonomi dan kewangan  Falsafah ekonomi dan kewangan Islam  Konsep asas ekonomi dan kewangan  Institusi (baitulmal, wakaf, perbankan, takaful, gadaian)  Produk (simpanan, pelaburan, pembiayaan, pinjaman)  Perkembangan Institusi Kewangan dan Perbankan Islam di Malaysia | G37: CLO 3 | I37: 2 | K37: 2 | S37: 2 | T37: 6 | U37: Ekonomi dan kewangan  Falsafah ekonomi dan kewangan Islam  Konsep asas ekonomi dan kewangan  Institusi (baitulmal, wakaf, perbankan, takaful, gadaian)  Produk (simpanan, pelaburan, pembiayaan, pinjaman)  Perkembangan Institusi Kewangan dan Perbankan Islam di Malaysia
C38: Islam Dan Cabaran Semasa  Keruntuhan akhlak  Kerenggangan dalam keluarga  Penyalahgunaan dadah  Seks bebas  Sumbang mahram  Individualistik  Materialistik  Rasuah  Pembangunan dan alam sekitar  Pencemaran  Ketidakseimbangan pembangunan (rohani, jasmani, kebendaan, Bandar danluarbandar)  Sains teknologi dan ICT  Etika Islam  Penyalahgunaan dan penyelewengan  Globalisasi – budaya, politik dan ekonomi  Salah faham terhadap Islam  Di kalangan umat Islam  Di kalangan bukan Islam  Perpaduan ummah | G38: CLO 3 | I38: 2 | K38: 2 | S38: 3 | T38: 7 | U38: Islam Dan Cabaran Semasa  Keruntuhan akhlak  Kerenggangan dalam keluarga  Penyalahgunaan dadah  Seks bebas  Sumbang mahram  Individualistik  Materialistik  Rasuah  Pembangunan dan alam sekitar  Pencemaran  Ketidakseimbangan pembangunan (rohani, jasmani, kebendaan, Bandar danluarbandar)  Sains teknologi dan ICT  Etika Islam  Penyalahgunaan dan penyelewengan  Globalisasi – budaya, politik dan ekonomi  Salah faham terhadap Islam  Di kalangan umat Islam  Di kalangan bukan Islam  Perpaduan ummah
C39: Total | T39: =SUM(T30:T38) -> 59 | U39: Total
C41: Continuous Assessment | L41: Percentage (%) | N41: F2F | Q41: NF2F | T41: SLT
C42: 1 | D42: Quiz | L42: 10 | N42: 1 | Q42: 2 | T42: =SUM(N42:S42) -> 3
C43: 2 | D43: Test | L43: 25 | N43: 2 | Q43: 3 | T43: 5 | U43: =D43 -> Test
C44: 3 | D44: Assignment | L44: 15 | N44: 2 | Q44: 3 | T44: 5 | U44: =#REF! -> #REF!
C45: 4 | T45: 0 | U45: =D44 -> Assignment
C46: 5 | T46: 0 | U46: =D46 -> 
C47: Total | T47: =SUM(T42:T46) -> 13
C49: Final Assessment | L49: Percentage (%) | N49: F2F | Q49: NF2F | T49: SLT
C50: 1 | D50: Final Examination | L50: 50 | N50: 2 | Q50: 6 | T50: =SUM(N50:S50) -> 8
C51: 2 | T51: 0 | U51: =D51 -> 
C52: 3 | T52: 0
C53: 4 | T53: 0
C54: 5 | T54: 0
T55: =SUM(T50:T54) -> 8 | U55: =D55 -> 
C57: **Please tick (ü) in this course is Latihan Industri / Clinical Placement / Practicum / WBL using 2 weeks; 1 credit formula | T57: =+T39+T47+T55 -> 80
C58: L= Lecture, T=Tutorial, P=Practical, O=Others, F2F=Face to Face, NF2F=None Face to Face
C59: *Indicate the CLO based on the CLO's numbering in item 8
B60: 11 | C60: Identify special requirement to deliver the course (e.g: software, nursery, computer lab, simulation room, etc) | H60: None
U61: =H61 -> 
B62: 12 | C62: References: | H62: 1. Wan Ali Wan Yusof, Mohd Hambali Rashid, et.al. (2011). Tasawwur Islam. Penerbitan UTM 2. Roziah Sidik, Zulkarnain Mohamed & Nasruddin Yunos. (2011). Pengajian Islam, Edisi Kedua. Shah Alam: Oxford Fajar. 3. Muhd Yusof Ahmad (2003). Pengajian Islam, Kuala Lumpur. Penerbit Universiti Malaya 4. Beg, M.A.J (1980). The Images of Islamic Civilization. Kuala Lumpur: Univ. Of Malaya Press. 5. Haron Din. (1991). Manusia dan Islam. Jilid 3. Kuala Lumpur: DPP
C63: (include required and further readings, and should be the most current) | H63: 1. Shaharir Mohamad Zin (ed) (1995). Pengenalan Tamadun Islam Dalam Sains dan Teknologi. Kuala Lumpur: DBP 2. Amed, Akhbar S. (1992). Postmodernisme And Islam: Predicament And Promise. London: Routledge. 3. Al-Mawdudi, Abu Al-Ala (1981). Towards Understanding Islam. Singapore: Pustaka Nasional. 4. Al-Qardawi, Yusof (1994). Kebangkitan Islam Di Antara Tantangan Dan Ekstrimisme. Angkatan Belia Islam Malaysia. 5. Bucaille, Maurice (t.t). The Bible, Al-Quran And Science. Paris: Seghers. 6. Gauhar, Altaf (eds) (1978). The Challenge Of Islam. Islamic Council Of Europe. 7. Haron Din (1992). Tasawur Islam. Shah Alam: Hizbi. 8. Ibn Khaldun, `Abd Al-Rahman (1995). Muqaddimah (terj). Kuala Lumpur: DBP 9. Mohd Yusof Ahmad (2003). Pengajian Islam. Kuala Lumpur: Penerbit Universiti Malaya. 10. Nasr, Seyyed Hossein (1984). Science And Civilisation In Islam. Shah Alam: Dewan Pustaka Fajar. 11. OthmanYatim (1989). Warisan Kesenian DalamTamadun Islam. Kuala Lumpur: DBP. 12. Qutb, Muhammad (1995). Salah Faham Terhadap Islam (terj. Yusoff Zaki). Kota Bharu: Dian. 13. Qutb, Sayyid (2000). Social Justice In Islam (tr). J.B. Hardie (New ed. And introd. By Hamid Algar). Islamic Publication International. 14. Sardar, Ziuddin (1981). Sains, Teknologi dan Pembangunan Di Dunia Islam (terj). Kuala Lumpur: Yayasan Dakwah Islamiah Malaysia. 15. Toynbee, A.J. (1987). A Study Of History (abridged). London: Oxford University Press. | U63: =H63 -> 1. Shaharir Mohamad Zin (ed) (1995). Pengenalan Tamadun Islam Dalam Sains dan Teknologi. Kuala Lumpur: DBP 2. Amed, Akhbar S. (1992). Postmodernisme And Islam: Predicament And Promise. London: Routledge. 3. Al-Mawdudi, Abu Al-Ala (1981). Towards Understanding Islam. Singapore: Pustaka Nasional. 4. Al-Qardawi, Yusof (1994). Kebangkitan Islam Di Antara Tantangan Dan Ekstrimisme. Angkatan Belia Islam Malaysia. 5. Bucaille, Maurice (t.t). The Bible, Al-Quran And Science. Paris: Seghers. 6. Gauhar, Altaf (eds) (1978). The Challenge Of Islam. Islamic Council Of Europe. 7. Haron Din (1992). Tasawur Islam. Shah Alam: Hizbi. 8. Ibn Khaldun, `Abd Al-Rahman (1995). Muqaddimah (terj). Kuala Lumpur: DBP 9. Mohd Yusof Ahmad (2003). Pengajian Islam. Kuala Lumpur: Penerbit Universiti Malaya. 10. Nasr, Seyyed Hossein (1984). Science And Civilisation In Islam. Shah Alam: Dewan Pustaka Fajar. 11. OthmanYatim (1989). Warisan Kesenian DalamTamadun Islam. Kuala Lumpur: DBP. 12. Qutb, Muhammad (1995). Salah Faham Terhadap Islam (terj. Yusoff Zaki). Kota Bharu: Dian. 13. Qutb, Sayyid (2000). Social Justice In Islam (tr). J.B. Hardie (New ed. And introd. By Hamid Algar). Islamic Publication International. 14. Sardar, Ziuddin (1981). Sains, Teknologi dan Pembangunan Di Dunia Islam (terj). Kuala Lumpur: Yayasan Dakwah Islamiah Malaysia. 15. Toynbee, A.J. (1987). A Study Of History (abridged). London: Oxford University Press.
B64: 13 | C64: Other additional Information | H64: Last updated : 24 November 2019 | U64: Last updated : 24 November 2019

Sheet MPU2422
B2: Back | C2: Name of Course | D2: Pengurusan Acara | AK2: 1 | AL2: 1
C3: Course Code | D3: MPU2422 | AJ3: √ | AK3: 2 | AL3: 2
B4: 2 | C4: Synopsis | D4: Kursus ini direkabentuk untuk memberikan pelajar satu pengalaman untuk menjalankan program yang berkait dengan kursus yang diambil. Pelajar akan dipandu untuk mengenalpasti keperluan atau masalah, merancang, menyelaras sesuatu program sebelum, semasa dan selepas sesuatu program itu dijalankan. | U4: =D4 -> Kursus ini direkabentuk untuk memberikan pelajar satu pengalaman untuk menjalankan program yang berkait dengan kursus yang diambil. Pelajar akan dipandu untuk mengenalpasti keperluan atau masalah, merancang, menyelaras sesuatu program sebelum, semasa dan selepas sesuatu program itu dijalankan. | AK4: 3 | AL4: 3
B5: 3 | C5: Name (s) of Academic Staff | D5: Noor Enaida binti Tutan Khamin | AK5: 4 | AL5: 4
B6: 4 | C6: Semester | D6: Semester | E6: 5 | F6: Year | G6: 2 | AK6: 5
B7: 5 | C7: Credit Value | D7: =IF(T53=40,1,(IF(T53=80,2,(IF(T53=120,3,(IF(T53=160,4,IF(T53=200,5,IF(T53=240,6,""))))))))) -> 2 | AK7: 6
B8: 6 | C8: Pre-requisite / Co-requisite (if any) | AK8: 7
B9: 7 | C9: Course Learning Outcomes (CLO): At the end of the course the students will be able to: | AK9: 8
C10: (example) - explain the basic principles of immunisation (C2, PLO1) | AK10: 9
C11: CLO1 | D11: Mengaplikasikan teori pengurusan acara dan sumber yang cekap dan berkesan. (P3, PLO3) | U11: =D11 -> Mengaplikasikan teori pengurusan acara dan sumber yang cekap dan berkesan. (P3, PLO3) | AK11: 10
C12: CLO2 | D12: Mengaplikasikan kemahiran kepimpinan dan bekerja secara berpasukan. (A3, TS3, PLO4) | U12: Mengaplikasikan kemahiran kepimpinan dan bekerja secara berpasukan. (A3, TS3, PLO4) | AK12: 11
C13: CLO3 | D13: Mengenalpasti dan mengurus maklumat dari pelbagai sumber bagi melaksanakan sesuatu acara (A3, LLS3, PLO6)
B14: 8 | C14: Mapping of the Course Learning Outcomes to the Programme Learning Outcomes, Teaching Methods and Assessment:
C15: Course Learning Outcomes (CLO) | D15: Programme Learning Outcomes (PLO) | P15: Teaching Methods | S15: Assessment
D16: PLO1 | E16: PLO2 | F16: PLO3 | G16: PLO4 | H16: PLO5 | I16: PLO6 | J16: PLO7 | K16: PLO8 | L16: PLO9 | M16: PLO10 | N16: PLO11 | O16: PLO12
C17: CLO1 | F17: √ | P17: Kuliah | Perbincangan | S17: Assignment | U17: =S17 -> Assignment
C18: CLO2 | G18: √ | P18: Kuliah | Aktiviti pelajar | S18: Assignment
C19: CLO3 | I19: √ | P19: Kuliah | Aktiviti Pelajar | Pembentangan | S19: Projek
C20: (The description must be read together with standards 2.1.2, 2.2.1 and 2.2.2 in Area 2 - pages 16 & 18)
B21: 9 | C21: Transferable skills (if applicable) | G21: 1 | H21: Pemikiran kreatif
C22: (Skills learned in the course of study which can be useful and utilised in other settings) | G22: 2 | H22: Komunikasi secara lisan
G23: 3 | H23: Pengurusan masa
B24: 10 | C24: Distribution of Students Learning Time (SLT)
C25: Course Content Outline | G25: CLO | I25: Teaching and Learning Activities | T25: SLT
I26: Guided learning (F2F) | Q26: Guided Learning (NF2F) eg: e-learning | S26: Independent learning (NF2F)
I27: L | K27: T | M27: P | O27: O
C28: 1.0 Panduan penyediaan kertas kerja dan kelulusan | G28: CLO 2 | I28: 0.5 | K28: 1 | M28: 0 | O28: 1 | S28: 5 | T28: =SUM(I28:S28) -> 7.5
C29: 2.0 Perancangan dan perbentangan program | G29: CLO 1 | I29: 0.5 | K29: 1 | O29: 1 | S29: 5 | T29: 7.5 | U29: =C29 -> 2.0 Perancangan dan perbentangan program
C30: 3.0 Pengurusan dan pemasaran acara | G30: CLO 3 | I30: 0.5 | K30: 1 | O30: 1 | S30: 5 | T30: 7.5 | U30: 3.0 Pengurusan dan pemasaran acara
C31: 4.0 Perancangan kewangan dan pembiayaan sesuatu acara | G31: CLO 1 | I31: 1 | K31: 2 | O31: 1 | S31: 5 | T31: 9 | U31: 4.0 Perancangan kewangan dan pembiayaan sesuatu acara
C32: 5.0 Pengurusan sumber manusia dalam menyelaras acara | G32: CLO 3 | I32: 0.5 | K32: 2 | O32: 1 | S32: 5 | T32: 8.5 | U32: 5.0 Pengurusan sumber manusia dalam menyelaras acara
C33: 6.0 Kepentingan logistik dalam pengurusan acara | G33: CLO 2 | I33: 0.5 | K33: 2 | O33: 1 | S33: 5 | T33: 8.5 | U33: 6.0 Kepentingan logistik dalam pengurusan acara
C34: 7.0 Klasifikasi elemen pementasan (staging) dan pemilihan tempat | G34: CLO 2 | I34: 0.5 | K34: 2 | O34: 1 | S34: 4 | T34: 7.5 | U34: 7.0 Klasifikasi elemen pementasan (staging) dan pemilihan tempat
C35: Total | T35: =SUM(T28:T34) -> 56 | U35: Total
C37: Continuous Assessment | L37: Percentage (%) | N37: F2F | Q37: NF2F | T37: SLT
C38: 1 | D38: Laporan projek | L38: 45 | N38: 1.5 | Q38: 3 | T38: =SUM(N38:S38) -> 4.5
C39: 2 | D39: Pembentangan | L39: 15 | Q39: 3 | T39: 3 | U39: =D39 -> Pembentangan
C40: 3 | D40: Penglibatan dalam projek | L40: 20 | N40: 3 | Q40: 3 | T40: 6 | U40: Penglibatan dalam projek
C41: 4 | D41: Tugasan 1 (outing) | L41: 10 | N41: 1.5 | Q41: 2 | T41: 3.5 | U41: Tugasan 1 (outing)
C42: 5 | D42: Tugasan 2 | L42: 10 | T42: 0 | U42: Tugasan 2
C43: Total | T43: =SUM(T38:T42) -> 17
C45: Final Assessment | L45: Percentage (%) | N45: F2F | Q45: NF2F | T45: SLT
C46: 1 | D46: Final Examination | L46: 50 | N46: 2.5 | Q46: 4.5 | T46: =SUM(N46:S46) -> 7
C47: 2 | T47: 0 | U47: =D47 -> 
C48: 3 | T48: 0
C49: 4 | T49: 0
C50: 5 | T50: 0
T51: =SUM(T46:T50) -> 7 | U51: =D51 -> 
C53: **Please tick (ü) in this course is Latihan Industri / Clinical Placement / Practicum / WBL using 2 weeks; 1 credit formula | T53: =+T35+T43+T51 -> 80
C54: L= Lecture, T=Tutorial, P=Practical, O=Others, F2F=Face to Face, NF2F=None Face to Face
C55: *Indicate the CLO based on the CLO's numbering in item 8
B56: 11 | C56: Identify special requirement to deliver the course (e.g: software, nursery, computer lab, simulation room, etc) | H56: None
U57: =H57 -> 
B58: 12 | C58: References: | H58: Panduan Pengurusan Majlis dan Acara (2014), Edisi Pertama. Jabatan Perdana Menteri.
C59: (include required and further readings, and should be the most current) | H59: Wilson, J. P. (2012). International Human Resource Development: Learning, Education and training for Individuals and Organisations. Kogan Page. Stephan P.Robbins (2011). Fundamentals of Management. Pearson Prentice Hall. Charles Bladen, James Kennell (2012). Events Management An Introduction. Routledge. Sidek Mohd Noah. (2002). Perkembangan kerjaya: Teori & praktis. Serdang: Universiti Putra Malaysia. Wilson, J. P. (2005). Human resource development: Learning and training for individuals and | U59: =H59 -> Wilson, J. P. (2012). International Human Resource Development: Learning, Education and training for Individuals and Organisations. Kogan Page. Stephan P.Robbins (2011). Fundamentals of Management. Pearson Prentice Hall. Charles Bladen, James Kennell (2012). Events Management An Introduction. Routledge. Sidek Mohd Noah. (2002). Perkembangan kerjaya: Teori & praktis. Serdang: Universiti Putra Malaysia. Wilson, J. P. (2005). Human resource development: Learning and training for individuals and
B60: 13 | C60: Other additional Information | H60: Kemaskini pada : 24 November 2019 | U60: Kemaskini pada : 24 November 2019

Sheet MPU2212
A1: 1
B2: Back | C2: Name of Course | D2: Kemahiran Kerja Berpasukan | AK2: 1 | AL2: 1
C3: Course Code | D3: MPU2212 | AJ3: √ | AK3: 2 | AL3: 2
B4: 2 | C4: Synopsis | D4: Kursus ini adalah pendedahan asas kepada kemahiran kerja berpasukan. Pelajar dilatih untuk mencari matlamat yang jelas dalam setiap aktiviti berpasukan. Pelajar dibimbing melalui penerangan teori dan praktikal kerja berpasukan. Praktik kerja berpasukan adalah dalam aktiviti dan hidup di dalam dan di luar organisasi. Pelajar mempraktikkan bahan yang diajarkan dalam kumpulan dan juga bersendirian. Pelajar dinilai secara individu dan berpasukan melalui pembentangan, penelitian dan perundingan. | U4: =D4 -> Kursus ini adalah pendedahan asas kepada kemahiran kerja berpasukan. Pelajar dilatih untuk mencari matlamat yang jelas dalam setiap aktiviti berpasukan. Pelajar dibimbing melalui penerangan teori dan praktikal kerja berpasukan. Praktik kerja berpasukan adalah dalam aktiviti dan hidup di dalam dan di luar organisasi. Pelajar mempraktikkan bahan yang diajarkan dalam kumpulan dan juga bersendirian. Pelajar dinilai secara individu dan berpasukan melalui pembentangan, penelitian dan perundingan. | AK4: 3 | AL4: 3
B5: 3 | C5: Name (s) of Academic Staff | D5: Noor Enaida binti Tutan Khamin | AK5: 4 | AL5: 4
B6: 4 | C6: Semester | D6: Semester | E6: 2 | F6: Year | G6: 1 | AK6: 5
B7: 5 | C7: Credit Value | D7: =IF(T60=40,1,(IF(T60=80,2,(IF(T60=120,3,(IF(T60=160,4,IF(T60=200,5,IF(T60=240,6,""))))))))) -> 2 | AK7: 6
B8: 6 | C8: Pre-requisite / Co-requisite (if any) | AK8: 7
B9: 7 | C9: Course Learning Outcomes (CLO): At the end of the course the students will be able to: | AK9: 8
C10: (example) - explain the basic principles of immunisation (C2, PLO1) | AK10: 9
C11: CLO1 | D11: Menerangkan kepentingan kerja berpasukan dengan menggunakan sistem yang berkesan dan mempunyai matlamat yang jelas. (C2 PLO1) | U11: =D11 -> Menerangkan kepentingan kerja berpasukan dengan menggunakan sistem yang berkesan dan mempunyai matlamat yang jelas. (C2 PLO1) | AK11: 10
C12: CLO2 | D12: Membincangkan cara dan faktor bagi menjayakan kerja berpasukan. (A2, P2, PLO4) | U12: Membincangkan cara dan faktor bagi menjayakan kerja berpasukan. (A2, P2, PLO4) | AK12: 11
C13: CLO3 | D13: Mengetahui cara menangani faktor yang menggagalkan kerja berpasukan dan cara kerja berpasukan dalam organisasi . (A3, CTPS3, LL2, PLO9)
B14: 8 | C14: Mapping of the Course Learning Outcomes to the Programme Learning Outcomes, Teaching Methods and Assessment:
C15: Course Learning Outcomes (CLO) | D15: Programme Learning Outcomes (PLO) | P15: Teaching Methods | S15: Assessment
D16: PLO1 | E16: PLO2 | F16: PLO3 | G16: PLO4 | H16: PLO5 | I16: PLO6 | J16: PLO7 | K16: PLO8 | L16: PLO9 | M16: PLO10 | N16: PLO11 | O16: PLO12
C17: CLO1 | D17: √ | P17: Lecture | Discussion | S17: Assignment | Test | Final Examination | U17: =S17 -> Assignment | Test | Final Examination
C18: CLO2 | G18: √ | P18: Activities | Discussion | S18: Assignment | Portfolio
C19: CLO3 | L19: √ | P19: Discussion | Presentation | S19: Assignment | Portfolio | Project
C20: (The description must be read together with standards 2.1.2, 2.2.1 and 2.2.2 in Area 2 - pages 16 & 18)
B21: 9 | C21: Transferable skills (if applicable) | G21: 1 | H21: Kemahiran komunikasi
C22: (Skills learned in the course of study which can be useful and utilised in other settings) | G22: 2 | H22: Berfikiran kritis dan mampu menyelesaikan masalah
G23: 3 | H23: Kerja berpasukan
B24: 10 | C24: Distribution of Students Learning Time (SLT)
C25: Course Content Outline | G25: CLO | I25: Teaching and Learning Activities | T25: SLT
I26: Guided learning (F2F) | Q26: Guided Learning (NF2F) eg: e-learning | S26: Independent learning (NF2F)
I27: L | K27: T | M27: P | O27: O
C28: 1.0 Kepentingan kerja berpasukan – matlamat yang jelas & sistem berkesan: 1.1 Visi, misi, motivasi 1.2 Sistem (kerja berpasukan berteras mardotillah) 1.3 Penetapan matlamat dan sistem Amali – pelajar menyediakan matlamat dan menentukan sistem | G28: CLO 1 | I28: 1 | S28: 1 | T28: =SUM(I28:S28) -> 2
C29: 2.0 Menentukan objektif , strategi, moto dan slogan pasukan 2.1 Persamaan dan perbezaan antara matlamat dan objektif 2.2 Objektif pasukan yang selari dengan matlamat 2.3 Strategi pasukan yang selari dengan objektif 2.4 Moto dan slogan yang selari dengan objektif dan matlamat pasukan Amali - Strategi yang selari dengan matlamat dan objektif pasukan | G29: CLO 1 | I29: 1 | S29: 1 | T29: 2 | U29: =C29 -> 2.0 Menentukan objektif , strategi, moto dan slogan pasukan 2.1 Persamaan dan perbezaan antara matlamat dan objektif 2.2 Objektif pasukan yang selari dengan matlamat 2.3 Strategi pasukan yang selari dengan objektif 2.4 Moto dan slogan yang selari dengan objektif dan matlamat pasukan Amali - Strategi yang selari dengan matlamat dan objektif pasukan
C30: 3.0 Faktor-faktor yang menjayakan kerja berpasukan 3.1 Mengenali faktor-faktor kejayaan dalam pasukan 3.2 Mengenli cara memupuk kejayaan dalam kerja berpasukan Perundingan 1 (komunikasi, mengingat, berfikir, kejiwaan) | G30: CLO 1 | I30: 2 | S30: 2 | T30: 4 | U30: 3.0 Faktor-faktor yang menjayakan kerja berpasukan 3.1 Mengenali faktor-faktor kejayaan dalam pasukan 3.2 Mengenli cara memupuk kejayaan dalam kerja berpasukan Perundingan 1 (komunikasi, mengingat, berfikir, kejiwaan)
C31: 4.0 Komunikasi dan membina persefahaman dalam kerja berpasukan 4.1 Memenangi hati dan minda 4.2 Komunikasi dalam kalbu (taaruf) 4.3 Membena hubungan erat (ukhwah) Pembentangan kertas cadangan | G31: CLO 1 | I31: 2 | S31: 1 | T31: 3 | U31: 4.0 Komunikasi dan membina persefahaman dalam kerja berpasukan 4.1 Memenangi hati dan minda 4.2 Komunikasi dalam kalbu (taaruf) 4.3 Membena hubungan erat (ukhwah) Pembentangan kertas cadangan
C32: 5.0 Merancang dan memupuk persediaan bekerja berpasukan 5.1 Faedah daripada kepelbagaian dalam pasukan (Al-Hujerat) 5.2 Merancang dan memupuk persediaan berpasukan Pembentangan poster carta Gant dan senarai pembahagian tugas. | G32: CLO 1 | I32: 2 | S32: 2 | T32: 4 | U32: 5.0 Merancang dan memupuk persediaan bekerja berpasukan 5.1 Faedah daripada kepelbagaian dalam pasukan (Al-Hujerat) 5.2 Merancang dan memupuk persediaan berpasukan Pembentangan poster carta Gant dan senarai pembahagian tugas.
C33: 6.0 Menangani faktor yang menggagalkan kerja berpasukan secara tarbawi 6.1 Faktor dalaman 6.2 Faktor luaran | G33: CLO 1 | I33: 2 | S33: 1 | T33: 3 | U33: 6.0 Menangani faktor yang menggagalkan kerja berpasukan secara tarbawi 6.1 Faktor dalaman 6.2 Faktor luaran
C34: 7.0 Halangan kepada kejayaan kerja berpasukan 7.1 Mengenali halangan 7.2 Menangani halangan/ managing barriers 7.3 Kemas kini portfolio Mesyuarat (komunikasi, penyelesaian masalah, pembuatan keputusan, kepimpinan, berfikir, kejiwaan). | G34: CLO 1 | I34: 2 | S34: 2 | T34: 4 | U34: 7.0 Halangan kepada kejayaan kerja berpasukan 7.1 Mengenali halangan 7.2 Menangani halangan/ managing barriers 7.3 Kemas kini portfolio Mesyuarat (komunikasi, penyelesaian masalah, pembuatan keputusan, kepimpinan, berfikir, kejiwaan).
C35: 8.0 Mengurus konflik 8.1 Mengenali perubahan dan perselisihan 8.2 Menangani perubahan dan perselisihan 8.3 Menangani keenganan perubahan ahli psukan 8.4 Berkompromi dalam perkara yang ada perselisihan 8.5 Bekerjasama dalam perkara yang disepakati Minit mesyuarat (komunikasi, mengingat, berfikir, memahami, mengurus, menulis) | G35: CLO 1 | I35: 2 | S35: 2 | T35: 4 | U35: 8.0 Mengurus konflik 8.1 Mengenali perubahan dan perselisihan 8.2 Menangani perubahan dan perselisihan 8.3 Menangani keenganan perubahan ahli psukan 8.4 Berkompromi dalam perkara yang ada perselisihan 8.5 Bekerjasama dalam perkara yang disepakati Minit mesyuarat (komunikasi, mengingat, berfikir, memahami, mengurus, menulis)
C36: 9.0 Bekerja dalam pasukan 1 9.1 Dalam kumpulan kecil -9.2 Dalam keluarga Tugasan (kerja berpasukan dalam kehidupan seharian) (kajian kes – penyelesaian masalah, pra-syarat kerja berpasukan) | G36: CLO 1 | I36: 2 | S36: 2 | T36: 4 | U36: 9.0 Bekerja dalam pasukan 1 9.1 Dalam kumpulan kecil -9.2 Dalam keluarga Tugasan (kerja berpasukan dalam kehidupan seharian) (kajian kes – penyelesaian masalah, pra-syarat kerja berpasukan)
C37: 10.0 Bekerja dalam pasukan 2 10.1 Dalam masyarakat 10.2 Dalam negara | G37: CLO 1 | I37: 2 | S37: 1 | T37: 3 | U37: 10.0 Bekerja dalam pasukan 2 10.1 Dalam masyarakat 10.2 Dalam negara
C38: 11.0 Bekerja berpasukan dalam organisasi 1 11.2 Dalam persatuan, kelab, biro. Kemas kini portfolio | G38: CLO 1 | I38: 2 | S38: 1 | T38: 3 | U38: 11.0 Bekerja berpasukan dalam organisasi 1 11.2 Dalam persatuan, kelab, biro. Kemas kini portfolio
C39: 12.0 Bekerja berpasukan dalam organisasi 2 12.1 Dalam Syarikat 12.2 Dalam NGO 12.3 Keseimbangan antara kerja dan kehidupan di rumah Perundingan 2 (komunikasi, mengingat, berfikir, kejiwaan) | G39: CLO 1 | I39: 2 | S39: 2 | T39: 4 | U39: 12.0 Bekerja berpasukan dalam organisasi 2 12.1 Dalam Syarikat 12.2 Dalam NGO 12.3 Keseimbangan antara kerja dan kehidupan di rumah Perundingan 2 (komunikasi, mengingat, berfikir, kejiwaan)
C40: 13.0 Pasukan dalam organisasi 13.1 Perlaksanaan kerja berpasukan 13.2 Sokongan kepada pasukan perkembangan dan pembangunan pasukan. | G40: CLO 1 | I40: 2 | S40: 1 | T40: 3 | U40: 13.0 Pasukan dalam organisasi 13.1 Perlaksanaan kerja berpasukan 13.2 Sokongan kepada pasukan perkembangan dan pembangunan pasukan.
C41: 14.0 Menilai pencapaian dan kerjaya 14.1 Kepatatuhan kepada pihak berkuasa (ketua) Ujian bertulis (teori, prinsip dan praktikal) Kemas kini portfolio (mengurus, kemahiran menyusun atur) | G41: CLO 1 | I41: 2 | S41: 2 | T41: 4 | U41: 14.0 Menilai pencapaian dan kerjaya 14.1 Kepatatuhan kepada pihak berkuasa (ketua) Ujian bertulis (teori, prinsip dan praktikal) Kemas kini portfolio (mengurus, kemahiran menyusun atur)
C42: Total | T42: =SUM(T28:T41) -> 47 | U42: Total
C44: Continuous Assessment | L44: Percentage (%) | N44: F2F | Q44: NF2F | T44: SLT
C45: 1 | D45: Ujian 1 | L45: 10 | N45: 1 | Q45: 4 | T45: =SUM(N45:S45) -> 5
C46: 2 | D46: Tugasan | L46: 10 | Q46: 4 | T46: 4 | U46: =D46 -> Tugasan
C47: 3 | D47: Portfolio | L47: 10 | Q47: 8 | T47: 8 | U47: Portfolio
C48: 4 | D48: Projek | L48: 40 | N48: 1 | Q48: 8 | T48: 9 | U48: Projek
C49: 5 | T49: 0
C50: Total | T50: =SUM(T45:T49) -> 26
C52: Final Assessment | L52: Percentage (%) | N52: F2F | Q52: NF2F | T52: SLT
C53: 1 | D53: Final Examination | L53: 30 | N53: 2.5 | Q53: 4.5 | T53: =SUM(N53:S53) -> 7
C54: 2 | T54: 0 | U54: =D54 -> 
C55: 3 | T55: 0
C56: 4 | T56: 0
C57: 5 | T57: 0
T58: =SUM(T53:T57) -> 7 | U58: =D58 -> 
C60: **Please tick (ü) in this course is Latihan Industri / Clinical Placement / Practicum / WBL using 2 weeks; 1 credit formula | T60: =+T42+T50+T58 -> 80
C61: L= Lecture, T=Tutorial, P=Practical, O=Others, F2F=Face to Face, NF2F=None Face to Face
C62: *Indicate the CLO based on the CLO's numbering in item 8
B63: 11 | C63: Identify special requirement to deliver the course (e.g: software, nursery, computer lab, simulation room, etc) | H63: None
U64: =H64 -> 
B65: 12 | C65: References: | H65: 1. Mohd. Taib Dora (2015), Kecemerlangan kerja berpasukan , Universiti Teknikal Malaysia Melaka. 2. Michael A. West. (2012), Effective Teamwork. Practical Lessons from Organizational Research , West Sussex, UK, BPS Blackwell.
C66: (include required and further readings, and should be the most current) | H66: 3. Yeop Hussin Bidin (2006), Kerja Berpasukan, PTS Publications & Distributors, 2006 | U66: =H66 -> 3. Yeop Hussin Bidin (2006), Kerja Berpasukan, PTS Publications & Distributors, 2006
B67: 13 | C67: Other additional Information | H67: Kemaskini pada : 24 November 2019 | U67: Kemaskini pada : 24 November 2019

Sheet MPU2222
B2: Back | C2: Name of Course | D2: Kemahiran Kepimpinan | AK2: 1 | AL2: 1
C3: Course Code | D3: MPU 2222 | AJ3: √ | AK3: 2 | AL3: 2
B4: 2 | C4: Synopsis | D4: Kursus ini memberi pendedahan kepada pelajar mengenai konsep asas kepimpinan, teori dan jenis-jenis/gaya kepimpinan, tugas dan tanggungjawab pemimpin, komunikasi dalam kepimpinan, membina kemahiran kepimpinan dan kepimpinan Islam. | U4: =D4 -> Kursus ini memberi pendedahan kepada pelajar mengenai konsep asas kepimpinan, teori dan jenis-jenis/gaya kepimpinan, tugas dan tanggungjawab pemimpin, komunikasi dalam kepimpinan, membina kemahiran kepimpinan dan kepimpinan Islam. | AK4: 3 | AL4: 3
B5: 3 | C5: Name (s) of Academic Staff | D5: Noor Enaida binti Tutan Khamin | AK5: 4 | AL5: 4
B6: 4 | C6: Semester | D6: Semester | E6: 2 | F6: Year | G6: 1 | AK6: 5
B7: 5 | C7: Credit Value | D7: =IF(T58=40,1,(IF(T58=80,2,(IF(T58=120,3,(IF(T58=160,4,IF(T58=200,5,IF(T58=240,6,""))))))))) -> 2 | AK7: 6
B8: 6 | C8: Pre-requisite / Co-requisite (if any) | AK8: 7
B9: 7 | C9: Course Learning Outcomes (CLO): At the end of the course the students will be able to: | AK9: 8
C10: (example) - explain the basic principles of immunisation (C2, PLO1) | AK10: 9
C11: CLO1 | D11: Menjelaskan konsep asas, teori dan kemahiran kepimpinan dalam individu, kumpulan dan organisasi (C2 ,LS1, PLO1) | U11: =D11 -> Menjelaskan konsep asas, teori dan kemahiran kepimpinan dalam individu, kumpulan dan organisasi (C2 ,LS1, PLO1) | AK11: 10
C12: CLO2 | D12: Membentuk persepsi pelajar mengenai penerapan kemahiran kepimpinan dalam diri mereka menerusi aktiviti berkumpulan. (A3, LS3, PLO8) | U12: Membentuk persepsi pelajar mengenai penerapan kemahiran kepimpinan dalam diri mereka menerusi aktiviti berkumpulan. (A3, LS3, PLO8) | AK12: 11
C13: CLO3 | D13: Menjelaskan cara-cara mengaplikasikan kepimpinan secara individu, kumpulan dan organisasi (A3, LS2, PLO9)
B14: 8 | C14: Mapping of the Course Learning Outcomes to the Programme Learning Outcomes, Teaching Methods and Assessment:
C15: Course Learning Outcomes (CLO) | D15: Programme Learning Outcomes (PLO) | P15: Teaching Methods | S15: Assessment
D16: PLO1 | E16: PLO2 | F16: PLO3 | G16: PLO4 | H16: PLO5 | I16: PLO6 | J16: PLO7 | K16: PLO8 | L16: PLO9 | M16: PLO10 | N16: PLO11 | O16: PLO12
C17: CLO1 | D17: √ | P17: Kuliah | Perbincangan | S17: Tugasan| Portfolio | Peperiksaan akhir | U17: =S17 -> Tugasan| Portfolio | Peperiksaan akhir
C18: CLO2 | K18: √ | P18: Aktiviti | Perbincangan | S18: Tugasan | Portfolio
C19: CLO3 | L19: √ | P19: Aktiviti | Perbincangan | S19: Projek | Pembentangan | Portfolio
C20: (The description must be read together with standards 2.1.2, 2.2.1 and 2.2.2 in Area 2 - pages 16 & 18)
B21: 9 | C21: Transferable skills (if applicable) | G21: 1 | H21: Berfikiran kritis dan mampu menyelesaikan masalah
C22: (Skills learned in the course of study which can be useful and utilised in other settings) | G22: 2 | H22: Membuat keputusan
G23: 3 | H23: Kemahiran kepimpinan
B24: 10 | C24: Distribution of Students Learning Time (SLT)
C25: Course Content Outline | G25: CLO | I25: Teaching and Learning Activities | T25: SLT
I26: Guided learning (F2F) | Q26: Guided Learning (NF2F) eg: e-learning | S26: Independent learning (NF2F)
I27: L | K27: T | M27: P | O27: O
C28: 1.0 Konsep Asas Kepimpinan 1.1 Definisi 1.2 Kuasa dan kepimpinan 1.3 Kepimpinan dan pengurusan | G28: CLO 1 | I28: 2 | S28: 1 | T28: =SUM(I28:S28) -> 3
C29: 2.0 Teori Kepimpinan 2.1 Teori tret 2.1 Teori gelagat 2.3 Teori kontigensi 2.3.1 Teori kontigensi fiedler 2.3.2 Teori laluan matlamat 2.3.3 Teori situasi - Tugasan 1 | G29: CLO 1 | I29: 2 | S29: 2 | T29: 4 | U29: =C29 -> 2.0 Teori Kepimpinan 2.1 Teori tret 2.1 Teori gelagat 2.3 Teori kontigensi 2.3.1 Teori kontigensi fiedler 2.3.2 Teori laluan matlamat 2.3.3 Teori situasi - Tugasan 1
C30: 3.0 Latihan aplikasi kepimpinan | G30: CLO 3 | I30: 2 | S30: 2 | T30: 4 | U30: 3.0 Latihan aplikasi kepimpinan
C31: 4.0 Tugas Dan Tanggungjawab Pemimpin 4.1 Berkongsi visi dan misi 4.2 Menyelesaikan masalah 4.3 Mengambil keputusan 4.5 Mendorong dan memotivasikan pengikut 4.6 Memberi penghargaan - Tugasan 2 | G31: CLO 2 | I31: 4 | S31: 2 | T31: 6 | U31: 4.0 Tugas Dan Tanggungjawab Pemimpin 4.1 Berkongsi visi dan misi 4.2 Menyelesaikan masalah 4.3 Mengambil keputusan 4.5 Mendorong dan memotivasikan pengikut 4.6 Memberi penghargaan - Tugasan 2
C32: 5.0 Latihan aplikasi kepimpinan - Kemas kini portfolio | G32: CLO 3 | I32: 2 | S32: 2 | T32: 4 | U32: 5.0 Latihan aplikasi kepimpinan - Kemas kini portfolio
C33: 6.0 Komunikasi Dalam Kepimpinan 6.1 Definisi komunikasi 6.2 Jenis-jenis komunikasi 6.2 Tahap-tahap komunikasi 6.3 Kesan komunikasi dalam kepimpinan | G33: CLO 3 | I33: 2 | S33: 2 | T33: 4 | U33: 6.0 Komunikasi Dalam Kepimpinan 6.1 Definisi komunikasi 6.2 Jenis-jenis komunikasi 6.2 Tahap-tahap komunikasi 6.3 Kesan komunikasi dalam kepimpinan
C34: 6.0 Komunikasi Dalam Kepimpinan 6.1 Definisi komunikasi 6.2 Jenis-jenis komunikasi 6.2 Tahap-tahap komunikasi 6.3 Kesan komunikasi dalam kepimpinan | G34: CLO 3 | I34: 2 | S34: 2 | T34: 4 | U34: 6.0 Komunikasi Dalam Kepimpinan 6.1 Definisi komunikasi 6.2 Jenis-jenis komunikasi 6.2 Tahap-tahap komunikasi 6.3 Kesan komunikasi dalam kepimpinan
C35: 7.0 Latihan aplikasi kepimpinan | G35: CLO 3 | I35: 2 | S35: 2 | T35: 4 | U35: 7.0 Latihan aplikasi kepimpinan
C36: 8.0 Membina Kemahiran Kepimpinan 8.1 Keadilan 8.2 Kemesraan 8.3 Integriti 8.4 Keyakinan 8.5 Keberkesanan komunikasi | G36: CLO 2 CLO 3 | I36: 2 | S36: 2 | T36: 4 | U36: 8.0 Membina Kemahiran Kepimpinan 8.1 Keadilan 8.2 Kemesraan 8.3 Integriti 8.4 Keyakinan 8.5 Keberkesanan komunikasi
C37: 9.0 Latihan aplikasi kepimpinan | G37: CLO 2 | I37: 2 | S37: 2 | T37: 4 | U37: 9.0 Latihan aplikasi kepimpinan
C38: 10.0 Kepimpinan Islam 10.1 Sifat pemimpin Islam 10.2 Tugas pemimpin Islam 10.3 Gaya kepimpinan Islam | G38: CLO 3 | I38: 2 | S38: 2 | T38: 4 | U38: 10.0 Kepimpinan Islam 10.1 Sifat pemimpin Islam 10.2 Tugas pemimpin Islam 10.3 Gaya kepimpinan Islam
C39: 11.0 Kemas kini portfolio | G39: CLO 3 | I39: 1 | T39: 1 | U39: 11.0 Kemas kini portfolio
C40: Total | T40: =SUM(T28:T39) -> 46 | U40: Total
C42: Continuous Assessment | L42: Percentage (%) | N42: F2F | Q42: NF2F | T42: SLT
C43: 1 | D43: Tugasan 1 | L43: 10 | N43: 1 | Q43: 4 | T43: =SUM(N43:S43) -> 5
C44: 2 | D44: Tugasan 2 | L44: 10 | N44: 1 | Q44: 4 | T44: 5 | U44: =D44 -> Tugasan 2
C45: 3 | D45: Projek dan Pembentangan | L45: 30 | N45: 1 | Q45: 8 | T45: 9 | U45: Projek dan Pembentangan
C46: 4 | D46: Portfolio | L46: 20 | Q46: 8 | T46: 8 | U46: Portfolio
C47: 5 | T47: 0
C48: Total | T48: =SUM(T43:T47) -> 27
C50: Final Assessment | L50: Percentage (%) | N50: F2F | Q50: NF2F | T50: SLT
C51: 1 | D51: Final Examination | L51: 30 | N51: 2.5 | Q51: 4.5 | T51: =SUM(N51:S51) -> 7
C52: 2 | T52: 0 | U52: =D52 -> 
C53: 3 | T53: 0
C54: 4 | T54: 0
C55: 5 | T55: 0
T56: =SUM(T51:T55) -> 7 | U56: =D56 -> 
C58: **Please tick (ü) in this course is Latihan Industri / Clinical Placement / Practicum / WBL using 2 weeks; 1 credit formula | T58: =+T40+T48+T56 -> 80
C59: L= Lecture, T=Tutorial, P=Practical, O=Others, F2F=Face to Face, NF2F=None Face to Face
C60: *Indicate the CLO based on the CLO's numbering in item 8
B61: 11 | C61: Identify special requirement to deliver the course (e.g: software, nursery, computer lab, simulation room, etc) | H61: None
U62: =H62 -> 
B63: 12 | C63: References: | H63: James M Kouzes, Barry Z Posner. (2017). The Leadership Challenge. John Willey & Son Inc Stephan P.Robbins. (2011).Principles of Management. Prentice Hall Ainon Mohd, Abdullah Hassan. (2011). Bakat & Kemahiran Memimpin. Edisi Kemas Kini. PTS Profesional Publishing Sdn Bhd. John Adair. (2009). Membina Kemahiran Kepimpinan. Institut Terjemahan Negara Malaysia Berhad; Penterjemah Nazlifa Md Ali Ainon Mohd. (2005). Teori dan Teknik Kepimpinan (Panduan Aplikasi di Tempat Kerja). PTS Profesional Publishing Sdn.Bhd. Ishak Mad Shah. (2006). Kepimpinan dan Hubungan Interpersonal Dalam Organisasi. Penerbit UTM
C64: (include required and further readings, and should be the most current) | H64: Robiah Kulup Hamzah. (1993). Remaja dan Kepimpinan Persatuan, Kuala Lumpur. Dewan Bahasa dan Pustaka. | U64: =H64 -> Robiah Kulup Hamzah. (1993). Remaja dan Kepimpinan Persatuan, Kuala Lumpur. Dewan Bahasa dan Pustaka.
B65: 13 | C65: Other additional Information | H65: Kemaskini pada : 24 November 2019 | U65: Kemaskini pada : 24 November 2019

Sheet MPU2242
B2: Back | C2: Name of Course | D2: Kemahiran Berfikir dan Penyelesaian Masalah | AK2: 1 | AL2: 1
C3: Course Code | D3: MPU2242 | AJ3: √ | AK3: 2 | AL3: 2
B4: 2 | C4: Synopsis | D4: Kursus ini memberi pendedahan kepada pelajar mengenai konsep kemahiran berfikir secara kritis dan kreatif, jenis-jenis kemahiran berfikir secara kritis dan kreatif serta cara-cara mengaplikasikan pemikiran kreatif dan kritis dalam pembelajaran dan kehidupan. Selain itu, kursus ini turut memberi pendedahan kepada pelajar mengenai kaedah penyelesaian masalah dan pembuatan keputusan, langkah-langkah dalam penyelesaian masalah dan pembuatan keputusan, contoh-contoh aplikasi serta perbezaan antara keduanya. | U4: =D4 -> Kursus ini memberi pendedahan kepada pelajar mengenai konsep kemahiran berfikir secara kritis dan kreatif, jenis-jenis kemahiran berfikir secara kritis dan kreatif serta cara-cara mengaplikasikan pemikiran kreatif dan kritis dalam pembelajaran dan kehidupan. Selain itu, kursus ini turut memberi pendedahan kepada pelajar mengenai kaedah penyelesaian masalah dan pembuatan keputusan, langkah-langkah dalam penyelesaian masalah dan pembuatan keputusan, contoh-contoh aplikasi serta perbezaan antara keduanya. | AK4: 3 | AL4: 3
B5: 3 | C5: Name (s) of Academic Staff | D5: Noor Enaida binti Tutan Khamin | AK5: 4 | AL5: 4
B6: 4 | C6: Semester | D6: Semester | E6: 2 | F6: Year | G6: 1 | AK6: 5
B7: 5 | C7: Credit Value | D7: =IF(T61=40,1,(IF(T61=80,2,(IF(T61=120,3,(IF(T61=160,4,IF(T61=200,5,IF(T61=240,6,""))))))))) -> 2 | AK7: 6
B8: 6 | C8: Pre-requisite / Co-requisite (if any) | AK8: 7
B9: 7 | C9: Course Learning Outcomes (CLO): At the end of the course the students will be able to: | AK9: 8
C10: (example) - explain the basic principles of immunisation (C2, PLO1) | AK10: 9
C11: CLO1 | D11: Menjelaskan konsep kemahiran berfikir secara kritis dan kreatif, cara-cara mentafsir penyelesaian masalah, dan pembuatan keputusan frame. (C3, PLO1) | U11: =D11 -> Menjelaskan konsep kemahiran berfikir secara kritis dan kreatif, cara-cara mentafsir penyelesaian masalah, dan pembuatan keputusan frame. (C3, PLO1) | AK11: 10
C12: CLO2 | D12: Mengaplikasikan pemikiran kreatif dan kritis serta penyelesaian masalah dan pembuatan keputusan dalam pembelajaran dan kehidupan. (CTPS5, PLO2) | U12: Mengaplikasikan pemikiran kreatif dan kritis serta penyelesaian masalah dan pembuatan keputusan dalam pembelajaran dan kehidupan. (CTPS5, PLO2) | AK12: 11
C13: CLO3 | D13: Memilih kaedah yang bersesuaian untuk penyelesaian masalah dan pembuatan keputusan berdasarkan situasi dan aplikasi yang berbeza. (A3,CTPS5,PLO9)
C14: CLO4 | AK14: 12
B15: 8 | C15: Mapping of the Course Learning Outcomes to the Programme Learning Outcomes, Teaching Methods and Assessment:
C16: Course Learning Outcomes (CLO) | D16: Programme Learning Outcomes (PLO) | P16: Teaching Methods | S16: Assessment
D17: PLO1 | E17: PLO2 | F17: PLO3 | G17: PLO4 | H17: PLO5 | I17: PLO6 | J17: PLO7 | K17: PLO8 | L17: PLO9 | M17: PLO10 | N17: PLO11 | O17: PLO12
C18: CLO1 | D18: √ | P18: Kuliah | Perbincangan | S18: Portfolio | Peperiksaan akhir | U18: =S18 -> Portfolio | Peperiksaan akhir
C19: CLO2 | E19: √ | P19: Kuliah | Perbincangan | S19: Portfolio | Tugasan | Projek
C20: CLO3 | L20: √ | P20: Perbincangan | Pembentangan | S20: Portfolio | Tugasan | Projek
C21: CLO4
C22: (The description must be read together with standards 2.1.2, 2.2.1 and 2.2.2 in Area 2 - pages 16 & 18)
B23: 9 | C23: Transferable skills (if applicable) | G23: 1 | H23: Kemahiran berfikir secara kritis dan kreatif
C24: (Skills learned in the course of study which can be useful and utilised in other settings) | G24: 2 | H24: Kemahiran membuat keputusan
G25: 3 | H25: Kemahiran mengurus maklumat
B26: 10 | C26: Distribution of Students Learning Time (SLT)
C27: Course Content Outline | G27: CLO | I27: Teaching and Learning Activities | T27: SLT
I28: Guided learning (F2F) | Q28: Guided Learning (NF2F) eg: e-learning | S28: Independent learning (NF2F)
I29: L | K29: T | M29: P | O29: O
C30: 1.0 Konsep Kemahiran berfikir kreatif dan kritis 1.1 Definisi konsep dan otak, minda dan akal 1.2 Pengenalan kepada konsep kemahiran berfikir | G30: CLO 1 | I30: 1 | S30: 1 | T30: =SUM(I30:S30) -> 2
C31: 2.0 Jenis-Jenis kemahiran berfikir 2.1 Pemikiran kritis 2.2 Pemikiran kreatif 2.3 Perbezaan antara pemikiran kritis dan kreatif | G31: CLO 1 | I31: 1 | S31: 1 | T31: 2 | U31: =C31 -> 2.0 Jenis-Jenis kemahiran berfikir 2.1 Pemikiran kritis 2.2 Pemikiran kreatif 2.3 Perbezaan antara pemikiran kritis dan kreatif
C32: 3.0 Kepentingan Kemahiran Berfikir 3.1 Kemahiran berfikir dan tenaga manusia 3.2 Kemahiran berfikir dan zaman maklumat 3.3 Kemahiran berfikir dan sistem demokrasi 3.4 Apa itu pemikiran 3.5 Perkembangan kemahiran berfikir kurang ditekankan 3.6 Pemikiran dan tingkahlaku | G32: CLO 1 | I32: 1 | S32: 1 | T32: 2 | U32: 3.0 Kepentingan Kemahiran Berfikir 3.1 Kemahiran berfikir dan tenaga manusia 3.2 Kemahiran berfikir dan zaman maklumat 3.3 Kemahiran berfikir dan sistem demokrasi 3.4 Apa itu pemikiran 3.5 Perkembangan kemahiran berfikir kurang ditekankan 3.6 Pemikiran dan tingkahlaku
C33: 4.0 Alat-Alat Berfikir 4.1 Baik, buruk, menarik (P,M,I) 4.2 Ambil kira semua faktor (CAF) 4.3 Kesan mengikut jangka masa (C & S) 4.4 Tujuan, matlamat dan objektif (A,G,O) 4.5 Kepentingan utama didahulukan (FIP) 4.6 Alternatif, kemungkinan dan pilihan (APC) | G33: CLO 1 | I33: 2 | S33: 1 | T33: 3 | U33: 4.0 Alat-Alat Berfikir 4.1 Baik, buruk, menarik (P,M,I) 4.2 Ambil kira semua faktor (CAF) 4.3 Kesan mengikut jangka masa (C & S) 4.4 Tujuan, matlamat dan objektif (A,G,O) 4.5 Kepentingan utama didahulukan (FIP) 4.6 Alternatif, kemungkinan dan pilihan (APC)
C34: 5.0 Proses Pemikiran 5.1 Proses membuat keputusan 5.2 Langkah-langkah membuat keputusan 5.3 Heuristik yang mempengaruhi proses membuat keputusan 5.4 Persamaan di antara penyelesaian masalah dan membuat keputusan | G34: CLO 1 | I34: 2 | S34: 1 | T34: 3 | U34: 5.0 Proses Pemikiran 5.1 Proses membuat keputusan 5.2 Langkah-langkah membuat keputusan 5.3 Heuristik yang mempengaruhi proses membuat keputusan 5.4 Persamaan di antara penyelesaian masalah dan membuat keputusan
C35: 6.0 Pengenalan Penyelesaian Masalah dan Membuat Keputusan 6.1 Apa itu masalah? 6.2 Konsep dan kepentingan penyelesiaan masalah 6.3 Perbandingan penyelesaian masalah dan pembuatan keputusan 6.4 Pembuatan keputusan mengikut hierarki organisasi 6.5 Latihan mengenal pasti kes penyelesaian masalah atau pembuatan keputusan | G35: CLO 1 | I35: 2 | S35: 1 | T35: 3 | U35: 6.0 Pengenalan Penyelesaian Masalah dan Membuat Keputusan 6.1 Apa itu masalah? 6.2 Konsep dan kepentingan penyelesiaan masalah 6.3 Perbandingan penyelesaian masalah dan pembuatan keputusan 6.4 Pembuatan keputusan mengikut hierarki organisasi 6.5 Latihan mengenal pasti kes penyelesaian masalah atau pembuatan keputusan
C36: 7.0 Proses penyelesaian masalah dan pembuatan keputusan sistematik 7.1 Mengenal pasti masalah 7.2 Menganalisis masalah 7.3 Menjana pilihan penyelesaian yang berpotensi 7.4 Memilih dan merancang penyelesaian 7.5 Melaksanakan penyelesaian 7.6 Memantau dan menilai penyelesaian | G36: CLO 1 | I36: 2 | S36: 1 | T36: 3 | U36: 7.0 Proses penyelesaian masalah dan pembuatan keputusan sistematik 7.1 Mengenal pasti masalah 7.2 Menganalisis masalah 7.3 Menjana pilihan penyelesaian yang berpotensi 7.4 Memilih dan merancang penyelesaian 7.5 Melaksanakan penyelesaian 7.6 Memantau dan menilai penyelesaian
C37: 8.0 Mengenalpasti masalah 8.1 Tulis kenyataan masalah dengan jelas dan terang 8.2 Pecahkan masalah kepada bahagian yang lebih kecil 8.3 Tulis kenyataan matlamat yang dikehendaki di akhir proses penyelesaian masalah 8.4 Latihan mengenalpasti masalah | G37: CLO 1 | I37: 2 | S37: 1 | T37: 3 | U37: 8.0 Mengenalpasti masalah 8.1 Tulis kenyataan masalah dengan jelas dan terang 8.2 Pecahkan masalah kepada bahagian yang lebih kecil 8.3 Tulis kenyataan matlamat yang dikehendaki di akhir proses penyelesaian masalah 8.4 Latihan mengenalpasti masalah
C38: 9.0 Menganalisis masalah 9.1 Meneroka masalah untuk mencari punca sebenar 9.2 Mendapatkan pelbagai maklumat yang berkaitan dengan masalah 9.3 Kemahiran bertanya soalan yang berkaitan (5W1H) | G38: CLO 1 | I38: 2 | S38: 2 | T38: 4 | U38: 9.0 Menganalisis masalah 9.1 Meneroka masalah untuk mencari punca sebenar 9.2 Mendapatkan pelbagai maklumat yang berkaitan dengan masalah 9.3 Kemahiran bertanya soalan yang berkaitan (5W1H)
C39: 10.0 Menjana pilihan penyelesaian yang berpotensi 10.1 Mendapatkan sebanyak mungkin pilihan penyelesaian yang praktikal 10.2 Kemahiran berfikir - kreatif, literal, berfikir diluar kotak 10.3 Sesi sumbang saran (brainstorming) 10.4 Latihan sumbang saran | G39: CLO 1 | I39: 2 | S39: 2 | T39: 4 | U39: 10.0 Menjana pilihan penyelesaian yang berpotensi 10.1 Mendapatkan sebanyak mungkin pilihan penyelesaian yang praktikal 10.2 Kemahiran berfikir - kreatif, literal, berfikir diluar kotak 10.3 Sesi sumbang saran (brainstorming) 10.4 Latihan sumbang saran
C40: 11.0 Memilih atau membuat keputusan dan merancang penyelesaian 11.1 Faktor pertimbangan dalam membuat pilihan/keputusan 11.2 Merancang pelan tindakan bagi penyelesaian yang dipilih 11.3 Latihan membuat keputusan | G40: CLO 1 | I40: 2 | S40: 2 | T40: 4 | U40: 11.0 Memilih atau membuat keputusan dan merancang penyelesaian 11.1 Faktor pertimbangan dalam membuat pilihan/keputusan 11.2 Merancang pelan tindakan bagi penyelesaian yang dipilih 11.3 Latihan membuat keputusan
C41: 12.0 Melaksanakan Penyelesaian Masalah | G41: CLO 1 | I41: 1 | S41: 1 | T41: 2 | U41: 12.0 Melaksanakan Penyelesaian Masalah
C42: 13.0 Memantau dan menilai penyelesaian yang diambil 13.1 Mewujudkan kriteria untuk menilai keberkesanan penyelesaian yang dipilih 13.2 Pelarasan dan penambahbaikan | G42: CLO 1 | I42: 2 | S42: 2 | T42: 4 | U42: 13.0 Memantau dan menilai penyelesaian yang diambil 13.1 Mewujudkan kriteria untuk menilai keberkesanan penyelesaian yang dipilih 13.2 Pelarasan dan penambahbaikan
C43: Total | T43: =SUM(T30:T42) -> 39 | U43: Total
C45: Continuous Assessment | L45: Percentage (%) | N45: F2F | Q45: NF2F | T45: SLT
C46: 1 | D46: Tugasan 1 | L46: 10 | Q46: 4 | T46: =SUM(N46:S46) -> 4
C47: 2 | D47: Tugasan 2 | L47: 10 | Q47: 4 | T47: 4 | U47: =D47 -> Tugasan 2
C48: 3 | D48: Tugasan 3 | L48: 10 | Q48: 4 | T48: 4 | U48: Tugasan 3
C49: 4 | D49: Projek dan pembentangan | L49: 20 | N49: 2 | Q49: 8 | T49: 10 | U49: Projek dan pembentangan
C50: 5 | D50: Portfolio | L50: 20 | N50: 1 | Q50: 12 | T50: 13 | U50: Portfolio
C51: Total | T51: =SUM(T46:T50) -> 35
C53: Final Assessment | L53: Percentage (%) | N53: F2F | Q53: NF2F | T53: SLT
C54: 1 | D54: Final Examination | L54: 30 | N54: 2 | Q54: 4 | T54: =SUM(N54:S54) -> 6
C55: 2 | T55: 0 | U55: =D55 -> 
C56: 3 | T56: 0
C57: 4 | T57: 0
C58: 5 | T58: 0
T59: =SUM(T54:T58) -> 6 | U59: =D59 -> 
C61: **Please tick (ü) in this course is Latihan Industri / Clinical Placement / Practicum / WBL using 2 weeks; 1 credit formula | T61: =+T43+T51+T59 -> 80
C62: L= Lecture, T=Tutorial, P=Practical, O=Others, F2F=Face to Face, NF2F=None Face to Face
C63: *Indicate the CLO based on the CLO's numbering in item 8
B64: 11 | C64: Identify special requirement to deliver the course (e.g: software, nursery, computer lab, simulation room, etc) | H64: None
U65: =H65 -> 
B66: 12 | C66: References: | H66: Joe Y. F Wiley. (2018). An Introduction to Critical Thinking and Creativity: Think More, Think Better: Think More, Think Better Wiley Publishing. Stella Cottrell. (2017). Critical Thinking Skills: Effective Analysis, Argument and Reflection, Macmillan International Higher Education, 2017. Colin G. Smith. (2013). Creative Problem Solving Techniques To Change Your Life. CreateSpace Independent Publishing Platform.
C67: (include required and further readings, and should be the most current) | H67: Gerard J. Puccio, Marie Mance, Laura Barbero Switalski, Paul Reali. (2012). Creative Rising Creative Thinking and Creative Problem Solving in the 21st Century. ICSC Press. Mohd Azhar Abdul Hamid, et.al.(2006). Rekacipta dan Inovasi Dalam Perspektif Kreativiti. Penerbitan UTM.Mohd Azhar Abdul Hamid.(2014). Pengenalan Pemikiran Kritis dan Kreatif. Penerbitan UTM. | U67: =H67 -> Gerard J. Puccio, Marie Mance, Laura Barbero Switalski, Paul Reali. (2012). Creative Rising Creative Thinking and Creative Problem Solving in the 21st Century. ICSC Press. Mohd Azhar Abdul Hamid, et.al.(2006). Rekacipta dan Inovasi Dalam Perspektif Kreativiti. Penerbitan UTM.Mohd Azhar Abdul Hamid.(2014). Pengenalan Pemikiran Kritis dan Kreatif. Penerbitan UTM.
B68: 13 | C68: Other additional Information | H68: Kemaskini pada: 24 November 2019 | U68: Kemaskini pada: 24 November 2019

Sheet MPU2412
B2: Back | C2: Name of Course | D2: Kepimpinan kelab, Persatuan dan Organisasi | AK2: 1 | AL2: 1
C3: Course Code | D3: MPU2412 | AJ3: √ | AK3: 2 | AL3: 2
B4: 2 | C4: Synopsis | D4: Kursus ini direkabentuk untuk memberikan pelajar satu pengalaman untuk menjalankan program yang berkait dengan kursus yang diambil. Pelajar akan dipandu untuk mengenalpasti keperluan atau masalah, merancang,menyelaras sesuatu program sebelum, semasa dan selepas sesuatu program itu dijalankan. | U4: =D4 -> Kursus ini direkabentuk untuk memberikan pelajar satu pengalaman untuk menjalankan program yang berkait dengan kursus yang diambil. Pelajar akan dipandu untuk mengenalpasti keperluan atau masalah, merancang,menyelaras sesuatu program sebelum, semasa dan selepas sesuatu program itu dijalankan. | AK4: 3 | AL4: 3
B5: 3 | C5: Name (s) of Academic Staff | D5: Noor Enaida binti Tutan Khamin | AK5: 4 | AL5: 4
B6: 4 | C6: Semester | D6: Semester | E6: 5 | F6: Year | G6: 2 | AK6: 5
B7: 5 | C7: Credit Value | D7: =IF(T56=40,1,(IF(T56=80,2,(IF(T56=120,3,(IF(T56=160,4,IF(T56=200,5,IF(T56=240,6,""))))))))) -> 2 | AK7: 6
B8: 6 | C8: Pre-requisite / Co-requisite (if any) | AK8: 7
B9: 7 | C9: Course Learning Outcomes (CLO): At the end of the course the students will be able to: | AK9: 8
C10: (example) - explain the basic principles of immunisation (C2, PLO1) | AK10: 9
C11: CLO1 | D11: Menerangkan ciri-ciri asas mengenai penubuhan kelab atau persatuan (TS2, PLO1) | U11: =D11 -> Menerangkan ciri-ciri asas mengenai penubuhan kelab atau persatuan (TS2, PLO1) | AK11: 10
C12: CLO2 | D12: Mengaplikasikan kemahiran berfikir secara kreatif dan menyelesaikan masalah (P3, CTPS3, PLO3) | U12: Mengaplikasikan kemahiran berfikir secara kreatif dan menyelesaikan masalah (P3, CTPS3, PLO3) | AK12: 11
C13: CLO3 | D13: Menganjurkan aktiviti-aktiviti dan menguruskan aktiviti dengan berkesan (P3, PLO8)
B14: 8 | C14: Mapping of the Course Learning Outcomes to the Programme Learning Outcomes, Teaching Methods and Assessment:
C15: Course Learning Outcomes (CLO) | D15: Programme Learning Outcomes (PLO) | P15: Teaching Methods | S15: Assessment
D16: PLO1 | E16: PLO2 | F16: PLO3 | G16: PLO4 | H16: PLO5 | I16: PLO6 | J16: PLO7 | K16: PLO8 | L16: PLO9 | M16: PLO10 | N16: PLO11 | O16: PLO12
C17: CLO1 | D17: √ | P17: Kuliah | Perbincangan | S17: Tugasan | U17: =S17 -> Tugasan
C18: CLO2 | F18: √ | P18: Kuliah | Perbincangan | S18: Tugasan
C19: CLO3 | K19: √ | P19: Kuliah | Perbincangan | Pembentangan | S19: Projek | Laporan
C20: (The description must be read together with standards 2.1.2, 2.2.1 and 2.2.2 in Area 2 - pages 16 & 18)
B21: 9 | C21: Transferable skills (if applicable) | G21: 1 | H21: Pemikiran kreatif
C22: (Skills learned in the course of study which can be useful and utilised in other settings) | G22: 2 | H22: Komunikasi lisan
G23: 3 | H23: Kepimpinan dan kerja berpasukan
B24: 10 | C24: Distribution of Students Learning Time (SLT)
C25: Course Content Outline | G25: CLO | I25: Teaching and Learning Activities | T25: SLT
I26: Guided learning (F2F) | Q26: Guided Learning (NF2F) eg: e-learning | S26: Independent learning (NF2F)
I27: L | K27: T | M27: P | O27: O
C28: 1.0 Panduan penyediaan kertas kerja aktiviti dan kelulusan | G28: CLO 1 | I28: 2 | S28: 5 | T28: =SUM(I28:S28) -> 7
C29: 2.0 Panduan asas penubuhan kelab dan persatuan | G29: CLO 1 | I29: 2 | S29: 5 | T29: 7 | U29: =C29 -> 2.0 Panduan asas penubuhan kelab dan persatuan
C30: 3.0 Jabatan Pendaftaran Pertubuhan Malaysia 3.1 Peranan, sejarah dan prosidur | G30: CLO 1 | I30: 2 | S30: 3 | T30: 5 | U30: 3.0 Jabatan Pendaftaran Pertubuhan Malaysia 3.1 Peranan, sejarah dan prosidur
C31: 4.0 Perbentangan tugasan | G31: CLO 1 | O31: 4 | S31: 3 | T31: 7 | U31: 4.0 Perbentangan tugasan
C32: 5.0 Pengurusan kewangan dan penajaan | G32: CLO 1 | I32: 3 | S32: 6 | T32: 9 | U32: 5.0 Pengurusan kewangan dan penajaan
C33: 6.0 Kepimpinan dalam persatuan dan perhubungan awam | G33: CLO 1 | I33: 2 | S33: 4 | T33: 6 | U33: 6.0 Kepimpinan dalam persatuan dan perhubungan awam
C34: 7.0 Pengurusan kelab/ persatuan dan pengurusan program | G34: CLO 1 | I34: 2 | S34: 5 | T34: 7 | U34: 7.0 Pengurusan kelab/ persatuan dan pengurusan program
C35: 8.0 Panduan protokol dan etiket | G35: CLO 1 | I35: 2 | S35: 5 | T35: 7 | U35: 8.0 Panduan protokol dan etiket
C36: 9.0 Kemahiran berkomunikasi dan pengucapan awam | G36: CLO 1 | I36: 2 | S36: 5 | T36: 7 | U36: 9.0 Kemahiran berkomunikasi dan pengucapan awam
C37: 10.0 Perbentangan projek | G37: CLO 1 | O37: 4 | S37: 3 | T37: 7 | U37: 10.0 Perbentangan projek
C38: Total | T38: =SUM(T28:T35) -> 55 | U38: Total
C40: Continuous Assessment | L40: Percentage (%) | N40: F2F | Q40: NF2F | T40: SLT
C41: 1 | D41: Tugasan 1 | L41: 10 | Q41: 5 | T41: =SUM(N41:S41) -> 5
C42: 2 | D42: Tugasan 2 | L42: 10 | Q42: 5 | T42: 5 | U42: =D42 -> Tugasan 2
C43: 3 | D43: Projek | L43: 45 | N43: 2 | Q43: 10 | T43: 12 | U43: Projek
C44: 4 | D44: Pembentangan | L44: 15 | N44: Bab 4 & 10 | Q44: 2 | T44: 2 | U44: Pembentangan
C45: 5 | D45: Penglibatan dalam projek (peer to peer) | L45: 20 | N45: 1 | T45: 1 | U45: Penglibatan dalam projek (peer to peer)
C46: Total | T46: =SUM(T41:T45) -> 25
C48: Final Assessment | L48: Percentage (%) | N48: F2F | Q48: NF2F | T48: SLT
C49: 1 | T49: =SUM(N49:S49) -> 0
C50: 2 | T50: 0 | U50: =D50 -> 
C51: 3 | T51: 0
C52: 4 | T52: 0
C53: 5 | T53: 0
T54: =SUM(T49:T53) -> 0 | U54: =D54 -> 
C56: **Please tick (ü) in this course is Latihan Industri / Clinical Placement / Practicum / WBL using 2 weeks; 1 credit formula | T56: =+T38+T46+T54 -> 80
C57: L= Lecture, T=Tutorial, P=Practical, O=Others, F2F=Face to Face, NF2F=None Face to Face
C58: *Indicate the CLO based on the CLO's numbering in item 8
B59: 11 | C59: Identify special requirement to deliver the course (e.g: software, nursery, computer lab, simulation room, etc) | H59: None
U60: =H60 -> 
B61: 12 | C61: References: | H61: James Ang Jit Eng.(2016). Pengurusan Aktiviti Luar Sekolah: Panduan Pengurusan Aktiviti di Luar Sekolah. PTS Publications & Distributors Sdn Bhd, 2016
C62: (include required and further readings, and should be the most current) | H62: Zafir Makbul.(2013). Pengurusan Organisasi .Pearson Education. Ducker, P.(2010). Managing People and Organizations. Emerald Group Publishing. Van Der Wagen & Carlos (2005). Event Management. 1st Edn. Pearson Higher Education Jabatan Pendaftaran Pertubuhan Malaysia. Meredith, J.R. & Mantel, Jr. S.J. (2006). Project Management: A Managerial Approach (6th Ed). New York:John Wiley and Sons, Inc. | U62: =H62 -> Zafir Makbul.(2013). Pengurusan Organisasi .Pearson Education. Ducker, P.(2010). Managing People and Organizations. Emerald Group Publishing. Van Der Wagen & Carlos (2005). Event Management. 1st Edn. Pearson Higher Education Jabatan Pendaftaran Pertubuhan Malaysia. Meredith, J.R. & Mantel, Jr. S.J. (2006). Project Management: A Managerial Approach (6th Ed). New York:John Wiley and Sons, Inc.
B63: 13 | C63: Other additional Information | H63: Kemaskini pada : 24 November 2019 | U63: Kemaskini pada : 24 November 2019

Sheet Islamic Entreprenuership
B2: 1 | C2: Name of Course | D2: Keusahawanan Islam | AK2: 1 | AL2: 1
C3: Course Code | D3: MGT2222 | AJ3: √ | AK3: 2 | AL3: 2
B4: 2 | C4: Synopsis | D4: Kursus ini membincangkan tentang keperluan-keperluan asas yang perlu ada untuk terlibat dalam bidang keusahawanan Islam. Kursus ini akan memberikan penekanan kepentingan mengenal serta membuat analisa peluang perniagaan baru. Pelajar akan melalui latihan untuk menyediakan dokumen perniagaan lengkap serta membuat persembahan secara berkumpulan perancangan perniagaan tersebut. | U4: Kursus ini membincangkan tentang keperluan-keperluan asas yang perlu ada untuk terlibat dalam bidang keusahawanan Islam. Kursus ini akan memberikan penekanan kepentingan mengenal serta membuat analisa peluang perniagaan baru. Pelajar akan melalui latihan untuk menyediakan dokumen perniagaan lengkap serta membuat persembahan secara berkumpulan perancangan perniagaan tersebut. | AK4: 3 | AL4: 3
B5: 3 | C5: Name (s) of Academic Staff | D5: Wan Nur Liyana Binti Wan Mohd Fauzi | AK5: 4 | AL5: 4
B6: 4 | C6: Semester | D6: Semester | E6: 2 | F6: Year | G6: 1 | AK6: 5
B7: 5 | C7: Credit Value | D7: 2 | AK7: 6
B8: 6 | C8: Pre-requisite / Co-requisite (if any) | AK8: 7
B9: 7 | C9: Course Learning Outcomes (CLO): At the end of the course the students will be able to: | AK9: 8
C10: (example) - explain the basic principles of immunisation (C2, PLO1) | AK10: 9
C11: CLO1 | D11: Menghuraikan konsep, keperluan keusahawanan serta kepentingan pengurusan kewangan Islam. (C3, PLO1) | U11: Menghuraikan konsep, keperluan keusahawanan serta kepentingan pengurusan kewangan Islam. (C3, PLO1) | AK11: 10
C12: CLO2 | D12: Memahami dan dapat mengurus sesebuah organisasi pengurusan atau perniagaan dengan baik.(P3, C3, PLO10) | U12: Memahami dan dapat mengurus sesebuah organisasi pengurusan atau perniagaan dengan baik.(P3, PLO9) | AK12: 11
C13: CLO3 | D13: Mengamalkan budaya usahawan muslim dalam perniagaan. (C3, A2, PLO9)
AK14: 12
B15: 8 | C15: Mapping of the Course Learning Outcomes to the Programme Learning Outcomes, Teaching Methods and Assessment:
C16: Course Learning Outcomes (CLO) | D16: Programme Learning Outcomes (PLO) | P16: Teaching Methods | S16: Assessment
D17: PLO1 | E17: PLO2 | F17: PLO3 | G17: PLO4 | H17: PLO5 | I17: PLO6 | J17: PLO7 | K17: PLO8 | L17: PLO9 | M17: PLO10 | N17: PLO11 | O17: PLO12
C18: CLO1 | D18: √ | P18: Lecture | Discussion | S18: Assignment | Quiz | Test |Final Examination | U18: Assignment | Quiz | Test |Final Examination
C19: CLO2 | M19: √ | P19: Lecture | Discussion | Presentation | S19: Assignment | Quiz | Test |Final Examination
C20: CLO3 | L20: √ | P20: Lecture | Discussion | Presentation | S20: Assignment | Quiz | Test |Final Examination
C22: (The description must be read together with standards 2.1.2, 2.2.1 and 2.2.2 in Area 2 - pages 16 & 18)
B23: 9 | C23: Transferable skills (if applicable) | G23: 1 | H23: Pengetahuan
C24: (Skills learned in the course of study which can be useful and utilised in other settings) | G24: 2 | H24: kemahiran keusahawanan
G25: 3 | H25: kemahiran personal
B26: 10 | C26: Distribution of Students Learning Time (SLT)
C27: Course Content Outline | G27: CLO | I27: Teaching and Learning Activities | T27: SLT
I28: Guided learning (F2F) | Q28: Guided Learning (NF2F) eg: e-learning | S28: Independent learning (NF2F)
I29: L | K29: T | M29: P | O29: O
C30: BAHAGIAN 1: SEJARAH DAN POLITIK 1. Pengenalan kepada usahawan dan keusahawan Islam 1.1. Definisi usahawan dan keusahawan Islam 1.2. Konsep keusahawanan menurut Islam 1.3. Ciri-ciri asas usahawan muslim | G30: CLO1 | I30: 2 | K30: 2 | S30: 2 | T30: 6
C31: 2. Keusahawan:Persepsi, realiti dan kepentingan 2.1 Persepsi terhadap usahawan 2.2 Risiko keusahawan 2.3 Kelebihan menjadi usahawan muslim | G31: CLO1 | I31: 2 | K31: 2 | S31: 2 | T31: 6 | U31: 2. Keusahawan:Persepsi, realiti dan kepentingan 2.1 Persepsi terhadap usahawan 2.2 Risiko keusahawan 2.3 Kelebihan menjadi usahawan muslim
C32: 3. Pembudayaan keusahawanan Islam 3.1. Aspek pembudayaan keusahawanan 3.2. Nilai murni keusahawanan 3.3. Kepentingan pembudayaan keusahawanan Islam | G32: CLO3 | I32: 2 | K32: 2 | S32: 2 | T32: 6 | U32: 3. Pembudayaan keusahawanan Islam 3.1. Aspek pembudayaan keusahawanan 3.2. Nilai murni keusahawanan 3.3. Kepentingan pembudayaan keusahawanan Islam
C33: 4. Persiapan sebagai usahawan Muslim 4.1. Strategi memulakan perniagaan 4.2. Persiapan pembangunan kemahiran 4.3. Strategi pembangunan kreativiti 4.4. Proses kreativiti 4.5. Halangan kepada pembangunan kreativiti | G33: CLO2 CLO3 | I33: 2 | K33: 2 | S33: 2 | T33: 6 | U33: 4. Persiapan sebagai usahawan Muslim 4.1. Strategi memulakan perniagaan 4.2. Persiapan pembangunan kemahiran 4.3. Strategi pembangunan kreativiti 4.4. Proses kreativiti 4.5. Halangan kepada pembangunan kreativiti
C34: 5. Keusahawanan melalui E-dagang 5.1. Apa itu E-dagang 5.2. Klasifikasi E-dagang 5.3. Kepentingan E-dagang dalam dunia perniagaan 5.4. Faedah-faedah perniagaan melalui E-dagang 5.5. Saiz E-dagang 5.6. Cabaran-cabaran yang dihadapi oleh usahawan dalam mengaplikasikan E-dagang | G34: CLO2 CLO3 | I34: 2 | K34: 2 | S34: 2 | T34: 6 | U34: 5. Keusahawanan melalui E-dagang 5.1. Apa itu E-dagang 5.2. Klasifikasi E-dagang 5.3. Kepentingan E-dagang dalam dunia perniagaan 5.4. Faedah-faedah perniagaan melalui E-dagang 5.5. Saiz E-dagang 5.6. Cabaran-cabaran yang dihadapi oleh usahawan dalam mengaplikasikan E-dagang
C35: 6. Usahawan dan Rancangan Perniagaan 6.1. Apakah rancangan perniagaan 6.2. Kepentingan rancangan perniagaankepada usahawan 6.3. Maklumat utama dalam menyediakan rancangan perniagaan | G35: CLO2 CLO3 | I35: 2 | K35: 2 | S35: 6 | T35: 10 | U35: 6. Usahawan dan Rancangan Perniagaan 6.1. Apakah rancangan perniagaan 6.2. Kepentingan rancangan perniagaankepada usahawan 6.3. Maklumat utama dalam menyediakan rancangan perniagaan
C36: 7. Usahawan dan undang-undang pertubuhan 7.1. Jenis perniagaan di Malaysia 7.2. Perbezaan antara Perniagaan Tunggal, Perkongsian dan syarikat | G36: CLO2 CLO3 | I36: 2 | K36: 2 | S36: 2 | T36: 6 | U36: 7. Usahawan dan undang-undang pertubuhan 7.1. Jenis perniagaan di Malaysia 7.2. Perbezaan antara Perniagaan Tunggal, Perkongsian dan syarikat
C37: 8. Usahawan dan Pengurusan Kewangan Islam 8.1 Kepentingan pengurusan kewangan Islam 8.2 Pembentukan kredit perniagaan 8.3 Pengurusan kewangan syarikat 8.4 Perancangan dan ramalan masa depan syarikat | G37: CLO2 CLO3 | I37: 2 | K37: 2 | S37: 2 | T37: 6 | U37: 8. Usahawan dan Pengurusan Kewangan Islam 8.1 Kepentingan pengurusan kewangan Islam 8.2 Pembentukan kredit perniagaan 8.3 Pengurusan kewangan syarikat 8.4 Perancangan dan ramalan masa depan syarikat
C38: 9. Usahawan dan strategi menyaingi pesaing 9.1 Kepentingan strategi persaingan 9.2 Strategi persaingan 9.3 Strategi menyaingi pesaing 9.4 Strategi pemasaran dalam menyaingi pesaing 9.5 Kepentingan strategi pemasaran | G38: CLO2 CLO3 | I38: 2 | K38: 2 | S38: 2 | T38: 6 | U38: 9. Usahawan dan strategi menyaingi pesaing 9.1 Kepentingan startegi persaingan 9.2 Strategi persaingan 9.3 Strategi menyaingi pesaing 9.4 Strategi pemasaran dalam menyaingi pesaing 9.5 Kepentingan strategi pemasaran
C39: Total | T39: 58 | U39: Total
C41: Continuous Assessment | L41: Percentage (%) | N41: F2F | Q41: NF2F | T41: SLT
C42: 1 | D42: Tugasan (4) | L42: 20 | N42: 1 | Q42: 4 | T42: 5
C43: 2 | D43: Kuiz (2) | L43: 10 | N43: 1 | Q43: 2 | T43: 3 | U43: Kuiz (2)
C44: 3 | D44: Ujian (1) | L44: 10 | N44: 1.5 | Q44: 2 | T44: 3.5 | U44: Ujian (1)
C45: 4 | D45: Pembentangan | L45: 10 | N45: 0.5 | Q45: 1 | T45: 1.5 | U45: Pembentangan
C46: 5
C47: Total | T47: 13
C49: Final Assessment | L49: Percentage (%) | N49: F2F | Q49: NF2F | T49: SLT
C50: 1 | D50: Final Examination | L50: 50 | N50: 2.5 | Q50: 6.5 | T50: 9
C51: 2
C52: 3
C53: 4
C54: 5
T55: 9
C57: **Please tick (ü) in this course is Latihan Industri / Clinical Placement / Practicum / WBL using 2 weeks; 1 credit formula | T57: 80
C58: L= Lecture, T=Tutorial, P=Practical, O=Others, F2F=Face to Face, NF2F=None Face to Face
C59: *Indicate the CLO based on the CLO's numbering in item 8
B60: 11 | C60: Identify special requirement to deliver the course (e.g: software, nursery, computer lab, simulation room, etc) | H60: None
B62: 12 | C62: References:
C63: (include required and further readings, and should be the most current) | H63: 1. Sodri Ariffin et al. (2017). Introduction to Entrepreneurship. Oxford Fajar Sdn. Bhd. Andrew S. Tanebaum, (2010), 2. Shuhairimi Abdullah. 2012. ‘Keusahawanan Islam: perspektif dan alternatif’. Penerbit Universiti Malaysia Perlis. 3. Ab. Aziz Yusof. 2006.Prinsip Keusahawanan. Edisi Kedua, Prentice Hall, 4. Nor'Azzah Kamri, Mohd Abd Wahab Fatoni Mohd Balwi, Ahmad Sufyan Che Abdullah 2009. ‘Keusahawanan Islam: konsep dan isu-isu pelaksanaannya’. Jabatan Syariah dan Pengurusan, Akademi Pengajian Islam Universiti Malaya. 5. Rasem N. Kayed, M. Kabir Hassan. 2011. Islamic Entrepreneurship. Volume 19 of Durham Modern Middle East and Islamic World Series 6. Zimmerer, T.H. & Scarborough, N.M. 2010.Essential of Entrepreneurship and Small Business Management, 6th Edition, Prentice Hall, New Jersey | U63: Andrew S. Tanebaum, (2010), 1. Shuhairimi Abdullah. 2012. ‘Keusahawanan Islam: perspektif dan alternatif’. Penerbit Universiti Malaysia Perlis. 2. Ab. Aziz Yusof. 2006.Prinsip Keusahawanan. Edisi Kedua, Prentice Hall, 3. Nor'Azzah Kamri, Mohd Abd Wahab Fatoni Mohd Balwi, Ahmad Sufyan Che Abdullah 2009. ‘Keusahawanan Islam: konsep dan isu-isu pelaksanaannya’. Jabatan Syariah dan Pengurusan, Akademi Pengajian Islam Universiti Malaya. 4. Rasem N. Kayed, M. Kabir Hassan. 2011. Islamic Entrepreneurship. Volume 19 of Durham Modern Middle East and Islamic World Series 5. Zimmerer, T.H. & Scarborough, N.M. 2010.Essential of Entrepreneurship and Small Business Management, 6th Edition, Prentice Hall, New Jersey
B64: 13 | C64: Other additional Information | H64: Last updated : 24 November 2019 | U64: Last updated : 23 April 2018

Sheet Prog Concept
B2: Back | C2: Name of Course | D2: Programming Concept | AK2: 1 | AL2: 1
C3: Course Code | D3: CMM2433 | AJ3: √ | AK3: 2 | AL3: 2
B4: 2 | C4: Synopsis | D4: This course is required to understand the types of programming language, knowledge of computing and software development and also to encourage student to solve the problem. Student will use the algorithm in order to overcome the case problem and can create the programming coding. | U4: =D4 -> This course is required to understand the types of programming language, knowledge of computing and software development and also to encourage student to solve the problem. Student will use the algorithm in order to overcome the case problem and can create the programming coding. | AK4: 3 | AL4: 3
B5: 3 | C5: Name (s) of Academic Staff | D5: Nurul Iliani Binti Mohamed | AK5: 4 | AL5: 4
B6: 4 | C6: Semester | D6: Semester | E6: 4 | F6: Year | G6: 2 | AK6: 5
B7: 5 | C7: Credit Value | D7: =IF(T54=40,1,(IF(T54=80,2,(IF(T54=120,3,(IF(T54=160,4,IF(T54=200,5,IF(T54=240,6,""))))))))) -> 3 | AK7: 6
B8: 6 | C8: Pre-requisite / Co-requisite (if any) | AK8: 7
B9: 7 | C9: Course Learning Outcomes (CLO): At the end of the course the students will be able to: | AK9: 8
C10: (example) - explain the basic principles of immunisation (C2, PLO1) | AK10: 9
C11: CLO1 | D11: Apply the concepts of software development life cycle phases and programming. (C3, PLO1) | U11: =D11 -> Apply the concepts of software development life cycle phases and programming. (C3, PLO1) | AK11: 10
C12: CLO2 | D12: Construct algorithms and C++ program to solve the problems. (C3, CTPS3, PLO2) | U12: Construct algorithms and C++ program to solve the problems. (C3, CTPS3, PLO2) | AK12: 11
C13: CLO3 | D13: Demonstrate the skill of C++ concept by using appropriate tools. (P3, CTPS3, PLO3)
AK14: 12
B15: 8 | C15: Mapping of the Course Learning Outcomes to the Programme Learning Outcomes, Teaching Methods and Assessment:
C16: Course Learning Outcomes (CLO) | D16: Programme Learning Outcomes (PLO) | P16: Teaching Methods | S16: Assessment
D17: PLO1 | E17: PLO2 | F17: PLO3 | G17: PLO4 | H17: PLO5 | I17: PLO6 | J17: PLO7 | K17: PLO8 | L17: PLO9 | M17: PLO10 | N17: PLO11 | O17: PLO12
C18: CLO1 | D18: √ | P18: Lecture | Discussion | S18: Tests | Quiz | Final Examination | U18: =S18 -> Tests | Quiz | Final Examination
C19: CLO2 | E19: √ | P19: Lecture | Discussion | Lab activities | S19: Lab Skill | Assignment | Tests | Final Examination
C20: CLO3 | F20: √ | P20: Lecture | Informal Cooperative Learning| Lab activities | S20: Lab Skill
C22: (The description must be read together with standards 2.1.2, 2.2.1 and 2.2.2 in Area 2 - pages 16 & 18)
B23: 9 | C23: Transferable skills (if applicable) | G23: 1 | H23: Knowledge and Understanding
C24: (Skills learned in the course of study which can be useful and utilised in other settings) | G24: 2 | H24: Cognitive Skills
G25: 3 | H25: Practical Skills
B26: 10 | C26: Distribution of Students Learning Time (SLT)
C27: Course Content Outline | G27: CLO | I27: Teaching and Learning Activities | T27: SLT
I28: Guided learning (F2F) | Q28: Guided Learning (NF2F) eg: e-learning | S28: Independent learning (NF2F)
I29: L | K29: T | M29: P | O29: O
C30: Introduction to Computers, Programs and C++ 1.1 Introduction 1.2 What Is a Computer? 1.3 Programming Languages 1.4 Operating Systems 1.5 History of C++ 1.6 A Simple C++ Program 1.7 C++ Program - Development Cycle 1.8 Programming Style and Documentation 1.9 Programming Error | G30: CLO1 | I30: 2 | M30: 2 | S30: 4 | T30: =SUM(I30:S30) -> 8
C31: Designing Algorithm 2.1 Introduction to Algorithm 2.2 Algorithm: Pseudo code and Flowchart 2.3 Steps in Algorithms 2.4 Algorithm: NS-Diagram and decision table 2.5 Selection Structure 2.6 Repetition Structure | G31: CLO2, CLO3 | I31: 4 | M31: 2 | S31: 8 | T31: 14 | U31: =C31 -> Designing Algorithm 2.1 Introduction to Algorithm 2.2 Algorithm: Pseudo code and Flowchart 2.3 Steps in Algorithms 2.4 Algorithm: NS-Diagram and decision table 2.5 Selection Structure 2.6 Repetition Structure
C32: Elementary Programming 3.1 Introduction 3.2 Writting a Simple Program 3.3 Reading Input From the Keyboard 3.4 Identifiers 3.5 Variables 3.6 Assignment Statements and Assignment Expressions 3.7 Named Constants 3.8 Numeric Data Types and Operations 3.9 Evaluating Expressions and Operator Precedence 3.10 Augmented Assignment Operators 3.11 Increment and Decrement Operators 3.12 Software Development Process | G32: CLO2, CLO3 | I32: 4 | M32: 4 | S32: 8 | T32: 16 | U32: Elementary Programming 3.1 Introduction 3.2 Writting a Simple Program 3.3 Reading Input From the Keyboard 3.4 Identifiers 3.5 Variables 3.6 Assignment Statements and Assignment Expressions 3.7 Named Constants 3.8 Numeric Data Types and Operations 3.9 Evaluating Expressions and Operator Precedence 3.10 Augmented Assignment Operators 3.11 Increment and Decrement Operators 3.12 Software Development Process
C33: Mathematical Functions and Characters 4.1 Introduction 4.2 Mathematical Functions 4.3 Character Data Types and Operations 4.4 Character Functions 4.5 Formattiong Console Output | G33: CLO2, CLO3 | I33: 4 | M33: 4 | S33: 4 | T33: 12 | U33: Mathematical Functions and Characters 4.1 Introduction 4.2 Mathematical Functions 4.3 Character Data Types and Operations 4.4 Character Functions 4.5 Formattiong Console Output
C34: Selection 5.1 Control Structures 5.2 Conditions 5.3 The if Statements 5.4 if Statements with Compound Statements 5.5 Decision Steps in Algorithm 5.6 Nested if Statements and Multiple-Alternative Decisions 5.7 The Switch Statements | G34: CLO2, CLO3 | I34: 2 | M34: 4 | S34: 8 | T34: 14
C35: Repetition and Loop Statements 6.1 Repetition in Programs 6.2 Counting Loops and the while Statement 6.3 Computing a Sum or a Product in a loop 6.4 The for Statements 6.5 Conditional Loops: counter-controlled and sentinel-controlled 6.6 Loop Design 6.7 The do-while Statements | G35: CLO2, CLO3 | I35: 4 | M35: 4 | S35: 8 | T35: 16 | U35: =C35 -> Repetition and Loop Statements 6.1 Repetition in Programs 6.2 Counting Loops and the while Statement 6.3 Computing a Sum or a Product in a loop 6.4 The for Statements 6.5 Conditional Loops: counter-controlled and sentinel-controlled 6.6 Loop Design 6.7 The do-while Statements
C36: Total | T36: =SUM(T30:T35) -> 80 | U36: Total
C38: Continuous Assessment | L38: Percentage (%) | N38: F2F | Q38: NF2F | T38: SLT
C39: 1 | D39: Assignment (4) | L39: 15 | N39: 2 | Q39: 5 | T39: =SUM(N39:S39) -> 7
C40: 2 | D40: Lab Skill (5) | L40: 15 | N40: 10 | T40: 10 | U40: =D40 -> Lab Skill (5)
C41: 3 | D41: Test (2) | L41: 20 | N41: 4 | Q41: 10 | T41: 14 | U41: Test (2)
C42: 4 | T42: 0
C43: 5 | T43: 0
C44: Total | T44: =SUM(T39:T43) -> 31
C46: Final Assessment | L46: Percentage (%) | N46: F2F | Q46: NF2F | T46: SLT
C47: 1 | D47: Final Examination | L47: 50 | N47: 2.5 | Q47: 6.5 | T47: =SUM(N47:S47) -> 9
C48: 2 | T48: 0 | U48: =D48 -> 
C49: 3 | T49: 0
C50: 4 | T50: 0
C51: 5 | T51: 0
T52: =SUM(T47:T51) -> 9 | U52: =D52 -> 
C54: **Please tick (ü) in this course is Latihan Industri / Clinical Placement / Practicum / WBL using 2 weeks; 1 credit formula | T54: =+T36+T44+T52 -> 120
C55: L= Lecture, T=Tutorial, P=Practical, O=Others, F2F=Face to Face, NF2F=None Face to Face
C56: *Indicate the CLO based on the CLO's numbering in item 8
B57: 11 | C57: Identify special requirement to deliver the course (e.g: software, nursery, computer lab, simulation room, etc) | H57: Software C++ (eg: CodeBlock, MingW, Microsoft Visual C++)
U58: =H58 -> 
B59: 12 | C59: References:
C60: (include required and further readings, and should be the most current) | H60: 1. D.S Malik (2018), C++ Programming From Problem Analysis To Program Design, Eight Edition, Course Technology Cengage Learning. 2. Y. Daniel Liang, Introduction to Programming with C++, Third Edition, Pearson Education, 2013. 3. Hanly, J.R, Problem Solving and Program Design in C, Eight Edition, Addison-Wesley, 2015 4. http://www.learncpp.com | U60: =H60 -> 1. D.S Malik (2018), C++ Programming From Problem Analysis To Program Design, Eight Edition, Course Technology Cengage Learning. 2. Y. Daniel Liang, Introduction to Programming with C++, Third Edition, Pearson Education, 2013. 3. Hanly, J.R, Problem Solving and Program Design in C, Eight Edition, Addison-Wesley, 2015 4. http://www.learncpp.com
B61: 13 | C61: Other additional Information | H61: Lab Activities: Lab 1 : Designing Algorithm - Introduction for software Microsoft Visio Lab 2 : Elementary Programming - Introduction to Visual C++ as a compiler for C++ programming Language - Learn about create simple program using C++ code - Input and output operation for C++ Lab 3 : Mathematical Functions and Characters - How to solve mathematical problem using compiler C++ Lab 4 : Selection - Problem solving using selection statements Lab 5 : Repetition and Loop - Problem solving using repetition statements Last updated : 24 November 2019 | U61: Lab Activities: Lab 1 : Designing Algorithm - Introduction for software Microsoft Visio Lab 2 : Elementary Programming - Introduction to Visual C++ as a compiler for C++ programming Language - Learn about create simple program using C++ code - Input and output operation for C++ Lab 3 : Mathematical Functions and Characters - How to solve mathematical problem using compiler C++ Lab 4 : Selection - Problem solving using selection statements Lab 5 : Repetition and Loop - Problem solving using repetition statements Last updated : 24 November 2019

Sheet Photography
B2: Back | C2: Name of Course | D2: Basic in Photography | AK2: 1 | AL2: 1
C3: Course Code | D3: CMM1223 | AJ3: √ | AK3: 2 | AL3: 2
B4: 2 | C4: Synopsis | D4: This course introduces students to basic theories and applications in photography especially for multimedia applications through the use of digital photography and imaging editing software | U4: =D4 -> This course introduces students to basic theories and applications in photography especially for multimedia applications through the use of digital photography and imaging editing software | AK4: 3 | AL4: 3
B5: 3 | C5: Name (s) of Academic Staff | D5: Nuur Fatihah Bt Mohd Yusoff | AK5: 4 | AL5: 4
B6: 4 | C6: Semester | D6: Semester | E6: 2 | F6: Year | G6: 1 | AK6: 5
B7: 5 | C7: Credit Value | D7: =IF(T54=40,1,(IF(T54=80,2,(IF(T54=120,3,(IF(T54=160,4,IF(T54=200,5,IF(T54=240,6,""))))))))) -> 3 | AK7: 6
B8: 6 | C8: Pre-requisite / Co-requisite (if any) | AK8: 7
B9: 7 | C9: Course Learning Outcomes (CLO): At the end of the course the students will be able to: | AK9: 8
C10: (example) - explain the basic principles of immunisation (C2, PLO1) | AK10: 9
C11: CLO1 | D11: Apply the basic concepts and techniques of photography. (C3, PLO1) | U11: =D11 -> Apply the basic concepts and techniques of photography. (C3, PLO1) | AK11: 10
C12: CLO2 | D12: Demonstrate the photographer skill by using appropriate composition techniques. (P3, A2, PLO3) | U12: Demonstrate the photographer skill by using appropriate composition techniques. (P3, A2, PLO3) | AK12: 11
C13: CLO3 | D13: Apply image editing using related software. (A3, P3,PLO9)
AK14: 12
B15: 8 | C15: Mapping of the Course Learning Outcomes to the Programme Learning Outcomes, Teaching Methods and Assessment:
C16: Course Learning Outcomes (CLO) | D16: Programme Learning Outcomes (PLO) | P16: Teaching Methods | S16: Assessment
D17: PLO1 | E17: PLO2 | F17: PLO3 | G17: PLO4 | H17: PLO5 | I17: PLO6 | J17: PLO7 | K17: PLO8 | L17: PLO9 | M17: PLO10 | N17: PLO11 | O17: PLO12
C18: CLO1 | D18: √ | P18: Lecture | Discussion | S18: Test| Final Exam | U18: =S18 -> Test| Final Exam
C19: CLO2 | F19: √ | P19: Lecture | Discussion | Laboratory Work | S19: Assignment | Project
C20: CLO3 | L20: √ | P20: Laboratory | Independent Study Presentation | S20: Lab Skill | Assignments | Project
C22: (The description must be read together with standards 2.1.2, 2.2.1 and 2.2.2 in Area 2 - pages 16 & 18)
B23: 9 | C23: Transferable skills (if applicable) | G23: 1 | H23: Knowledge and understanding
C24: (Skills learned in the course of study which can be useful and utilised in other settings) | G24: 2 | H24: Practical Skill
G25: 3 | H25: Personal skill
B26: 10 | C26: Distribution of Students Learning Time (SLT)
C27: Course Content Outline | G27: CLO | I27: Teaching and Learning Activities | T27: SLT
I28: Guided learning (F2F) | Q28: Guided Learning (NF2F) eg: e-learning | S28: Independent learning (NF2F)
I29: L | K29: T | M29: P | O29: O
C30: 1.0 Introduction To Photography 1.1 What is Photography 1.2 How Photography Works 1.3 Picture Structuring 1.4 The Role of Photography | G30: CLO 1 | I30: 4 | M30: 2 | S30: 4 | T30: =SUM(I30:S30) -> 10
C31: 2.0 Light 2.1 How Images Form 2.2 Light Itself 2.3 Wave Lengths And Color 2.4 Shadows 2.5 Light Intensity And Distance 2.6 Making Lights From Images | G31: CLO 1 | I31: 4 | M31: 2 | S31: 4 | T31: 10 | U31: =C31 -> 2.0 Light 2.1 How Images Form 2.2 Light Itself 2.3 Wave Lengths And Color 2.4 Shadows 2.5 Light Intensity And Distance 2.6 Making Lights From Images
C32: 3.0 Lenses 3.1 Photographic lenses 3.2 Aperture and f-numbers 3.3 Depth of Field 3.4 Depth of Focus 3.5 Lens care | G32: CLO 1, CLO 2, CLO 3 | I32: 4 | M32: 3 | S32: 6 | T32: 13 | U32: 3.0 Lenses 3.1 Photographic lenses 3.2 Aperture and f-numbers 3.3 Depth of Field 3.4 Depth of Focus 3.5 Lens care
C33: 4.0 Cameras Using Film 4.1 The essentials components 4.2 How view camera works 4.3 How reflex camera works 4.4 Computer and software to film cameras | G33: CLO1, CLO2 | I33: 4 | M33: 4 | S33: 6 | T33: 14 | U33: 4.0 Cameras Using Film 4.1 The essentials components 4.2 How view camera works 4.3 How reflex camera works 4.4 Computer and software to film cameras
C34: 5.0 Composition 5.1The tools and techniques of composition 5.2 Simplify the concept 5.3 Choose an orientation 5.4 Using lines, balance and framing | G34: CLO 1, CLO 2, CLO 3 | I34: 6 | M34: 5 | S34: 7 | T34: 18 | U34: 5.0 Composition 5.1The tools and techniques of composition 5.2 Simplify the concept 5.3 Choose an orientation 5.4 Using lines, balance and framing
C35: 6.0 Organizing the picture 6.1 Noticing Subject features 6.2 Structuring pictures through the camera 6.3 Commercial requirements | G35: CLO1, CLO2 | I35: 6 | M35: 5 | S35: 7 | T35: 18 | U35: 6.0 Organizing the picture 6.1 Noticing Subject features 6.2 Structuring pictures through the camera 6.3 Commercial requirements
C36: Total | T36: =SUM(T30:T35) -> 83 | U36: Total
C38: Continuous Assessment | L38: Percentage (%) | N38: F2F | Q38: NF2F | T38: SLT
C39: 1 | D39: Lab Skill (2) | L39: 10 | N39: 2 | Q39: 6 | T39: =SUM(N39:S39) -> 8
C40: 2 | D40: Assignment | L40: 15 | Q40: 6 | T40: 6 | U40: =D40 -> Assignment
C41: 3 | D41: Test (2) | L41: 15 | N41: 3 | Q41: 4 | T41: 7 | U41: Test (2)
C42: 4 | D42: Project | L42: 10 | N42: 2 | Q42: 6 | T42: 8 | U42: Project
C43: 5 | T43: 0
C44: Total | T44: =SUM(T39:T43) -> 29
C46: Final Assessment | L46: Percentage (%) | N46: F2F | Q46: NF2F | T46: SLT
C47: 1 | D47: Final Examination | L47: 50 | N47: 2.5 | Q47: 5.5 | T47: =SUM(N47:S47) -> 8
C48: 2 | T48: 0 | U48: =D48 -> 
C49: 3 | T49: 0
C50: 4 | T50: 0
C51: 5 | T51: 0
T52: =SUM(T47:T51) -> 8 | U52: =D52 -> 
C54: **Please tick (ü) in this course is Latihan Industri / Clinical Placement / Practicum / WBL using 2 weeks; 1 credit formula | T54: =+T36+T44+T52 -> 120
C55: L= Lecture, T=Tutorial, P=Practical, O=Others, F2F=Face to Face, NF2F=None Face to Face
C56: *Indicate the CLO based on the CLO's numbering in item 8
B57: 11 | C57: Identify special requirement to deliver the course (e.g: software, nursery, computer lab, simulation room, etc)
U58: =H58 -> 
B59: 12 | C59: References: | H59: David Taylor, 2018 :The Advanced Photography Guide, Dorling Kindersley, 2018 Michael Langford, 2005, Basic Photography, Prentice Hall.
C60: (include required and further readings, and should be the most current) | H60: David D.Busch, 2002, Digital Photography and Imaging, the Corolis Group. | U60: =H60 -> David D.Busch, 2002, Digital Photography and Imaging, the Corolis Group.
B61: 13 | C61: Other additional Information | H61: Last updated : 24 November 2019 | U61: Last updated : 24 November 2019

Sheet Eng Comm II
B2: Back | C2: Name of Course | D2: English Communicative Skills II | AK2: 1 | AL2: 1
C3: Course Code | D3: ELS 2222 | AJ3: √ | AK3: 2 | AL3: 2
B4: 2 | C4: Synopsis | D4: This course exposes students to basic research skills and also report writing in the context of Market Survey Project. They will be able to conduct basic data collection and data analysis as a result of the project. They will be able toapply the project if they were to start an entrepreneurship effort. | U4: =D4 -> This course exposes students to basic research skills and also report writing in the context of Market Survey Project. They will be able to conduct basic data collection and data analysis as a result of the project. They will be able toapply the project if they were to start an entrepreneurship effort. | AK4: 3 | AL4: 3
B5: 3 | C5: Name (s) of Academic Staff | D5: Sharmin Alam | AK5: 4 | AL5: 4
B6: 4 | C6: Semester | D6: Semester | E6: 2 | F6: Year | G6: 1 | AK6: 5
B7: 5 | C7: Credit Value | D7: =IF(T58=40,1,(IF(T58=80,2,(IF(T58=120,3,(IF(T58=160,4,IF(T58=200,5,IF(T58=240,6,""))))))))) -> 2 | AK7: 6
B8: 6 | C8: Pre-requisite / Co-requisite (if any) | D8: English Communicative Skills I | AK8: 7
B9: 7 | C9: Course Learning Outcomes (CLO): At the end of the course the students will be able to: | AK9: 8
C10: (example) - explain the basic principles of immunisation (C2, PLO1) | AK10: 9
C11: CLO1 | D11: Practice business english in research methodology to develop business proposal (C3, CTPS3, PLO2) | U11: =D11 -> Practice business english in research methodology to develop business proposal (C3, CTPS3, PLO2) | AK11: 10
C12: CLO2 | D12: Prepare final report and presentation based on business report within time frame. (P2, A2, PLO4) | U12: Prepare final report and presentation based on business report within time frame. (P2, A2, PLO4) | AK12: 11
C13: CLO3 | D13: Summarize and paraphase given audio texts. (C2, A3, PLO5)
C14: CLO4
C15: Mapping of the Course Learning Outcomes to the Programme Learning Outcomes, Teaching Methods and Assessment: | AK15: 12
B16: 8 | C16: Course Learning Outcomes (CLO) | D16: Programme Learning Outcomes (PLO) | P16: Teaching Methods | S16: Assessment
D17: PLO1 | E17: PLO2 | F17: PLO3 | G17: PLO4 | H17: PLO5 | I17: PLO6 | J17: PLO7 | K17: PLO8 | L17: PLO9 | M17: PLO10 | N17: PLO11 | O17: PLO12
C18: CLO1 | E18: √ | P18: Lecture | Discussion | S18: Assignment| Final Examination
C19: CLO2 | G19: √ | P19: Practice Exercises | S19: Assignment| Final Examination | U19: =S18 -> Assignment| Final Examination
C20: CLO3 | H20: √ | P20: Practice Exercises | S20: Listening Test | V20: |
C22: (The description must be read together with standards 2.1.2, 2.2.1 and 2.2.2 in Area 2 - pages 16 & 18)
C23: Transferable skills (if applicable) | G23: 1 | H23: Knowledge and understanding skill
C24: (Skills learned in the course of study which can be useful and utilised in other settings) | G24: 2 | H24: Interpersonal skill, Teamwork skill
B25: 9 | G25: 3 | H25: Communication skill
C26: Distribution of Students Learning Time (SLT)
C27: Course Content Outline | G27: CLO | I27: Teaching and Learning Activities | T27: SLT
B28: 10 | I28: Guided learning (F2F) | Q28: Guided Learning (NF2F) eg: e-learning | S28: Independent learning (NF2F)
I29: L | K29: T | M29: P | O29: O
C30: 1.0 Introduction to course 1.1 Revision on sentence structures and paragraph writing | G30: CLO1 | I30: 2 | M30: 2 | S30: 2 | T30: =SUM(I30:S30) -> 6
C31: 2.0 Market Survey Project 2.1 Introduction to Market Survey 2.2 Example of Market Survey | G31: CLO4 | I31: 2 | M31: 2 | S31: 3 | T31: 7
C32: 3.0 Project Proposal 3.1 Background Information on product 3.2 Unique Selling points 3.3 Survey Objectives | G32: CLO4 | I32: 2 | M32: 2 | Q32: 2 | S32: 3 | T32: 9
C33: 4.0 Survey Questionnaire 4.01 writing questions (QuASM Formula) 4.02 Types of questions in Questionnaire | G33: CLO3 | I33: 2 | M33: 2 | Q33: 2 | S33: 3 | T33: 9 | U33: =C31 -> 2.0 Market Survey Project 2.1 Introduction to Market Survey 2.2 Example of Market Survey
C34: 5.0 Report Comprehension 5.01 Types of reports 5.02 Skimming and scanning report 5.03 Identifying main points and supporting details 5.1 Information transfer (texts to diagrams and vice versa) | G34: CLO3 | I34: 2 | M34: 2 | Q34: 2 | S34: 2 | T34: 8 | U34: 3.0 Project Proposal 3.1 Background Information on product 3.2 Unique Selling points 3.3 Survey Objectives
C35: 6.0 Project Report 6.1 Analysing Data 6.2 Passive and Active Sentences 6.3 Writing Data Analysis 6.4 Conclusion 6.5 Recommendations | G35: CLO4 | I35: 2 | M35: 3 | Q35: 5 | S35: 4 | T35: 14 | U35: 4.0 Survey Questionnaire 4.01 writing questions (QuASM Formula) 4.02 Types of questions in Questionnaire
T36: 0 | U36: 5.0 Report Comprehension 5.01 Types of reports 5.02 Skimming and scanning report 5.03 Identifying main points and supporting details 5.1 Information transfer (texts to diagrams and vice versa)
C37: 7.0 Listening 7.1 Listening to summarize 7.2 Listening to paraphase | G37: CLO2 | I37: 2 | M37: 2 | S37: 2 | T37: 6 | U37: 6.0 Project Report 6.1 Analysing Data 6.2 Passive and Active Sentences 6.3 Writing Data Analysis 6.4 Conclusion 6.5 Recommendations
C38: 8.0 Report Presentations 8.1 Structure in presentations 8.2 Visual aids in presentations | G38: CLO2 | I38: 2 | M38: 2 | Q38: 2 | S38: 3 | T38: 9
T39: 0 | U39: 7.0 Listening 7.1 Listening to summarize 7.2 Listening to paraphase
C40: Total | T40: =SUM(T30:T39) -> 68 | U40: 8.0 Report Presentations 8.1 Structure in presentations 8.2 Visual aids in presentations
C42: Continuous Assessment | L42: Percentage (%) | N42: F2F | Q42: NF2F | T42: SLT | U42: Total
C43: 1 | D43: Project Proposal | L43: 10 | N43: 1 | Q43: 1 | T43: =SUM(N43:S43) -> 2
C44: 2 | D44: Project Report | L44: 10 | N44: 1 | Q44: 1 | T44: 2
C45: 3 | D45: Project Presentation | L45: 10 | Q45: 1 | T45: 1
C46: 4 | D46: Report Comprehension Test | L46: 10 | N46: 1 | Q46: 1 | U46: =D44 -> Project Report
C47: 5 | D47: Listening Test | L47: 10 | N47: 1 | Q47: 1 | T47: =SUM(N47:S47) -> 2 | U47: Project Presentation
C48: Total | T48: =SUM(T43:T47) -> 7 | U48: Report Comprehension Test
U49: Listening Test
C50: Final Assessment | L50: Percentage (%) | N50: F2F | Q50: NF2F | T50: SLT
C51: 1 | D51: Final Examination | L51: 50 | N51: 2.5 | Q51: 2.5 | T51: =SUM(N51:S51) -> 5
C52: 2 | T52: 0
C53: 3 | T53: 0
C54: 4 | T54: 0 | U54: =D52 -> 
C55: 5 | T55: 0
T56: =SUM(T51:T55) -> 5
C58: **Please tick (ü) in this course is Latihan Industri / Clinical Placement / Practicum / WBL using 2 weeks; 1 credit formula | T58: =+T40+T48+T56 -> 80 | U58: =D56 -> 
C59: L= Lecture, T=Tutorial, P=Practical, O=Others, F2F=Face to Face, NF2F=None Face to Face
C60: *Indicate the CLO based on the CLO's numbering in item 8
C61: Identify special requirement to deliver the course (e.g: software, nursery, computer lab, simulation room, etc) | H61: None
B63: 11 | C63: References: | H63: Norazman Abdul Majid, Masdinah Alauyah Md. Yusoff, Tina Abdullah, et.al. (2010). Academic Report Writing: From Research to Presentation. (Updated 2nd ed.). Petaling Jaya: Prentice Hall.
H64: Pfeiffer, W.S., Keller C.H.Jr,. (2000). Proposal Writing: The Art of Friendly and Winning Persuasion. New Jersey : Prentice Hall.
H65: Rajeswary A. Sargunan, Evelyn Khor, Khatijah Samsudin, & Rema Menon. (2010). Report Writing for Business and Professional Purposes: An Introduction. (2nd ed.). Shah Alam: Mc Graw Hill.
C66: (include required and further readings, and should be the most current) | H66: Jordan, R.R (2007) Academic Writing Course: Skill in English. (3rd ed.) England: Longman | U66: =H62 -> 
B67: 12 | C67: Other additional Information | H67: Last updated : 24th November 2019
U68: =H66 -> Jordan, R.R (2007) Academic Writing Course: Skill in English. (3rd ed.) England: Longman

Sheet Eng Comm III
B2: Back | C2: Name of Course | D2: English Communicative Skills III | AK2: 1 | AL2: 1
C3: Course Code | D3: ELS 2232 | AJ3: √ | AK3: 2 | AL3: 2
B4: 2 | C4: Synopsis | D4: This course prepares students with communicating and writing skills in their job search. It also expose students to the process of finding work after graduating. Also, apply the professionalism and ethics in the workplace among students. | U4: =D4 -> This course prepares students with communicating and writing skills in their job search. It also expose students to the process of finding work after graduating. Also, apply the professionalism and ethics in the workplace among students. | AK4: 3 | AL4: 3
B5: 3 | C5: Name (s) of Academic Staff | D5: Sharmin Alam | AK5: 4 | AL5: 4
B6: 4 | C6: Semester | D6: Semester | E6: 3 | F6: Year | G6: 2 | AK6: 5
B7: 5 | C7: Credit Value | D7: =IF(AJ51=40,1,(IF(AJ51=80,2,(IF(AJ51=120,3,(IF(AJ51=160,4,IF(AJ51=200,5,IF(AJ51=240,6,""))))))))) ->  | AK7: 6
B8: 6 | C8: Pre-requisite / Co-requisite (if any) | D8: ELS 2222 | AK8: 7
B9: 7 | C9: Course Learning Outcomes (CLO): At the end of the course the students will be able to: | AK9: 8
C10: (example) - explain the basic principles of immunisation (C2, PLO1) | AK10: 9
C11: CLO1 | D11: Apply comprehensive reading, speakind and listening, and formal writing in job search. (C3, PLO1) | U11: =D11 -> Apply comprehensive reading, speakind and listening, and formal writing in job search. (C3, PLO1) | AK11: 10
C12: CLO2 | D12: Prepare curriculum vitae, job application letter, and various documents related to career. (A3, C3, PLO9) | U12: Prepare curriculum vitae, job application letter, and various documents related to career. (A3, C3, PLO9) | AK12: 11
C13: CLO3 | D13: Demonstrate the ability of profesionnal skill with positive attitude and good ethics during the interview for their career path. (A3, EM1, EM2, PLO11)
C14: Mapping of the Course Learning Outcomes to the Programme Learning Outcomes, Teaching Methods and Assessment: | AK14: 12
B15: 8 | C15: Course Learning Outcomes (CLO) | D15: Programme Learning Outcomes (PLO) | P15: Teaching Methods | S15: Assessment
D16: PLO1 | E16: PLO2 | F16: PLO3 | G16: PLO4 | H16: PLO5 | I16: PLO6 | J16: PLO7 | K16: PLO8 | L16: PLO9 | M16: PLO10 | N16: PLO11 | O16: PLO12
C17: CLO1 | D17: √ | P17: Lecture | Discussion | S17: Final Examination
C18: CLO2 | L18: √ | P18: Practice Exercises | S18: Assignment | Presentation | Project | U18: =S17 -> Final Examination
C19: CLO3 | N19: √ | P19: Practice Exercises | S19: Oral Test | V19: |
C21: (The description must be read together with standards 2.1.2, 2.2.1 and 2.2.2 in Area 2 - pages 16 & 18)
C22: Transferable skills (if applicable) | G22: 1 | H22: Knowledge and understanding skill
C23: (Skills learned in the course of study which can be useful and utilised in other settings) | G23: 2 | H23: Personal Skill, LifeLong Learning
B24: 9 | G24: 3 | H24: Ethics and profesionnalism skill
C25: Distribution of Students Learning Time (SLT)
C26: Course Content Outline | G26: CLO | I26: Teaching and Learning Activities | T26: SLT
B27: 10 | I27: Guided learning (F2F) | Q27: Guided Learning (NF2F) eg: e-learning | S27: Independent learning (NF2F)
I28: L | K28: T | M28: P | O28: O
C29: 1.0 Reading 1.1 Analyzing job advertisements 1.2 Components of job advertisements 1.3 Job Searching skills 1.4 Online 1.5 Printed Media | G29: CLO1 | I29: 3 | M29: 2 | S29: 7 | T29: =SUM(I29:S29) -> 12
C30: 2.0 Speaking & Listening 2.1 Interview 2.2 Career information searching techniques 2.3 Presentation of career planning 2.4 Job interview- common questions in job interview, tips and techniques of an effective job interview, job interview Do's and Don'ts | G30: CLO3 | I30: 3 | M30: 2 | O30: 0 | S30: 10 | T30: 15
C31: 3.0 Writing 3.1 Letter of inquiry 3.2 Letter of complaint 3.3 Job Application letter 3.4 Curriculum vitae 3.5 Office memorandum 3.6 Report | G31: CLO2 | I31: 3 | M31: 2 | Q31: 8 | S31: 7 | T31: 20
C32: Total | T32: =SUM(T29:T31) -> 47 | U32: =#REF! -> #REF!
U33: #REF!
C34: Continuous Assessment | L34: Percentage (%) | N34: F2F | Q34: NF2F | T34: SLT | U34: =C32 -> Total
C35: 1 | D35: Assignment - Job scan | L35: 10 | Q35: 5 | T35: =SUM(N35:S35) -> 5
C36: 2 | D36: Presentation - Career plan | L36: 5 | N36: 2 | Q36: 4 | T36: 6
C37: 3 | D37: Assignment - Resume writing | L37: 5 | Q37: 5 | T37: 5
C38: 4 | D38: Assignment - Application letter | L38: 10 | N38: 2 | Q38: 5 | U38: =D36 -> Presentation - Career plan
C39: 5 | D39: Oral Test - Job Interview | L39: 10 | N39: 2
C40: 6 | D40: Final Project | L40: 10 | N40: 2 | Q40: 5 | T40: =SUM(N40:S40) -> 7 | U40: =D37 -> Assignment - Resume writing
C41: Total | T41: =SUM(T35:T40) -> 23 | U41: Assignment - Application letter
U42: =D40 -> Final Project
C43: Final Assessment | L43: Percentage (%) | N43: F2F | Q43: NF2F | T43: SLT
C44: 1 | D44: Final Examination | L44: 50 | N44: 2.5 | Q44: 7.5 | T44: =SUM(N44:S44) -> 10
T45: 0
T46: 0
T47: 0 | U47: =D45 -> 
T48: 0
T49: =SUM(T44:T48) -> 10
C51: **Please tick (ü) in this course is Latihan Industri / Clinical Placement / Practicum / WBL using 2 weeks; 1 credit formula | T51: =+T32+T41+T49 -> 80 | U51: =D49 -> 
C52: L= Lecture, T=Tutorial, P=Practical, O=Others, F2F=Face to Face, NF2F=None Face to Face
C53: *Indicate the CLO based on the CLO's numbering in item 8
C54: Identify special requirement to deliver the course (e.g: software, nursery, computer lab, simulation room, etc) | H54: None
B56: 11 | C56: References: | H56: Jonny et.al. (2010) English for Proffessional Communication Business and Commerce Singapore: Cengage Learning Asia Pte Ltd
H57: Taylor, S, (2005) Communication For Business, A Practical Approach, 4th Edition England: Pearson Education Ltd.
H58: Samsiah Abdul Hamid & Rosyati Abdul Rashid, (2012) Mastering English For Employment, Cengage Learning Asia Pte Ltd.
B59: 12 | H59: Fiona Talbot, ,( 2016) How to Write Effective Business English, Kogan Page LTD, United Kingdom.
C60: Other additional Information | H60: Last updated : 24th November 2019 | U60: =#REF! -> #REF!

Sheet Audio Video
B2: Back | C2: Name of Course | D2: Audio and Video | AK2: 1 | AL2: 1
C3: Course Code | D3: CMM2233 | AJ3: √ | AK3: 2 | AL3: 2
B4: 2 | C4: Synopsis | D4: This course introduces students to basic theoretical and applications in audio and video technology for Multimedia applications by usage of digital audio and video editing software and produce a simple digital audio and video production. | U4: =D4 -> This course introduces students to basic theoretical and applications in audio and video technology for Multimedia applications by usage of digital audio and video editing software and produce a simple digital audio and video production. | AK4: 3 | AL4: 3
B5: 3 | C5: Name (s) of Academic Staff | D5: Nur Hazwani binti Hamdan | AK5: 4 | AL5: 4
B6: 4 | C6: Semester | D6: Semester | E6: 3 | F6: Year | G6: 2 | AK6: 5
B7: 5 | C7: Credit Value | D7: =IF(T58=40,1,(IF(T58=80,2,(IF(T58=120,3,(IF(T58=160,4,IF(T58=200,5,IF(T58=240,6,""))))))))) -> 3 | AK7: 6
B8: 6 | C8: Pre-requisite / Co-requisite (if any) | D8: CMM 1223 - Basic In Photography | AK8: 7
B9: 7 | C9: Course Learning Outcomes (CLO): At the end of the course the students will be able to: | AK9: 8
C10: (example) - explain the basic principles of immunisation (C2, PLO1) | AK10: 9
C11: CLO1 | D11: Apply the concept and practice in audio and video technology. (C3, PLO1) | U11: =D11 -> Apply the concept and practice in audio and video technology. (C3, PLO1) | AK11: 10
C12: CLO2 | D12: Demonstrate audio and video editing hardware and software in digital audio and video clip production. (P3, C2, PLO3) | U12: Demonstrate audio and video editing hardware and software in digital audio and video clip production. (P3, C2, PLO3) | AK12: 11
C13: CLO3 | D13: Demonstrate the ability to articulate ideas and processes in production with positive attitude and good ethics during the course. (A3, EM2, PLO11)
B15: 8 | C15: Mapping of the Course Learning Outcomes to the Programme Learning Outcomes, Teaching Methods and Assessment:
C16: Course Learning Outcomes (CLO) | D16: Programme Learning Outcomes (PLO) | P16: Teaching Methods | S16: Assessment
D17: PLO1 | E17: PLO2 | F17: PLO3 | G17: PLO4 | H17: PLO5 | I17: PLO6 | J17: PLO7 | K17: PLO8 | L17: PLO9 | M17: PLO10 | N17: PLO11 | O17: PLO12
C18: CLO1 | D18: √ | P18: Lecture | Discussion | S18: Test | Final Examination | U18: =S18 -> Test | Final Examination
C19: CLO2 | F19: √ | P19: Lecture | Discussion | Informal Activities | Laboratory Activities | S19: Assignment | Lab Test
C20: CLO3 | N20: √ | P20: Laboratory Activities | Presentation | S20: Project
C21: CLO4
C22: (The description must be read together with standards 2.1.2, 2.2.1 and 2.2.2 in Area 2 - pages 16 & 18)
B23: 9 | C23: Transferable skills (if applicable) | G23: 1 | H23: Knowledge and understanding
C24: (Skills learned in the course of study which can be useful and utilised in other settings) | G24: 2 | H24: Practical skill
G25: 3 | H25: Value, Atitude and Ethics
B26: 10 | C26: Distribution of Students Learning Time (SLT)
C27: Course Content Outline | G27: CLO | I27: Teaching and Learning Activities | T27: SLT
I28: Guided learning (F2F) | Q28: Guided Learning (NF2F) eg: e-learning | S28: Independent learning (NF2F)
I29: L | K29: T | M29: P | O29: O
C30: 1.0 Overview of audio technology 1.1 The important of sound 1.2 Sound Card 1.3 Using sound for multimedia applications 1.4 Concept of sound 1.5 Digitizing sound 1.6 Digital sampling 1.7 Calculating the size of audio file 1.8 Types of audio formats 1.9 Acquiring audio for multimedia applications | G30: CLO1 | I30: 2 | M30: 2 | S30: 3 | T30: =SUM(I30:S30) -> 7
C31: 2.0 Sound Recording 2.1 Introduction 2.2 Hardware and software involved 2.3 Analog sound recording equipment 2.4 Digital sound recording equipment 2.5 Process / steps in sound recording 2.6 Sound Studio equipment set-up | G31: CLO 1, CLO2 | I31: 2 | M31: 2 | S31: 2 | T31: 6 | U31: =C31 -> 2.0 Sound Recording 2.1 Introduction 2.2 Hardware and software involved 2.3 Analog sound recording equipment 2.4 Digital sound recording equipment 2.5 Process / steps in sound recording 2.6 Sound Studio equipment set-up
C32: 3.0 Introduction to MIDI and MP3 3.1 What is MIDI 3.1.1 How it works 3.1.2 Why it is important 3.1.3 Setting up MIDI 3.2 Introduction to MP3 3.2.1 The MP3 format 3.2.2 Using the MP3 format 3.2.3 Downloading and Listening 3.2.4 Creating Your Own | G32: CLO 1, CLO2 | I32: 2 | M32: 2 | S32: 3 | T32: 7 | U32: 3.0 Introduction to MIDI and MP3 3.1 What is MIDI 3.1.1 How it works 3.1.2 Why it is important 3.1.3 Setting up MIDI 3.2 Introduction to MP3 3.2.1 The MP3 format 3.2.2 Using the MP3 format 3.2.3 Downloading and Listening 3.2.4 Creating Your Own
C33: 4.0 Making Marvelous Music 4.1 Ripping music CDs 4.2 Licensing music or buying royalty-free music 4.3 Introducing to high-end music creation and editing products 4.3.1 Sound Forge 4.3.2 Adobe Audition 4.3.3 Roxio Easy Media Creator 8 4.4 Sound Aesthetic | G33: CLO 1, CLO2 | I33: 2 | M33: 2 | S33: 4 | T33: 8 | U33: 4.0 Making Marvelous Music 4.1 Ripping music CDs 4.2 Licensing music or buying royalty-free music 4.3 Introducing to high-end music creation and editing products 4.3.1 Sound Forge 4.3.2 Adobe Audition 4.3.3 Roxio Easy Media Creator 8 4.4 Sound Aesthetic
C34: 5.0 Understanding Digital Video Technology 5.1 The digital age 5.2 Digital video, DV 5.3 History of digital video 5.4 Linear and nonlinear editing 5.5 Advantages of digital video 5.6 The video signal and standard 5.7 File size in digital video 5.8 Video standard for broadcast, multimedia and internet | G34: CLO1, CLO3 | I34: 2 | M34: 2 | S34: 3 | T34: 7 | U34: 5.0 Understanding Digital Video Technology 5.1 The digital age 5.2 Digital video, DV 5.3 History of digital video 5.4 Linear and nonlinear editing 5.5 Advantages of digital video 5.6 The video signal and standard 5.7 File size in digital video 5.8 Video standard for broadcast, multimedia and internet
C35: 6.0 Configuring a Digital Video Computer Editing Systems 6.1 Doing your homework, determine the budget 6.2 The need for speed 6.3 Hard Drive 6.4 Firewire and Video card 6.5 Digital and analog tape formats 6.6 Digital video camera characteristics | G35: CLO 1, CLO2 | I35: 2 | M35: 2 | S35: 4 | T35: 8 | U35: 6.0 Configuring a Digital Video Computer Editing Systems 6.1 Doing your homework, determine the budget 6.2 The need for speed 6.3 Hard Drive 6.4 Firewire and Video card 6.5 Digital and analog tape formats 6.6 Digital video camera characteristics
C36: 7.0 Digital Video Preproduction 7.1 Script writing 7.2 Storyboards 7.3 Production schedule 7.4 Release forms and permits | G36: CLO1 | I36: 2 | M36: 2 | S36: 2 | T36: 6 | U36: 7.0 Digital Video Preproduction 7.1 Script writing 7.2 Storyboards 7.3 Production schedule 7.4 Release forms and permits
C37: 8.0 Digital Video Production 8.1 Equipment 8.1.1 Video cameras 8.1.2 Tripod 8.1.3 Microphones 8.1.4 Cables 8.1.5 Cases 8.2 Shooting videos 8.3 Lighting | G37: CLO 1, CLO2 | I37: 2 | M37: 2 | S37: 4 | T37: 8 | U37: 8.0 Digital Video Production 8.1 Equipment 8.1.1 Video cameras 8.1.2 Tripod 8.1.3 Microphones 8.1.4 Cables 8.1.5 Cases 8.2 Shooting videos 8.3 Lighting
C38: 9.0 Connecting Equipment and Capturing Digital Video 9.1 Video capture using Firewire 9.2 Video capture using a Video Card 9.3 Capturing video | G38: CLO 1, CLO2 | I38: 2 | M38: 2 | S38: 2 | T38: 6 | U38: 9.0 Connecting Equipment and Capturing Digital Video 9.1 Video capture using Firewire 9.2 Video capture using a Video Card 9.3 Capturing video
C39: 10.0 Editing Digital Video (Adobe Premiere) 10.1 The Project File 10.2 Importing File 10.3 Adding transitions 10.4 Using transperancy 10.5 Adding motion 10.6 Using filters 10.7 Incorporating audio and music | G39: CLO 1, CLO2 | I39: 3 | M39: 3 | S39: 4 | T39: 10 | U39: 10.0 Editing Digital Video (Adobe Premiere) 10.1 The Project File 10.2 Importing File 10.3 Adding transitions 10.4 Using transperancy 10.5 Adding motion 10.6 Using filters 10.7 Incorporating audio and music
C40: 11.0 Rendering and Outputting Digital Video 11.1 Preparing the project 11.2 Video settings 11.3 Audio settings 11.4 Making the movie 11.5 Outputting to tape 11.6 Playback settings 11.7 Recording to tape | G40: CLO 1, CLO2 | I40: 3 | M40: 4 | S40: 4 | T40: 11 | U40: 11.0 Rendering and Outputting Digital Video 11.1 Preparing the project 11.2 Video settings 11.3 Audio settings 11.4 Making the movie 11.5 Outputting to tape 11.6 Playback settings 11.7 Recording to tape
C41: Total | T41: =SUM(T30:T40) -> 84 | U41: Total
C43: Continuous Assessment | L43: Percentage (%) | N43: F2F | Q43: NF2F | T43: SLT
C44: 1 | D44: Assignment | L44: 10 | N44: 1 | Q44: 4 | T44: =SUM(N44:S44) -> 5
C45: 2 | D45: Test 1 & 2 | L45: 20 | N45: 3 | Q45: 5 | T45: 8 | U45: =D45 -> Test 1 & 2
C46: 3 | D46: Lab Test | L46: 10 | N46: 2 | Q46: 2 | T46: 4 | U46: Lab Test
C47: 4 | D47: Project | L47: 10 | N47: 1 | Q47: 10 | T47: 11 | U47: Project
C48: Total | T48: =SUM(T44:T47) -> 28
C50: Final Assessment | L50: Percentage (%) | N50: F2F | Q50: NF2F | T50: SLT
C51: 1 | D51: Final Examination | L51: 50 | N51: 2.5 | Q51: 5.5 | T51: =SUM(N51:S51) -> 8
C52: 2 | T52: 0 | U52: =D52 -> 
C53: 3 | T53: 0
C54: 4 | T54: 0
C55: 5 | T55: 0
T56: =SUM(T51:T55) -> 8 | U56: =D56 -> 
C58: **Please tick (ü) in this course is Latihan Industri / Clinical Placement / Practicum / WBL using 2 weeks; 1 credit formula | T58: =+T41+T48+T56 -> 120
C59: L= Lecture, T=Tutorial, P=Practical, O=Others, F2F=Face to Face, NF2F=None Face to Face
C60: *Indicate the CLO based on the CLO's numbering in item 8
B61: 11 | C61: Identify special requirement to deliver the course (e.g: software, nursery, computer lab, simulation room, etc) | H61: Adobe premiere pro cc 2019, Audacity Guide To Use Audacity Lab 1 : Setup Audacity Lab 2 : Recording in Audacity Lab 3 : Exporting Guide To Use Premiere Lab 4 : Set in and out points Lab 5 : Import footage Lab 6 : Add effects Lab 7 : Create titles Lab 8 : Export media Lab 9 : Use the ripple edit tool
U62: =H62 -> 
B63: 12 | C63: References: | H63: Sonja Schenk, The Digital Filmmaking Handbook, Cengage Learning PTR, 2015
H64: Maxim Jago, Adobe Premiere Pro CC 2017 Release, Adobe Press, 2017
C65: (include required and further readings, and should be the most current) | H65: Simon Pittman, Editing Audio Using Audacity, CreateSpace Independent Publishing Platform, 2013 | U65: =H65 -> Simon Pittman, Editing Audio Using Audacity, CreateSpace Independent Publishing Platform, 2013
B66: 13 | C66: Other additional Information | H66: Last updated : 24 November 2019 | U66: Last updated : 24 November 2019

Sheet Art Fund Design
B2: Back | C2: Name of Course | D2: Art Fundamental and Design | AK2: 1 | AL2: 1
C3: Course Code | D3: CMM1113 | AJ3: √ | AK3: 2 | AL3: 2
B4: 2 | C4: Synopsis | D4: This course introduces the concept of graphic design, graphic design components, elements of design and principles of graphic design. Topic on typography and layout of graphic design that will be utilize across all application. Student will be introduce to major graphic design application suc as logo / symbol / pictogram, visual identity / branding, poster, book jackets and magazine covers, packaging design etc. This course help develop hands on skills on how to design / solve graphic design application by using the graphic design drawing software such as Adobe Illustrator CS3. | U4: =D4 -> This course introduces the concept of graphic design, graphic design components, elements of design and principles of graphic design. Topic on typography and layout of graphic design that will be utilize across all application. Student will be introduce to major graphic design application suc as logo / symbol / pictogram, visual identity / branding, poster, book jackets and magazine covers, packaging design etc. This course help develop hands on skills on how to design / solve graphic design application by using the graphic design drawing software such as Adobe Illustrator CS3. | AK4: 3 | AL4: 3
B5: 3 | C5: Name (s) of Academic Staff | D5: Nuur Fatihah Mohd Yusoff | AK5: 4 | AL5: 4
B6: 4 | C6: Semester | D6: Semester | E6: 1 | F6: Year | G6: 1 | AK6: 5
B7: 5 | C7: Credit Value | D7: =IF(T59=40,1,(IF(T59=80,2,(IF(T59=120,3,(IF(T59=160,4,IF(T59=200,5,IF(T59=240,6,""))))))))) -> 3 | AK7: 6
B8: 6 | C8: Pre-requisite / Co-requisite (if any) | AK8: 7
B9: 7 | C9: Course Learning Outcomes (CLO): At the end of the course the students will be able to: | AK9: 8
C10: (example) - explain the basic principles of immunisation (C2, PLO1) | AK10: 9
C11: CLO1 | D11: Apply the knowledge and concept of basic graphic design in multimedia. (C3, PLO1) | U11: =D11 -> Apply the knowledge and concept of basic graphic design in multimedia. (C3, PLO1) | AK11: 10
C12: CLO2 | D12: Demonstrate the skill of creating graphic design application by using multimedia tools. (P3, PLO3) | U12: Demonstrate the skill of creating graphic design application by using multimedia tools. (P3, PLO3) | AK12: 11
C13: CLO3 | D13: Work collaboratively in a team to accomplish an assigned project within a given time frame (A3,TS3, PLO4)
AK14: 12
B15: 8 | C15: Mapping of the Course Learning Outcomes to the Programme Learning Outcomes, Teaching Methods and Assessment:
C16: Course Learning Outcomes (CLO) | D16: Programme Learning Outcomes (PLO) | P16: Teaching Methods | S16: Assessment
D17: PLO1 | E17: PLO2 | F17: PLO3 | G17: PLO4 | H17: PLO5 | I17: PLO6 | J17: PLO7 | K17: PLO8 | L17: PLO9 | M17: PLO10 | N17: PLO11 | O17: PLO12
C18: CLO1 | D18: √ | P18: Lecture | Discussion | Independent Study | S18: Test | Final Exam | U18: =S18 -> Test | Final Exam
C19: CLO2 | F19: √ | P19: Laboratory Work | Informal Co-operative Learning | S19: Lab Skill | Assignments | Project
C20: CLO3 | G20: √ | P20: Laboratory Work | Informal Co-operative Learning | Presentation | S20: Project
C22: (The description must be read together with standards 2.1.2, 2.2.1 and 2.2.2 in Area 2 - pages 16 & 18)
B23: 9 | C23: Transferable skills (if applicable) | G23: 1 | H23: Knowledge
C24: (Skills learned in the course of study which can be useful and utilised in other settings) | G24: 2 | H24: Practical Skill
G25: 3 | H25: Team working
B26: 10 | C26: Distribution of Students Learning Time (SLT)
C27: Course Content Outline | G27: CLO | I27: Teaching and Learning Activities | T27: SLT
I28: Guided learning (F2F) | Q28: Guided Learning (NF2F) eg: e-learning | S28: Independent learning (NF2F)
I29: L | K29: T | M29: P | O29: O
C30: 1.0 Introduction 1.1 Defining graphic Design 1.2 Nature and Impact of visual communication | G30: CLO 1, CLO 2 | I30: 1 | S30: 2 | T30: =SUM(I30:S30) -> 3
C31: 2.0 Overview of Graphic Design Graphics Design Solution Components 2.1 Strategy 2.2 Concept 2.3 Design 2.4 Production 2.5 Execution | G31: CLO 1, CLO 2,CLO 3 | I31: 2 | M31: 2 | S31: 4 | T31: 8 | U31: =C31 -> 2.0 Overview of Graphic Design Graphics Design Solution Components 2.1 Strategy 2.2 Concept 2.3 Design 2.4 Production 2.5 Execution
C32: 3.0 Fundamental of Graphic 3.1 Design Formal elements of Graphic Design 3.11 Line 3.12 Shape 3.13 Value 3.14 Texture 3.15 Format | G32: CLO 1, CLO 2,CLO 3 | I32: 2 | M32: 2 | S32: 2 | T32: 6 | U32: 3.0 Fundamental of Graphic 3.1 Design Formal elements of Graphic Design 3.11 Line 3.12 Shape 3.13 Value 3.14 Texture 3.15 Format
C33: 3.2 The principles of design 3.21 Balance 3.22 Emphasis: focal point and hierarchy 3.23 Rhythm 3.24 Unity 3.25 Manipulation of graphic space | G33: CLO 1, CLO 2,CLO 3 | I33: 4 | M33: 2 | S33: 4 | T33: 10 | U33: 3.2 The principles of design 3.21 Balance 3.22 Emphasis: focal point and hierarchy 3.23 Rhythm 3.24 Unity 3.25 Manipulation of graphic space
C34: 4.0 Typography 4.1 Letterforms 4.2 The principles of design and type 4.3 Designing with type 4.4 Type and visual | G34: CLO 1, CLO 2,CLO 3 | I34: 2 | M34: 2 | S34: 2 | T34: 6 | U34: 4.0 Typography 4.1 Letterforms 4.2 The principles of design and type 4.3 Designing with type 4.4 Type and visual
C35: 5.0 Layout 5.1 Defining Layout 5.2 Considering the Format 5.3 The grid | G35: CLO 1, CLO 2,CLO 3 | I35: 2 | M35: 2 | S35: 3 | T35: 7 | U35: 5.0 Layout 5.1 Defining Layout 5.2 Considering the Format 5.3 The grid
C36: 6.0 Logo / Symbol / Pictograms 6.1 Logo 6.2 Symbol 6.3 Pictograms 6.4 Application of design principles in the topic | G36: CLO 1, CLO 2,CLO 3 | I36: 4 | M36: 4 | S36: 5 | T36: 13 | U36: 6.0 Logo / Symbol / Pictograms 6.1 Logo 6.2 Symbol 6.3 Pictograms 6.4 Application of design principles in the topic
C37: 7.0 Visual Indentity and Branding 7.1 Visual Identity 7.2 Brands and Branding 7.3 Application of design principles in the topic | G37: CLO 1, CLO 2,CLO 3 | I37: 4 | M37: 2 | S37: 5 | T37: 11 | U37: 7.0 Visual Indentity and Branding 7.1 Visual Identity 7.2 Brands and Branding 7.3 Application of design principles in the topic
C38: 8.0 Posters 8.1 Purpose of posters 8.2 The Chalenge of Poster design | G38: CLO 1, CLO 2,CLO 3 | I38: 2 | M38: 2 | S38: 2 | T38: 6 | U38: 8.0 Posters 8.1 Purpose of posters 8.2 The Chalenge of Poster design
C39: 9.0 Book Jacket and Magazine Covers 9.1 Purposes of Covers 9.2 Design Consideration | G39: CLO 1, CLO 2,CLO 3 | I39: 2 | M39: 2 | S39: 2 | T39: 6 | U39: 9.0 Book Jacket and Magazine Covers 9.1 Purposes of Covers 9.2 Design Consideration
C40: 10.0 Packaging Design 10.1 Packaging Design 10.2 Audio / CD Packaging 10.3 Shopping Bags | G40: CLO 1, CLO 2,CLO 3 | I40: 2 | M40: 2 | S40: 2 | T40: 6 | U40: 10.0 Packaging Design 10.1 Packaging Design 10.2 Audio / CD Packaging 10.3 Shopping Bags
C41: Total | T41: =SUM(T30:T40) -> 82 | U41: Total
C43: Continuous Assessment | L43: Percentage (%) | N43: F2F | Q43: NF2F | T43: SLT
C44: 1 | D44: Test 1 | L44: 10 | N44: 1.5 | Q44: 4.5 | T44: =SUM(N44:S44) -> 6
C45: 2 | D45: Test 2 | L45: 10 | N45: 1.5 | Q45: 4.5 | T45: 6 | U45: =D45 -> Test 2
C46: 3 | D46: Lab Skills | L46: 10 | N46: 2 | Q46: 2.5 | T46: 4.5 | U46: Lab Skills
C47: 3 | D47: Assignment | L47: 10 | Q47: 6 | T47: 6 | U47: Assignment
C48: 4 | D48: Project | L48: 10 | N48: 2 | Q48: 6 | T48: 8 | U48: Project
C49: Total | T49: =SUM(T44:T48) -> 30.5
C51: Final Assessment | L51: Percentage (%) | N51: F2F | Q51: NF2F | T51: SLT
C52: 1 | D52: Final Examination | L52: 50 | N52: 2.5 | Q52: 5 | T52: =SUM(N52:S52) -> 7.5
C53: 2 | T53: 0 | U53: =D53 -> 
C54: 3 | T54: 0
C55: 4 | T55: 0
C56: 5 | T56: 0
T57: =SUM(T52:T56) -> 7.5 | U57: =D57 -> 
C59: **Please tick (ü) in this course is Latihan Industri / Clinical Placement / Practicum / WBL using 2 weeks; 1 credit formula | T59: =+T41+T49+T57 -> 120
C60: L= Lecture, T=Tutorial, P=Practical, O=Others, F2F=Face to Face, NF2F=None Face to Face
C61: *Indicate the CLO based on the CLO's numbering in item 8
B62: 11 | C62: Identify special requirement to deliver the course (e.g: software, nursery, computer lab, simulation room, etc) | H62: Adobe Illustrator CC 2017, Adobe Photoshop CC 2017
U63: =H63 -> 
B64: 12 | C64: References: | H64: Landa, R. , Graphic Design Solution, Sixth Edition, Cengage Learning, 2018.
C65: (include required and further readings, and should be the most current) | H65: Ganovelli, F & Corssini (2014), Introduction to Computer Graphics: A Practical Learning Approach, Chapman and Hall/CRC; 1 edition | U65: =H65 -> Ganovelli, F & Corssini (2014), Introduction to Computer Graphics: A Practical Learning Approach, Chapman and Hall/CRC; 1 edition
H66: Adobe Illustrator CC Classroom in a book Adobe Press (2017 release) | U66: Adobe Illustrator CC Classroom in a book Adobe Press (2017 release)
B67: 13 | C67: Other additional Information | H67: Last updated : 24 November 2019 | U67: Last updated : 24 November 2019

Sheet PPM
B2: Back | C2: Name of Course | D2: Multimedia Project Management | AK2: 1 | AL2: 1
C3: Course Code | D3: CMM2253 | AJ3: √ | AK3: 2 | AL3: 2
B4: 2 | C4: Synopsis | D4: This course introduces students to integrated multimedia elements in designing multimedia prototype which includes contract issues, contents, interaction design, media and authoring tools, scripting, proposal, project scope, production budgeting cost and techniques how to calculate project cost. | U4: =D4 -> This course introduces students to integrated multimedia elements in designing multimedia prototype which includes contract issues, contents, interaction design, media and authoring tools, scripting, proposal, project scope, production budgeting cost and techniques how to calculate project cost. | AK4: 3 | AL4: 3
B5: 3 | C5: Name (s) of Academic Staff | D5: Nuur Fatihah Mohd Yusoff | AK5: 4 | AL5: 4
B6: 4 | C6: Semester | D6: Semester | E6: 4 | F6: Year | G6: 2 | AK6: 5
B7: 5 | C7: Credit Value | D7: =IF(T59=40,1,(IF(T59=80,2,(IF(T59=120,3,(IF(T59=160,4,IF(T59=200,5,IF(T59=240,6,""))))))))) -> 3 | AK7: 6
B8: 6 | C8: Pre-requisite / Co-requisite (if any) | AK8: 7
B9: 7 | C9: Course Learning Outcomes (CLO): At the end of the course the students will be able to: | AK9: 8
C10: (example) - explain the basic principles of immunisation (C2, PLO1) | AK10: 9
C11: CLO1 | D11: Apply the concept and fundamental of multimedia project management. (C3, PLO1) | U11: =D12 -> Demonstrate online or offline project using multimedia authoring tools within the given time. (P3, CTPS 3, PLO3) | AK11: 10
C12: CLO2 | D12: Demonstrate online or offline project using multimedia authoring tools within the given time. (P3, CTPS 3, PLO3) | AK12: 11
C13: CLO3 | D13: Demonstrate leadership quality in accomplishing project within the given task. (A3, LS2, PLO8)
AK14: 12
B15: 8 | C15: Mapping of the Course Learning Outcomes to the Programme Learning Outcomes, Teaching Methods and Assessment:
C16: Course Learning Outcomes (CLO) | D16: Programme Learning Outcomes (PLO) | P16: Teaching Methods | S16: Assessment
D17: PLO1 | E17: PLO2 | F17: PLO3 | G17: PLO4 | H17: PLO5 | I17: PLO6 | J17: PLO7 | K17: PLO8 | L17: PLO9 | M17: PLO10 | N17: PLO11 | O17: PLO12 | U17: =S18 -> Assignment | Test | Final Examination
C18: CLO1 | D18: √ | P18: Lecture | Discussion | S18: Assignment | Test | Final Examination
C19: CLO2 | F19: √ | P19: Lecture | Lab Activities | S19: Assignment | Lab Exercise | Project
C20: CLO3 | K20: √ | P20: Lecture | Lab Activities | Presentation | S20: Project
C22: (The description must be read together with standards 2.1.2, 2.2.1 and 2.2.2 in Area 2 - pages 16 & 18)
B23: 9 | C23: Transferable skills (if applicable) | G23: 1 | H23: Knowledge
C24: (Skills learned in the course of study which can be useful and utilised in other settings) | G24: 2 | H24: Practical Skill
G25: 3 | H25: Leadership Skill
B26: 10 | C26: Distribution of Students Learning Time (SLT)
C27: Course Content Outline | G27: CLO | I27: Teaching and Learning Activities | T27: SLT
I28: Guided learning (F2F) | Q28: Guided Learning (NF2F) eg: e-learning | S28: Independent learning (NF2F)
I29: L | K29: T | M29: P | O29: O
C30: 1.0 Introduction to Multimedia Project Management 1.1 What is Multimedia Project Management 1.2 Multimedia and Projects 1.3 Multimedia and Project Management | G30: CLO 1 | I30: 2 | K30: 1 | S30: 1 | T30: =SUM(I30:S30) -> 4 | U30: =C31 -> 2.0 Project Scope 2.1 Analysis Problem Needs 2.2 Define Project Scope 2.3 Project manager’s responsibilities 2.4 Online and Offline Interactive Scoping 2.5 Online and Offline client-centered project scoping 2.6 The Proposal
C31: 2.0 Project Scope 2.1 Analysis Problem Needs 2.2 Define Project Scope 2.3 Project manager’s responsibilities 2.4 Online and Offline Interactive Scoping 2.5 Online and Offline client-centered project scoping 2.6 The Proposal | G31: CLO 1 | I31: 2 | K31: 1 | S31: 2 | T31: 5 | U31: 3.0 Contract 3.1 Background to Multimedia Contracts 3.2 Refining the proposal into a contract document 3.3 Agreeing how to work together 3.4 Change management 3.5 Stages of project 3.6 Responsibilities
C32: 3.0 Contract 3.1 Background to Multimedia Contracts 3.2 Refining the proposal into a contract document 3.3 Agreeing how to work together 3.4 Change management 3.5 Stages of project 3.6 Responsibilities | G32: CLO 2 | I32: 4 | K32: 2 | S32: 4 | T32: 10 | U32: 4.0 Developing the Content 4.1 The Importance of Content 4.2 Scripting for Multimedia 4.3 General Principles for establishing Content
C33: 4.0 Developing the Content 4.1 The Importance of Content 4.2 Scripting for Multimedia 4.3 General Principles for establishing Content | G33: CLO 2 | I33: 4 | M33: 4 | S33: 4 | T33: 12 | U33: 5.0 Platform And Media Techniques 5.1 Choosing the platform 5.2 Delivery platform 5.3 Delivery medium 5.4 Hybrid delivery 5.5 Platforms for development and Testing 5.6 Selecting the media and techniques 5.7 Matching the media to the message 5.8 Audio Video backgrounds 5.9 Computer and video graphics
C34: 5.0 Platform And Media Techniques 5.1 Choosing the platform 5.2 Delivery platform 5.3 Delivery medium 5.4 Hybrid delivery 5.5 Platforms for development and Testing 5.6 Selecting the media and techniques 5.7 Matching the media to the message 5.8 Audio Video backgrounds 5.9 Computer and video graphics | G34: CLO 2 | I34: 2 | M34: 4 | S34: 4 | T34: 10 | U34: 6.0 Interface Design 6.1 Screen design 6.2 Screen Components 6.3 Types of Menus 6.4 User friendly features 6.5 Selection of Background 6.6 Color and highlighting 6.7 Highlighting techniques with colors and highlighting types
C35: 6.0 Interface Design 6.1 Screen design 6.2 Screen Components 6.3 Types of Menus 6.4 User friendly features 6.5 Selection of Background 6.6 Color and highlighting 6.7 Highlighting techniques with colors and highlighting types | G35: CLO 3 | I35: 2 | M35: 2 | S35: 4 | T35: 8 | U35: 7.0Team Management 7.1 Selecting the team 7.2 Team management principles. 7.3 The project manager and team culture
C36: 7.0Team Management 7.1 Selecting the team 7.2 Team management principles. 7.3 The project manager and team culture | G36: CLO 3 | I36: 2 | K36: 1 | S36: 4 | T36: 7 | U36: 8.0 Integration 8.1 Multimedia and fusion or confusion 8.2 Authoring versus programming 8.3 Stages, bugs, demo factor, jigsaw 8.4 Risky business 8.5 The link between software and the clients.
C37: 8.0 Integration 8.1 Multimedia and fusion or confusion 8.2 Authoring versus programming 8.3 Stages, bugs, demo factor, jigsaw 8.4 Risky business 8.5 The link between software and the clients. | G37: CLO 3 | I37: 2 | K37: 1 | S37: 2 | T37: 5 | U37: =C41 -> 12.0 Marketing and Marketing Research 12.1 What is marketing 12.2 Marketing and new media 12.3 Who are the customers 12.4 Know the competition 12.5 Know the strength and market 12.6 Introduction to market analysis
C38: 9.0 Rights and Copyrights 9.1 Rights 9.2 Copyrights 9.3 Intellectual property | G38: CLO 2 | I38: 2 | K38: 1 | S38: 2 | T38: 5 | U38: =#REF! -> #REF!
C39: 10.0 Testing 10.1 Multimedia and Testing 10.2 Testing strategy 10.3 Insights into software Testing 10.4 Final sign-off | G39: CLO 2 | I39: 2 | K39: 2 | S39: 2 | T39: 6 | U39: =C42 -> Total
C40: 11.0 Archiving 11.1 The rationale of archiving 11.2 What neds to be archieved 11.3 Closing the project | G40: CLO 2 | I40: 2 | K40: 1 | S40: 2 | T40: 5
C41: 12.0 Marketing and Marketing Research 12.1 What is marketing 12.2 Marketing and new media 12.3 Who are the customers 12.4 Know the competition 12.5 Know the strength and market 12.6 Introduction to market analysis | G41: CLO 3 | I41: 2 | K41: 1 | S41: 2 | T41: 5
C42: Total | T42: =SUM(T30:T41) -> 82
U43: =D46 -> Lab Exercises (4)
C44: Continuous Assessment | L44: Percentage (%) | N44: F2F | Q44: NF2F | T44: SLT | U44: Tests (2)
C45: 1 | D45: Assignments (2) | L45: 10 | Q45: 6 | T45: =SUM(N45:S45) -> 6 | U45: Project
C46: 2 | D46: Lab Exercises (4) | L46: 10 | N46: 4 | Q46: 4 | T46: 8 | U46: =#REF! -> #REF!
C47: 3 | D47: Tests (2) | L47: 20 | N47: 3 | Q47: 6 | T47: 9 | U47: =D49 -> 
C48: 4 | D48: Project | L48: 10 | Q48: 8 | T48: 8
C49: Total | T49: =SUM(T45:T48) -> 31
U50: =D53 -> 
C51: Final Assessment | L51: Percentage (%) | N51: F2F | Q51: NF2F | T51: SLT
C52: 1 | D52: Final Examination | L52: 50 | N52: 2.5 | Q52: 4.5 | T52: =SUM(N52:S52) -> 7
C53: 2 | T53: 0
C54: 3 | T54: 0 | U54: =D57 -> 
C55: 4 | T55: 0
C56: 5 | T56: 0
T57: =SUM(T52:T56) -> 7
C59: **Please tick (ü) in this course is Latihan Industri / Clinical Placement / Practicum / WBL using 2 weeks; 1 credit formula | T59: =+T42+T49+T57 -> 120
C60: L= Lecture, T=Tutorial, P=Practical, O=Others, F2F=Face to Face, NF2F=None Face to Face | U60: =H63 -> 
C61: *Indicate the CLO based on the CLO's numbering in item 8
B62: 11 | C62: Identify special requirement to deliver the course (e.g: software, nursery, computer lab, simulation room, etc) | H62: Multimedia authoring tools, Multimedia studio | U62: =H65 -> Kathy Schwalbe, An Introduction to Project Management, Fifth Edition (2015),Schwalbe Publishing 9th ed. New York: McGraw-Hill Higher Education.
B64: 12 | C64: References: | H64: Kathy Schwalbe, Information Technology Project Management, Loose-Leaf Version, Course Technology, 2018
C65: (include required and further readings, and should be the most current) | H65: Kathy Schwalbe, An Introduction to Project Management, Fifth Edition (2015),Schwalbe Publishing 9th ed. New York: McGraw-Hill Higher Education.
B66: 13 | C66: Other additional Information | H66: Last updated : 24 November 2019
R67: =H66 -> Last updated : 24 November 2019

Sheet 2D
B2: Back | C2: Name of Course | D2: 2D Animation | AK2: 1 | AL2: 1
C3: Course Code | D3: CMM2313 | AJ3: √ | AK3: 2 | AL3: 2
B4: 2 | C4: Synopsis | D4: This course equips the students with definition of animation, storyboard, script, types of animation, techniques in designing animation, types of animation hardware and software. | U4: =D4 -> This course equips the students with definition of animation, storyboard, script, types of animation, techniques in designing animation, types of animation hardware and software. | AK4: 3 | AL4: 3
B5: 3 | C5: Name (s) of Academic Staff | D5: Nuur Fatihah Binti Mohd Yusoff | AK5: 4 | AL5: 4
B6: 4 | C6: Semester | D6: Semester | E6: 4 | F6: Year | G6: 2 | AK6: 5
B7: 5 | C7: Credit Value | D7: =IF(T58=40,1,(IF(T58=80,2,(IF(T58=120,3,(IF(T58=160,4,IF(T58=200,5,IF(T58=240,6,""))))))))) -> 3 | AK7: 6
B8: 6 | C8: Pre-requisite / Co-requisite (if any) | AK8: 7
B9: 7 | C9: Course Learning Outcomes (CLO): At the end of the course the students will be able to: | AK9: 8
C10: (example) - explain the basic principles of immunisation (C2, PLO1) | AK10: 9
C11: CLO1 | D11: Apply the concept and basic elements of animation in multimedia system. (C3, PLO1) | U11: =D11 -> Apply the concept and basic elements of animation in multimedia system. (C3, PLO1) | AK11: 10
C12: CLO2 | D12: Solve the problem on assigned tasks by applying appropriate techniques using 2D software within given time. (C3, CTPS3, PLO2) | U12: Solve the problem on assigned tasks by applying appropriate techniques using 2D software within given time. (C3, CTPS3, PLO2) | AK12: 11
C13: CLO3 | D13: Demonstrate the ability to create a multimedia animation using appropriate multimedia tools. (P3, PLO3)
AK14: 12
B15: 8 | C15: Mapping of the Course Learning Outcomes to the Programme Learning Outcomes, Teaching Methods and Assessment:
C16: Course Learning Outcomes (CLO) | D16: Programme Learning Outcomes (PLO) | P16: Teaching Methods | S16: Assessment
D17: PLO1 | E17: PLO2 | F17: PLO3 | G17: PLO4 | H17: PLO5 | I17: PLO6 | J17: PLO7 | K17: PLO8 | L17: PLO9 | M17: PLO10 | N17: PLO11 | O17: PLO12
C18: CLO1 | D18: √ | P18: Lecture | Discussion | S18: Assignment | Test | Final Examination | U18: =S18 -> Assignment | Test | Final Examination
C19: CLO2 | E19: √ | P19: Lecture | Lab Activities | S19: Assignment | Lab Skill
C20: CLO3 | F20: √ | P20: Lecture | Lab Activities | Presentation | S20: Lab Skill | Project
C22: (The description must be read together with standards 2.1.2, 2.2.1 and 2.2.2 in Area 2 - pages 16 & 18)
B23: 9 | C23: Transferable skills (if applicable) | G23: 1 | H23: Knowledge and understanding
C24: (Skills learned in the course of study which can be useful and utilised in other settings) | G24: 2 | H24: Cognitive skills
G25: 3 | H25: Practical Skills
B26: 10 | C26: Distribution of Students Learning Time (SLT)
C27: Course Content Outline | G27: CLO | I27: Teaching and Learning Activities | T27: SLT
I28: Guided learning (F2F) | Q28: Guided Learning (NF2F) eg: e-learning | S28: Independent learning (NF2F)
I29: L | K29: T | M29: P | O29: O
C30: 1.0 Introduction to Animation 1.1 Definition, principles and importance of animation 1.2 Usage of animation 1.3 Job opportunity 1.4 Skill requirements | G30: CLO 1 | I30: 2 | K30: 2 | S30: 4 | T30: =SUM(I30:S30) -> 8
C31: 2.0 Tools needed 2.1 Storyboard 2.2 Script | G31: CLO 1 | I31: 2 | K31: 2 | S31: 4 | T31: 8 | U31: =C31 -> 2.0 Tools needed 2.1 Storyboard 2.2 Script
C32: 3.0 Types of animation 3.1 Path-Based 3.2 Cell-Based 3.3 Program Based 3.4 Combination of Path and Cell Based 3.5 3D Modeling | G32: CLO 2 | I32: 4 | K32: 4 | S32: 6 | T32: 14 | U32: 3.0 Types of animation 3.1 Path-Based 3.2 Cell-Based 3.3 Program Based 3.4 Combination of Path and Cell Based 3.5 3D Modeling
C33: 4.0 Character Animation 4.1 2D and 3D animation object | G33: CLO 1 | I33: 4 | K33: 4 | S33: 4 | T33: 12 | U33: 4.0 Character Animation 4.1 2D and 3D animation object
C34: 5.0 Techniques in designing animation using Adobe Flash 5.1 Basic Technique 5.2 Keyframing 5.3 Motion Tween 5.4 Shape Tween 5.5 Symbol | G34: CLO 3 | I34: 2 | K34: 4 | S34: 4 | T34: 10 | U34: 5.0 Techniques in designing animation using Adobe Flash 5.1 Basic Technique 5.2 Keyframing 5.3 Motion Tween 5.4 Shape Tween 5.5 Symbol
C35: 6.0 Types of animation Tools 6.1 General Tools 6.2 Dedicated 6.3 3D Dedicated 6.4 Professional 6.5 Interpolation 6.6 Storage devices for animation and multimedia 6.7 File format for animation | G35: CLO 2 | I35: 2 | K35: 4 | S35: 4 | T35: 10 | U35: 6.0 Types of animation Tools 6.1 General Tools 6.2 Dedicated 6.3 3D Dedicated 6.4 Professional 6.5 Interpolation 6.6 Storage devices for animation and multimedia 6.7 File format for animation
C36: 7.0 Computer Animation 7.1 Key Frame and Track Based 7.2 Metamorphosis 7.3 Animation language 7.4 Conventional product | G36: CLO 3 | I36: 2 | K36: 2 | S36: 4 | T36: 8 | U36: 7.0 Computer Animation 7.1 Key Frame and Track Based 7.2 Metamorphosis 7.3 Animation language 7.4 Conventional product
C37: 8.0 Animation testing and playback 8.1 The effect of resolution on the speed 8.2 Playback and file size 8.3 Effect of storage media and bandwidth on playback speed | G37: CLO 3 | I37: 2 | K37: 2 | S37: 4 | T37: 8 | U37: 8.0 Animation testing and playback 8.1 The effect of resolution on the speed 8.2 Playback and file size 8.3 Effect of storage media and bandwidth on playback speed
C38: 9.0 Macromedia Shockwave, VRML, Java Quicktime | G38: CLO 3 | I38: 2 | K38: 2 | S38: 4 | T38: 8 | U38: =C39 -> 10.0 Web animation
C39: 10.0 Web animation | G39: CLO 3 | I39: 2 | K39: 2 | S39: 4 | T39: 8 | U39: =#REF! -> #REF!
C40: Total | T40: =SUM(T30:T39) -> 94 | U40: =C40 -> Total
C42: Continuous Assessment | L42: Percentage (%) | N42: F2F | Q42: NF2F | T42: SLT
C43: 1 | D43: Assignments (2) | L43: 10 | Q43: 3 | T43: =SUM(N43:S43) -> 3
C44: 2 | D44: Tests (2) | L44: 20 | N44: 2 | Q44: 3 | T44: 5 | U44: =D44 -> Tests (2)
C45: 3 | D45: Lab Skill | L45: 10 | N45: 2 | Q45: 3 | T45: 5 | U45: Lab Skill
C46: 4 | D46: Project | L46: 10 | Q46: 6 | T46: 6 | U46: Project
C47: 5 | T47: 0
C48: Total | T48: =SUM(T43:T47) -> 19
C50: Final Assessment | L50: Percentage (%) | N50: F2F | Q50: NF2F | T50: SLT
C51: 1 | D51: Final Examination | L51: 50 | N51: 2.5 | Q51: 4.5 | T51: =SUM(N51:S51) -> 7
C52: 2 | T52: 0 | U52: =D52 -> 
C53: 3 | T53: 0
C54: 4 | T54: 0
C55: 5 | T55: 0
T56: =SUM(T51:T55) -> 7 | U56: =D56 -> 
C58: **Please tick (ü) in this course is Latihan Industri / Clinical Placement / Practicum / WBL using 2 weeks; 1 credit formula | T58: =+T40+T48+T56 -> 120
C59: L= Lecture, T=Tutorial, P=Practical, O=Others, F2F=Face to Face, NF2F=None Face to Face
C60: *Indicate the CLO based on the CLO's numbering in item 8
B61: 11 | C61: Identify special requirement to deliver the course (e.g: software, nursery, computer lab, simulation room, etc) | H61: Adobe Animate CC 2019
U62: =H62 -> 
B63: 12 | C63: References: | H63: 1.Paul Wells, Samantha Moore, 2016 : The Fundamentals of Animation, Bloomsbury Publishing, 2016 2.Rick Parent :Computer Animation: Algorithms and Techniques 3rd Edition , Newnes, 2012
C64: (include required and further readings, and should be the most current) | H64: 3. Tradigital Animate CC: 12 Principles of Animation in Adobe Animate 1st Edition, 2016 4. Adobe Animate CC Classroom in a Book (2019 Release) | U64: =H64 -> 3. Tradigital Animate CC: 12 Principles of Animation in Adobe Animate 1st Edition, 2016 4. Adobe Animate CC Classroom in a Book (2019 Release)
B65: 13 | C65: Other additional Information | H65: Last updated : 24 November 2019
R66: =H65 -> Last updated : 24 November 2019

Sheet 3D
B2: Back | C2: Name of Course | D2: 3D Animation | AK2: 1 | AL2: 1
C3: Course Code | D3: CMM3333 | AJ3: √ | AK3: 2 | AL3: 2
B4: 2 | C4: Synopsis | D4: This course equips the students with theory and practice on thinking 3 dimensionality, 3D and current use, storyboard. Building advance modeling, surface texture and process, lighting, rendering. | U4: =D4 -> This course equips the students with theory and practice on thinking 3 dimensionality, 3D and current use, storyboard. Building advance modeling, surface texture and process, lighting, rendering. | AK4: 3 | AL4: 3
B5: 3 | C5: Name (s) of Academic Staff | D5: Nur Hazwani Hamdan | AK5: 4 | AL5: 4
B6: 4 | C6: Semester | D6: Semester | E6: 5 | F6: Year | G6: 3 | AK6: 5
B7: 5 | C7: Credit Value | D7: =IF(T55=40,1,(IF(T55=80,2,(IF(T55=120,3,(IF(T55=160,4,IF(T55=200,5,IF(T55=240,6,""))))))))) -> 3 | AK7: 6
B8: 6 | C8: Pre-requisite / Co-requisite (if any) | D8: CMM2313 - 2D Animation | AK8: 7
B9: 7 | C9: Course Learning Outcomes (CLO): At the end of the course the students will be able to: | AK9: 8
C10: (example) - explain the basic principles of immunisation (C2, PLO1) | AK10: 9
C11: CLO1 | D11: Explain the concepts and principles of 3D graphics and animations. (C3, PLO1) | U11: =D11 -> Explain the concepts and principles of 3D graphics and animations. (C3, PLO1) | AK11: 10
C12: CLO2 | D12: Construct a simple animated scene in 3D using lighting and rendering techniques. (C3, CTPS3, PLO2) | U12: Construct a simple animated scene in 3D using lighting and rendering techniques. (C3, CTPS3, PLO2) | AK12: 11
C13: CLO3 | D13: Apply the basic tools and interface used to model a 3D animation character. (P3, PLO3)
AK14: 12
B15: 8 | C15: Mapping of the Course Learning Outcomes to the Programme Learning Outcomes, Teaching Methods and Assessment:
C16: Course Learning Outcomes (CLO) | D16: Programme Learning Outcomes (PLO) | P16: Teaching Methods | S16: Assessment
D17: PLO1 | E17: PLO2 | F17: PLO3 | G17: PLO4 | H17: PLO5 | I17: PLO6 | J17: PLO7 | K17: PLO8 | L17: PLO9 | M17: PLO10 | N17: PLO11 | O17: PLO12
C18: CLO1 | D18: √ | P18: Lecture | Discussion | S18: Assignment | Test | Final Examination | U18: =S18 -> Assignment | Test | Final Examination
C19: CLO2 | E19: √ | P19: Lecture | Lab Activities | S19: Lab Skill | Assignment
C20: CLO3 | F20: √ | P20: Lecture | Lab Activities | Discussion | Presentation | S20: Lab Skill | Project | Final Examination
C22: (The description must be read together with standards 2.1.2, 2.2.1 and 2.2.2 in Area 2 - pages 16 & 18)
B23: 9 | C23: Transferable skills (if applicable) | G23: 1 | H23: Knowledge and understanding
C24: (Skills learned in the course of study which can be useful and utilised in other settings) | G24: 2 | H24: Cognitive skills
G25: 3 | H25: Practical Skills
B26: 10 | C26: Distribution of Students Learning Time (SLT)
C27: Course Content Outline | G27: CLO | I27: Teaching and Learning Activities | T27: SLT
I28: Guided learning (F2F) | Q28: Guided Learning (NF2F) eg: e-learning | S28: Independent learning (NF2F)
I29: L | K29: T | M29: P | O29: O
C30: 1.0 THINKING 3-DIMENSIONALLY 1.1 RAM 3D software 1.2 Determining the platform for 3D animation software 1.3 3D animation software | G30: CLO 1 | I30: 3 | K30: 1 | S30: 6 | T30: =SUM(I30:S30) -> 10
C31: 2.0 3D AND CURRENT USAGE 2.1 Video output card 2.2 QuickTime Virtual Reality (QTVR) 2.3 3D object QTVR 2.4 Panoramic QTVR | G31: CLO 1 | I31: 3 | K31: 1 | S31: 6 | T31: 10 | U31: =C31 -> 2.0 3D AND CURRENT USAGE 2.1 Video output card 2.2 QuickTime Virtual Reality (QTVR) 2.3 3D object QTVR 2.4 Panoramic QTVR
C32: 3.0 STORYBOARD 3.1 Types of storyboard 3.2 Static storyboard 3.3 Animatic storyboard 3.4 Script animation | G32: CLO1, CLO 2 | I32: 4 | M32: 2 | S32: 8 | T32: 14 | U32: 3.0 STORYBOARD 3.1 Types of storyboard 3.2 Static storyboard 3.3 Animatic storyboard 3.4 Script animation
C33: 4.0 BUILDING ADVANCE MODELLING 4.1 Encapsulated Post Script (EPS) 4.2 Model building 4.3 Building model using 2D files | G33: CLO 2 | I33: 4 | M33: 6 | S33: 6 | T33: 16 | U33: 4.0 BUILDING ADVANCE MODELLING 4.1 Encapsulated Post Script (EPS) 4.2 Model building 4.3 Building model using 2D files
C34: 5.0 SURFACE TEXTURE AND PROCESS 5.1 Character of surface object 5.2 Types of texture mapping 5.3 Types of surface texture mapping 5.4 Application of surface texture 5.5 Designing surface texture | G34: CLO 1,CLO 2 | I34: 4 | M34: 6 | S34: 6 | T34: 16 | U34: 5.0 SURFACE TEXTURE AND PROCESS 5.1 Character of surface object 5.2 Types of texture mapping 5.3 Types of surface texture mapping 5.4 Application of surface texture 5.5 Designing surface texture
C35: 6.0 LIGHTING 6.1 Types of lighting sources 6.2 Lighting technique 6.3 3 lighting sources 6.4 Side Lighting 6.5 Basic position of light source 6.6 Interaction of environment and shading | G35: CLO 1, CLO 2, CLO 3 | I35: 4 | M35: 4 | S35: 6 | T35: 14 | U35: 6.0 LIGHTING 6.1 Types of lighting sources 6.2 Lighting technique 6.3 3 lighting sources 6.4 Side Lighting 6.5 Basic position of light source 6.6 Interaction of environment and shading
C36: 7.0 RENDERING 7.1 Rendering process 7.2 Size and format of animation file 7.3 Rendering preference 7.4 Final codec | G36: CLO 1, CLO 2, CLO 3 | I36: 4 | M36: 4 | S36: 6 | T36: 14 | U36: 7.0 RENDERING 7.1 Rendering process 7.2 Size and format of animation file 7.3 Rendering preference 7.4 Final codec
C37: Total | T37: =SUM(T30:T36) -> 94 | U37: Total
C39: Continuous Assessment | L39: Percentage (%) | N39: F2F | Q39: NF2F | T39: SLT
C40: 1 | D40: Assignments (2) | L40: 10 | Q40: 3.5 | T40: =SUM(N40:S40) -> 3.5
C41: 2 | D41: Lab Exercise (2) | L41: 10 | N41: 2 | Q41: 1 | T41: 3 | U41: =D41 -> Lab Exercise (2)
C42: 3 | D42: Test (2) | L42: 20 | N42: 3 | Q42: 5 | T42: 8 | U42: Test (2)
C43: 4 | D43: Project | L43: 10 | N43: 1 | Q43: 4 | T43: 5 | U43: Project
T44: 0
C45: Total | T45: =SUM(T40:T44) -> 19.5
C47: Final Assessment | L47: Percentage (%) | N47: F2F | Q47: NF2F | T47: SLT
C48: 1 | D48: Final Examination | L48: 50 | N48: 2.5 | Q48: 4 | T48: =SUM(N48:S48) -> 6.5
C49: 2 | T49: 0 | U49: =D49 -> 
C50: 3 | T50: 0
C51: 4 | T51: 0
C52: 5 | T52: 0
T53: =SUM(T48:T52) -> 6.5 | U53: =D53 -> 
C55: **Please tick (ü) in this course is Latihan Industri / Clinical Placement / Practicum / WBL using 2 weeks; 1 credit formula | T55: =+T37+T45+T53 -> 120
C56: L= Lecture, T=Tutorial, P=Practical, O=Others, F2F=Face to Face, NF2F=None Face to Face
C57: *Indicate the CLO based on the CLO's numbering in item 8
B58: 11 | C58: Identify special requirement to deliver the course (e.g: software, nursery, computer lab, simulation room, etc) | H58: Autodesk Max 2019
U59: =H59 -> 
B60: 12 | C60: References: | H60: 1. Cracking Animation: The Aardman Book of 3-D Animation, 2016
C61: (include required and further readings, and should be the most current) | H61: 2. Digital Modeling by William Vaughan, 2012 3. 3D Animation Essentials by Andy Beane, 2012 4. Autodesk 3ds Max 2019: A Detailed Guide to Arnold Renderer , 2018 5. https://conceptartempire.com/3ds-max-tutorials/ 6. Autodesk 3ds Max Learning Channel (https://www.youtube.com/user/3dsMaxHowTos) | U61: =H61 -> 2. Digital Modeling by William Vaughan, 2012 3. 3D Animation Essentials by Andy Beane, 2012 4. Autodesk 3ds Max 2019: A Detailed Guide to Arnold Renderer , 2018 5. https://conceptartempire.com/3ds-max-tutorials/ 6. Autodesk 3ds Max Learning Channel (https://www.youtube.com/user/3dsMaxHowTos)
B62: 13 | C62: Other additional Information | H62: Last updated : 24 November 2019 | U62: Last updated : 24 November 2019

Sheet ID
B2: Back | C2: Name of Course | D2: Multimedia Instructional Design | AK2: 1 | AL2: 1
C3: Course Code | D3: CMM2243 | AJ3: √ | AK3: 2 | AL3: 2
B4: 2 | C4: Synopsis | D4: This course introduces students to concepts in instructional multimedia design and development, comparison between authoring tools, cycles in instructional, media, interactivity, designing interfaces and screen. | U4: =D4 -> This course introduces students to concepts in instructional multimedia design and development, comparison between authoring tools, cycles in instructional, media, interactivity, designing interfaces and screen. | AK4: 3 | AL4: 3
B5: 3 | C5: Name (s) of Academic Staff | D5: Nur Hazwani binti Hamdan | AK5: 4 | AL5: 4
B6: 4 | C6: Semester | D6: Semester | E6: 4 | F6: Year | G6: 2 | AK6: 5
B7: 5 | C7: Credit Value | D7: =IF(T58=40,1,(IF(T58=80,2,(IF(T58=120,3,(IF(T58=160,4,IF(T58=200,5,IF(T58=240,6,""))))))))) -> 3 | AK7: 6
B8: 6 | C8: Pre-requisite / Co-requisite (if any) | AK8: 7
B9: 7 | C9: Course Learning Outcomes (CLO): At the end of the course the students will be able to: | AK9: 8
C10: (example) - explain the basic principles of immunisation (C2, PLO1) | AK10: 9
C11: CLO1 | D11: Apply the concepts and principles of multimedia instructional design and authoring tools to be use in multimedia application. (C3, PLO1) | U11: =D11 -> Apply the concepts and principles of multimedia instructional design and authoring tools to be use in multimedia application. (C3, PLO1) | AK11: 10
C12: CLO2 | D12: Demonstrate the ability to create an instructional multimedia application using appropriate software. (C3, P3, PLO3) | U12: Demonstrate the ability to create an instructional multimedia application using appropriate software. (C3, P3, PLO3) | AK12: 11
C13: CLO3 | D13: Acquire and manage information of interface designing and tools from various sources to accomplish a project in a given time frame. (A3, LL2, PLO6)
B15: 8 | C15: Mapping of the Course Learning Outcomes to the Programme Learning Outcomes, Teaching Methods and Assessment:
C16: Course Learning Outcomes (CLO) | D16: Programme Learning Outcomes (PLO) | P16: Teaching Methods | S16: Assessment
D17: PLO1 | E17: PLO2 | F17: PLO3 | G17: PLO4 | H17: PLO5 | I17: PLO6 | J17: PLO7 | K17: PLO8 | L17: PLO9 | M17: PLO10 | N17: PLO11 | O17: PLO12
C18: CLO1 | D18: √ | P18: Lecture | Discussion | Laboratory Activities | S18: Assignment | Lab Skills | Test | Final Examination | U18: =S18 -> Assignment | Lab Skills | Test | Final Examination
C19: CLO2 | F19: √ | P19: Lecture | Discussion | Laboratory Activities | S19: Assignment | Lab Skills | Test | Final Examination
C20: CLO3 | I20: √ | P20: Laboratory Activities |Discussion | Presentation | S20: Project
C22: (The description must be read together with standards 2.1.2, 2.2.1 and 2.2.2 in Area 2 - pages 16 & 18)
B23: 9 | C23: Transferable skills (if applicable) | G23: 1 | H23: Knowledge and understanding
C24: (Skills learned in the course of study which can be useful and utilised in other settings) | G24: 2 | H24: Practical Skills
G25: 3 | H25: Digital Skills
B26: 10 | C26: Distribution of Students Learning Time (SLT)
C27: Course Content Outline | G27: CLO | I27: Teaching and Learning Activities | T27: SLT
I28: Guided learning (F2F) | Q28: Guided Learning (NF2F) eg: e-learning | S28: Independent learning (NF2F)
I29: L | K29: T | M29: P | O29: O
C30: 1.0 Introduction to Instructional Design Techniques 1.1 Introduction 1.2 What is instructional and design, process involved in instructional design 1.3 Instructional Design models: Hannafin and Peck, ADDIE, Dick and Carrey 1.4 Advantage and disadvantage of systematic instructional design | G30: CLO 1 | I30: 2 | M30: 2 | S30: 2 | T30: =SUM(I30:S30) -> 6
C31: 2.0 Multimedia Auhtoring Tools 2.1 Comparison between authoring tools categories 2.1.1 Authoring Systems 2.1.2 Object-oriented Systems 2.1.3 Authoring language | G31: CLO 1, CLO 2 | I31: 2 | M31: 2 | S31: 4 | T31: 8 | U31: =C31 -> 2.0 Multimedia Auhtoring Tools 2.1 Comparison between authoring tools categories 2.1.1 Authoring Systems 2.1.2 Object-oriented Systems 2.1.3 Authoring language
C32: 2.2 Authoring Tools Evaluation 2.3.1 Authoring Characteristic 2.3.2 Instructor Characteristic 2.3.3 Learner Characteristic 2.3.4 Text, graphic, animations, audio, video, flexibility level, helps, cost and contract | G32: CLO 1, CLO 2, CLO 3 | I32: 4 | M32: 4 | S32: 4 | T32: 12 | U32: 2.2 Authoring Tools Evaluation 2.3.1 Authoring Characteristic 2.3.2 Instructor Characteristic 2.3.3 Learner Characteristic 2.3.4 Text, graphic, animations, audio, video, flexibility level, helps, cost and contract
C33: 3.0 Instructional Design 3.1 Instructional Development Cycles; Analysis and Planning Phase, Evaluation and Revision Phase | G33: CLO 1, CLO 2, CLO 3 | I33: 2 | M33: 2 | S33: 2 | T33: 6 | U33: 3.0 Instructional Design 3.1 Instructional Development Cycles; Analysis and Planning Phase, Evaluation and Revision Phase
C34: 3.2 Instructional Strategies; Tutorial, drill and practices, simulation, discovery, problem solving, educational games. 3.3 Media Selection; media categories, media and learning, guidelines for combining medias 3.4 Media and motivation; text, audio, graphics, video, animation, selecting media | G34: CLO 1, CLO 2, CLO 3 | I34: 2 | M34: 2 | S34: 2 | T34: 6 | U34: 3.2 Instructional Strategies; Tutorial, drill and practices, simulation, discovery, problem solving, educational games. 3.3 Media Selection; media categories, media and learning, guidelines for combining medias 3.4 Media and motivation; text, audio, graphics, video, animation, selecting media
C35: 4.0 Interactivity 4.1 What is interactivity. What makes interaction 4.2 Interactive input devices; keyboard, mouse touch screen, voice input, pen input 4.3 Question writing; effective testing; characteristic of well written questions, type of questions | G35: CLO 1, CLO 2, CLO 3 | I35: 2 | M35: 2 | S35: 2 | T35: 6 | U35: 4.0 Interactivity 4.1 What is interactivity. What makes interaction 4.2 Interactive input devices; keyboard, mouse touch screen, voice input, pen input 4.3 Question writing; effective testing; characteristic of well written questions, type of questions
C36: 5.0 Screen and Interface Design 5.1 Screen Design 5.1.1 Introduction 5.1.2 Screen component; orientation information, presented material, direction and input area, feedback and error message area and control options. 5.2 Menu; types of menus : window, full screen. drop down | G36: CLO 1, CLO 2, CLO 3 | I36: 2 | M36: 2 | S36: 2 | T36: 6 | U36: 5.0 Screen and Interface Design 5.1 Screen Design 5.1.1 Introduction 5.1.2 Screen component; orientation information, presented material, direction and input area, feedback and error message area and control options. 5.2 Menu; types of menus : window, full screen. drop down
C37: 6.0 User Friendly Features 6.1 User Friendly Features. Background, ease of use | G37: CLO 1, CLO 2, CLO 3 | I37: 2 | M37: 2 | S37: 2 | T37: 6 | U37: 6.0 User Friendly Features 6.1 User Friendly Features. Background, ease of use
C38: 7.0 Feedback and Control 7.1 Feedback characteristic of feedback, types of feedback, sound and special effects in feedback, feedback control 7.2 Control Learner, student, program, shared, media, clarity pleasant tone humor | G38: CLO 1, CLO 2, CLO 3 | I38: 4 | M38: 3 | S38: 4 | T38: 11 | U38: 7.0 Feedback and Control 7.1 Feedback characteristic of feedback, types of feedback, sound and special effects in feedback, feedback control 7.2 Control Learner, student, program, shared, media, clarity pleasant tone humor
C39: 8.0 Color and Highlighting 8.1 Color and Highlighting uses of color, color associations, guidelines for using color, recommended color, color combinations to avoid 8.2 Highlighting: highlighting techniques, highlighting with color, highlighting types: using color, animation, blinking, transitions | G39: CLO 1, CLO 2, CLO 3 | I39: 2 | M39: 2 | S39: 4 | T39: 8 | U39: 8.0 Color and Highlighting 8.1 Color and Highlighting uses of color, color associations, guidelines for using color, recommended color, color combinations to avoid 8.2 Highlighting: highlighting techniques, highlighting with color, highlighting types: using color, animation, blinking, transitions
C40: Total | T40: =SUM(T30:T39) -> 75 | U40: Total
C42: Continuous Assessment | L42: Percentage (%) | N42: F2F | Q42: NF2F | T42: SLT
C43: 1 | D43: Assignment | L43: 10 | Q43: 5 | T43: =SUM(N43:S43) -> 5
C44: 2 | D44: Test | L44: 20 | N44: 3 | Q44: 8 | T44: 11 | U44: =D44 -> Test
C45: 3 | D45: Lab Exercise | L45: 10 | N45: 2 | Q45: 8 | T45: 10 | U45: Lab Exercise
C46: 4 | D46: Project | L46: 10 | N46: 4 | Q46: 8 | T46: 12 | U46: Project
C47: 5
C48: Total | T48: =SUM(T43:T47) -> 38
C50: Final Assessment | L50: Percentage (%) | N50: F2F | Q50: NF2F | T50: SLT
C51: 1 | D51: Final Examination | L51: 50 | N51: 2.5 | Q51: 4.5 | T51: =SUM(N51:S51) -> 7
C52: 2 | T52: 0 | U52: =D52 -> 
C53: 3 | T53: 0
C54: 4 | T54: 0
C55: 5 | T55: 0
T56: =SUM(T51:T55) -> 7 | U56: =D56 -> 
C58: **Please tick (ü) in this course is Latihan Industri / Clinical Placement / Practicum / WBL using 2 weeks; 1 credit formula | T58: =+T40+T48+T56 -> 120
C59: L= Lecture, T=Tutorial, P=Practical, O=Others, F2F=Face to Face, NF2F=None Face to Face
C60: *Indicate the CLO based on the CLO's numbering in item 8
B61: 11 | C61: Identify special requirement to deliver the course (e.g: software, nursery, computer lab, simulation room, etc) | H61: None
U62: =H62 -> 
B63: 12 | C63: References: | H63: 1. The Essentials of Instructional Design: Connecting Fundamental Principles with Process and Practice 3rd Edition, Kindle Edition, 2016
